Department Family,Entity,Date of Payment,Expense Type,Expense Area,Supplier,Voluntary & Community Sector,SME Class,Sole Trader,Transaction number,PSPES Level 2,Narrative,Postal Code,Amount in Sterling,Grant?
Communities & Local Government,DCLG,01/08/2013,Agency Staff,Finance & Corporate Services,CERTES COMPUTING LTD,,Medium,,5106195774,Contingent Labour,Temporary Staff June 2013,B46 1HQ,"2,946.24",
Communities & Local Government,DCLG,01/08/2013,Agency Staff,Neighbourhoods,REED EMPLOYMENT SERVICES,,Large,,5106195784,Contingent Labour,Extension of Support- Rate Adjustment,SW20 0BA,"1,603.36",
Communities & Local Government,DCLG,01/08/2013,Agency Staff,Neighbourhoods,REED EMPLOYMENT SERVICES,,Large,,5106195792,Contingent Labour,Policy support,SW20 0BA,983.57,
Communities & Local Government,DCLG,01/08/2013,Agency Staff,Neighbourhoods,REED EMPLOYMENT SERVICES,,Large,,5106195793,Contingent Labour,Policy support,SW20 0BA,929.92,
Communities & Local Government,DCLG,01/08/2013,Agency Staff,Neighbourhoods,REED EMPLOYMENT SERVICES,,Large,,5106195794,Contingent Labour,Policy support,SW20 0BA,953.76,
Communities & Local Government,DCLG,01/08/2013,Agency Staff,Neighbourhoods,REED EMPLOYMENT SERVICES,,Large,,5106195795,Contingent Labour,Policy support,SW20 0BA,"1,090.30",
Communities & Local Government,DCLG,01/08/2013,Agency Staff,Neighbourhoods,REED EMPLOYMENT SERVICES,,Large,,5106195796,Contingent Labour,Policy support,SW20 0BA,867.94,
Communities & Local Government,DCLG,01/08/2013,Agency Staff,Neighbourhoods,REED EMPLOYMENT SERVICES,,Large,,5106195799,Contingent Labour,POLICY SUPPORT FOR HGAH,SW20 0BA,"1,047.26",
Communities & Local Government,DCLG,01/08/2013,Agency Staff,Neighbourhoods,REED SPECIALIST RECRUITMENT LTD,,Large,,5106195825,Contingent Labour,Temp SEO policy official: Right to Buy,NN1 1UE,"1,040.69",
Communities & Local Government,DCLG,01/08/2013,Building Renovations,Finance & Corporate Services,E C HARRIS LLP,,Large,,2300002037,Construction Service Providers,Strategic Engagements&Snr Comms Mngr- 50,N1 9AB,"-10,530.00",
Communities & Local Government,DCLG,01/08/2013,Current (non AEF) Grants to Local Authorities,Localism,BURY MBC,,Large,,2100232982,,Payment to LAs to Tackle Problem Drinking,BL9 0SW,"45,000.00",Yes
Communities & Local Government,DCLG,01/08/2013,Current (non AEF) Grants to Local Authorities,Localism,CHELMSFORD BOROUGH COUNCIL,,,,2100232983,,Payment to LAs to Tackle Problem Drinking,CM1 1JE,"45,000.00",Yes
Communities & Local Government,DCLG,01/08/2013,Current (non AEF) Grants to Local Authorities,Localism,CORNWALL COUNTY COUNCIL,,Public Bodies,,2100232988,,Payment to LAs to Tackle Problem Drinking,TR1 3AY,"45,000.00",Yes
Communities & Local Government,DCLG,01/08/2013,Current (non AEF) Grants to Local Authorities,Localism,DURHAM COUNTY COUNCIL,,,,2100232989,,Payment to LAs to Tackle Problem Drinking,DL16 6JQ,"45,000.00",Yes
Communities & Local Government,DCLG,01/08/2013,Current (non AEF) Grants to Local Authorities,Localism,LINCOLN CITY COUNCIL,,,,2100232984,,Payment to LAs to Tackle Problem Drinking,LN1 1DH,"45,000.00",Yes
Communities & Local Government,DCLG,01/08/2013,Current (non AEF) Grants to Local Authorities,Localism,MAIDSTONE B C,,Public Bodies,,2100232985,,Payment to LAs to Tackle Problem Drinking,ME15 6JQ,"45,000.00",Yes
Communities & Local Government,DCLG,01/08/2013,Current (non AEF) Grants to Local Authorities,Localism,NEWCASTLE CITY COUNCIL,,Public Bodies,,2100232986,,Payment to LAs to Tackle Problem Drinking,NE1 8PA,"45,000.00",Yes
Communities & Local Government,DCLG,01/08/2013,Current (non AEF) Grants to Local Authorities,Localism,SHROPSHIRE COUNTY COUNCIL,,Large,,2100232990,,Payment to LAs to Tackle Problem Drinking,SY2 6ND,"45,000.00",Yes
Communities & Local Government,DCLG,01/08/2013,Current (non AEF) Grants to Local Authorities,Localism,WAKEFIELD MDC,,Public Bodies,,2100232987,,Payment to LAs to Tackle Problem Drinking,WF1 2HQ,"45,000.00",Yes
Communities & Local Government,DCLG,01/08/2013,Fixed Maintenance,Neighbourhoods,E C HARRIS LLP,,Large,,5106195748,Construction Service Providers,ERDF Y&H LDU QS Services to Feb 14,N1 9AB,"1,826.00",
Communities & Local Government,DCLG,01/08/2013,Grant in Aid to NDPBs (non budget),Neighbourhoods,HOMES & COMMUNITIES AGENCY,,Public Bodies,,2100233078,,HCA Claim for 1 August 2013,NE11 0NA,"83,487,777.00",Yes
Communities & Local Government,DCLG,01/08/2013,"IT - PC, Network & Hardware",Neighbourhoods,REED SPECIALIST RECRUITMENT LTD,,Large,,5106195787,Contingent Labour,Help to Buy Temp,NN1 1UE,728.06,
Communities & Local Government,DCLG,01/08/2013,IT - Service Contracts,Finance & Corporate Services,STERIA LIMITED,,Large,,5106195777,Managed / Outsourced Services,SQ146 # Nottingham Power Down 11th and 1,M14 0WN,"1,060.10",
Communities & Local Government,DCLG,01/08/2013,IT - Service Contracts,Finance & Corporate Services,STERIA LIMITED,,Large,,5106195778,Managed / Outsourced Services,AC - Rivergatte Patching SQ151/ NR451,M14 0WN,"1,211.54",
Communities & Local Government,DCLG,01/08/2013,IT - Service Contracts,Neighbourhoods,PHILIP M HALE LTD,,Micro,,5106195816,Managed / Outsourced Services,Aggregate Working Parties secretariat costs April 2013 to March 2014,BS29 6PD,"8,662.50",
Communities & Local Government,DCLG,01/08/2013,IT - Service Contracts,Neighbourhoods,PHILIP M HALE LTD,,Micro,,5106195816,Managed / Outsourced Services,Aggregate Working Parties secretariat costs April 2013 to March 2014,BS29 6PD,110.90,
Communities & Local Government,DCLG,01/08/2013,Printing,Finance & Corporate Services,STATIONERY OFFICE LTD,,Large,,5106195786,Printing Services,Non-Vatable printing services,NR3 1PD,196.00,
Communities & Local Government,DCLG,01/08/2013,Printing,Finance & Corporate Services,STATIONERY OFFICE LTD,,Large,,5106195786,Printing Services,VAT chargeable printing services,NR3 1PD,130.00,
Communities & Local Government,DCLG,01/08/2013,Printing,Finance & Corporate Services,STATIONERY OFFICE LTD,,Large,,5106195788,Printing Services,Non-Vatable printing services,NR3 1PD,211.75,
Communities & Local Government,DCLG,01/08/2013,Printing,Finance & Corporate Services,STATIONERY OFFICE LTD,,Large,,5106195788,Printing Services,VAT chargeable printing services,NR3 1PD,130.00,
Communities & Local Government,DCLG,01/08/2013,Printing,Finance & Corporate Services,STATIONERY OFFICE LTD,,Large,,5106195798,Printing Services,Non-Vatable printing services,NR3 1PD,803.00,
Communities & Local Government,DCLG,01/08/2013,Publicity,Finance & Corporate Services,NEWS INTERNATIONAL ASSOC SERVICES L,,Large,,5106195783,Advertising,Times online corp subsciption_20 users,PE7 8YT,"1,872.00",
Communities & Local Government,DCLG,01/08/2013,Training,Finance & Corporate Services,CAPITA BUSINESS SERVICES LTD,,Large,,5106195742,Development and Training,Communicating with Ministers course,DL1 9HB,683.00,
Communities & Local Government,DCLG,01/08/2013,Training,Finance & Corporate Services,CAPITA BUSINESS SERVICES LTD,,Large,,5106195764,Development and Training,Fast Stream Training (First year FS),DL1 9HB,"-3,097.20",
Communities & Local Government,DCLG,01/08/2013,Training,Finance & Corporate Services,CAPITA BUSINESS SERVICES LTD,,Large,,5106195801,Development and Training,Fast Stream Training - Mid Term courses,DL1 9HB,527.00,
Communities & Local Government,DCLG,01/08/2013,Training,Finance & Corporate Services,CAPITA BUSINESS SERVICES LTD,,Large,,5106195802,Development and Training,Fast Stream Training (First year FS),DL1 9HB,"1,353.00",
Communities & Local Government,DCLG,01/08/2013,Training,Finance & Corporate Services,CAPITA BUSINESS SERVICES LTD,,Large,,5106195817,Development and Training,Fast Stream Training (First year FS),DL1 9HB,"3,214.19",
Communities & Local Government,DCLG,01/08/2013,Training,Finance & Corporate Services,CAPITA BUSINESS SERVICES LTD,,Large,,5106195817,Development and Training,Fast Stream training (New entry courses),DL1 9HB,128.00,
Communities & Local Government,DCLG,01/08/2013,Training,Finance & Corporate Services,CAPITA BUSINESS SERVICES LTD,,Large,,5106195821,Development and Training,CS Training - Leadership and Management,DL1 9HB,-977.00,
Communities & Local Government,DCLG,01/08/2013,Training,Finance & Corporate Services,INSTITUTE OF INTERNAL AUDITORS,,Small,,5106195800,Development and Training,P3 Internal Audit Practice Module,SW4 7BX,"1,622.00",
Communities & Local Government,DCLG,01/08/2013,Training,Finance & Corporate Services,INSTITUTE OF INTERNAL AUDITORS,,Small,,5106195822,Development and Training,M2 Financial Management Tuition + Revisi,SW4 7BX,"1,500.00",
Communities & Local Government,DCLG,01/08/2013,Vehicle hire,Finance & Corporate Services,GOVERNMENT CAR & DESPATCH AGENCY,,Public Bodies,,5106195780,Vehicle Hire and Lease,Car of SOS -Duty Car 1- LT206,SW8 5AX,"7,258.66",
Communities & Local Government,DCLG,01/08/2013,Work In Progress Pre-Cert 40373 Spend,Neighbourhoods,CHESHIRE EAST BOROUGH COUNCIL,,Large,,7600005788,,Revenue Grant To Be Paid,CH1 1SE,"14,941.17",Yes
Communities & Local Government,DCLG,01/08/2013,Work In Progress Pre-Cert 40373 Spend,Neighbourhoods,CHESHIRE EAST BOROUGH COUNCIL,,Large,,7600005789,,Revenue Grant To Be Paid,CH1 1SE,"6,471.02",Yes
Communities & Local Government,DCLG,01/08/2013,Work In Progress Pre-Cert 40373 Spend,Neighbourhoods,CHESHIRE EAST BOROUGH COUNCIL,,Large,,7600005791,,Revenue Grant To Be Paid,CH1 1SE,"6,007.93",Yes
Communities & Local Government,DCLG,01/08/2013,Work In Progress Pre-Cert 40373 Spend,Neighbourhoods,CUMBRIA COUNTY COUNCIL,,,,7600005787,,Revenue Grant To Be Paid,CA3 8NA,"1,562.32",Yes
Communities & Local Government,DCLG,01/08/2013,Work In Progress Pre-Cert 40373 Spend,Neighbourhoods,CUMBRIA COUNTY COUNCIL,,,,7600005792,,Revenue Grant To Be Paid,CA3 8NA,625.21,Yes
Communities & Local Government,DCLG,01/08/2013,Work In Progress Pre-Cert 40373 Spend,Neighbourhoods,CUMBRIA COUNTY COUNCIL,,,,7600005793,,Revenue Grant To Be Paid,CA3 8NA,"1,000.14",Yes
Communities & Local Government,DCLG,01/08/2013,Work In Progress Pre-Cert 40373 Spend,Neighbourhoods,CUMBRIA COUNTY COUNCIL,,,,7600005794,,Revenue Grant To Be Paid,CA3 8NA,548.16,Yes
Communities & Local Government,DCLG,01/08/2013,Work In Progress Pre-Cert 40373 Spend,Neighbourhoods,CUMBRIA COUNTY COUNCIL,,,,7600005795,,Revenue Grant To Be Paid,CA3 8NA,519.89,Yes
Communities & Local Government,DCLG,01/08/2013,Work In Progress Pre-Cert 40373 Spend,Neighbourhoods,CUMBRIA COUNTY COUNCIL,,,,7600005796,,Revenue Grant To Be Paid,CA3 8NA,736.04,Yes
Communities & Local Government,DCLG,01/08/2013,Work In Progress Pre-Cert 40373 Spend,Neighbourhoods,CUMBRIA COUNTY COUNCIL,,,,7600005797,,Revenue Grant To Be Paid,CA3 8NA,"1,951.79",Yes
Communities & Local Government,DCLG,01/08/2013,Work In Progress Pre-Cert 40373 Spend,Neighbourhoods,CUMBRIA COUNTY COUNCIL,,,,7600005798,,Revenue Grant To Be Paid,CA3 8NA,"2,568.02",Yes
Communities & Local Government,DCLG,01/08/2013,Work In Progress Pre-Cert 40373 Spend,Neighbourhoods,CUMBRIA COUNTY COUNCIL,,,,7600005801,,Revenue Grant To Be Paid,CA3 8NA,"1,995.63",Yes
Communities & Local Government,DCLG,01/08/2013,Work In Progress Pre-Cert 40373 Spend,Neighbourhoods,LIVERPOOL CITY REG LOCAL ENT PARTNE,,,,7600005799,,Revenue Grant Clawback Offset,L3 1BG,"-20,140.93",Yes
Communities & Local Government,DCLG,01/08/2013,Work In Progress Pre-Cert 40373 Spend,Neighbourhoods,LIVERPOOL CITY REG LOCAL ENT PARTNE,,,,7600005799,,Revenue Grant To Be Paid,L3 1BG,"108,217.44",Yes
Communities & Local Government,DCLG,01/08/2013,Work In Progress Pre-Cert 40373 Spend,Neighbourhoods,UNIVERSITY COLLEGE FALMOUTH,,,,7600005790,,Revenue Grant To Be Paid,TR11 4RH,"135,571.58",Yes
Communities & Local Government,DCLG,01/08/2013,Work In Progress Pre-Cert 40373 Spend,Neighbourhoods,UNIVERSITY COLLEGE FALMOUTH,,,,7600005804,,Revenue Grant To Be Paid,TR11 4RH,"42,972.38",Yes
Communities & Local Government,DCLG,01/08/2013,Work In Progress Pre-Cert 40373 Spend,Neighbourhoods,VEDAS SERVICES LTD,,Small,,7600005803,,Revenue Grant To Be Paid,BB11 1DR,"30,841.91",Yes
Communities & Local Government,DCLG,01/08/2013,Work In Progress Pre-Cert 40467 Spend,Neighbourhoods,CNTRL MANCHESTER UNIVERSITY HOSPITA,,,,7600005802,,Capital Grant To Be Paid,M13 0JR,"13,351.56",Yes
Communities & Local Government,DCLG,01/08/2013,Work In Progress Pre-Cert 40467 Spend,Neighbourhoods,CUMBRIA COUNTY COUNCIL,,,,7600005787,,Capital Grant To Be Paid,CA3 8NA,"3,338.82",Yes
Communities & Local Government,DCLG,01/08/2013,Work In Progress Pre-Cert 40467 Spend,Neighbourhoods,CUMBRIA COUNTY COUNCIL,,,,7600005792,,Capital Grant To Be Paid,CA3 8NA,"77,473.75",Yes
Communities & Local Government,DCLG,01/08/2013,Work In Progress Pre-Cert 40467 Spend,Neighbourhoods,CUMBRIA COUNTY COUNCIL,,,,7600005793,,Capital Grant To Be Paid,CA3 8NA,"5,218.66",Yes
Communities & Local Government,DCLG,01/08/2013,Work In Progress Pre-Cert 40467 Spend,Neighbourhoods,CUMBRIA COUNTY COUNCIL,,,,7600005794,,Capital Grant To Be Paid,CA3 8NA,"1,763.89",Yes
Communities & Local Government,DCLG,01/08/2013,Work In Progress Pre-Cert 40467 Spend,Neighbourhoods,CUMBRIA COUNTY COUNCIL,,,,7600005795,,Capital Grant To Be Paid,CA3 8NA,"35,035.00",Yes
Communities & Local Government,DCLG,01/08/2013,Work In Progress Pre-Cert 40467 Spend,Neighbourhoods,CUMBRIA COUNTY COUNCIL,,,,7600005796,,Capital Grant To Be Paid,CA3 8NA,"213,701.45",Yes
Communities & Local Government,DCLG,01/08/2013,Work In Progress Pre-Cert 40467 Spend,Neighbourhoods,CUMBRIA COUNTY COUNCIL,,,,7600005797,,Capital Grant To Be Paid,CA3 8NA,"200,964.61",Yes
Communities & Local Government,DCLG,01/08/2013,Work In Progress Pre-Cert 40467 Spend,Neighbourhoods,CUMBRIA COUNTY COUNCIL,,,,7600005798,,Capital Grant To Be Paid,CA3 8NA,"381,666.74",Yes
Communities & Local Government,DCLG,01/08/2013,Work In Progress Pre-Cert 40467 Spend,Neighbourhoods,CUMBRIA COUNTY COUNCIL,,,,7600005800,,Capital Grant To Be Paid,CA3 8NA,382.31,Yes
Communities & Local Government,DCLG,01/08/2013,Work In Progress Pre-Cert 40467 Spend,Neighbourhoods,CUMBRIA COUNTY COUNCIL,,,,7600005801,,Capital Grant To Be Paid,CA3 8NA,"560,882.53",Yes
Communities & Local Government,DCLG,01/08/2013,Work In Progress Pre-Cert 40467 Spend,Neighbourhoods,SUB10 SYSTEMS LTD,,Small,,7600005805,,Capital Grant To Be Paid,TQ10 3RZ,"11,457.95",Yes
Communities & Local Government,DCLG,01/08/2013,Work In Progress Pre-Cert 40467 Spend,Neighbourhoods,UNIVERSITY COLLEGE FALMOUTH,,,,7600005790,,Capital Grant To Be Paid,TR11 4RH,"60,884.82",Yes
Communities & Local Government,DCLG,02/08/2013,Agency Staff,Finance & Corporate Services,CAFCASS,,,,5106195865,Contingent Labour,Extension to IT Security Service,RG24 9NW,"8,100.00",
Communities & Local Government,DCLG,02/08/2013,Agency Staff,Finance & Corporate Services,CAFCASS,,,,5106195869,Contingent Labour,Extension to IT Security Service,RG24 9NW,"7,695.00",
Communities & Local Government,DCLG,02/08/2013,Agency Staff,Neighbourhoods,REED EMPLOYMENT SERVICES,,Large,,5106195848,Contingent Labour,Policy support,SW20 0BA,959.72,
Communities & Local Government,DCLG,02/08/2013,Courier Services,Finance & Corporate Services,INTERSERVE (FACILITIES MANAGEMENT),,Large,,5106195841,Post & Courier,Eland House Mail 13-14,BS32 4NH,"7,886.12",
Communities & Local Government,DCLG,02/08/2013,Courier Services,Finance & Corporate Services,INTERSERVE (FACILITIES MANAGEMENT),,Large,,5106195841,Post & Courier,Rivergate Mail 13-14,BS32 4NH,"1,519.43",
Communities & Local Government,DCLG,02/08/2013,Current (non AEF) Grants to Local Authorities,Finance & Corporate Services,DURHAM & DARLINGTON FIRE RESCUE,,Public Bodies,,2100233111,,Regional Control Centre Grant for August 2013,DH1 5UE,"149,608.75",Yes
Communities & Local Government,DCLG,02/08/2013,Current (non AEF) Grants to Local Authorities,Finance & Corporate Services,GREATER LONDON AUTHORITY,,Large,,2100233110,,Regional Control Centre Grant for August 2013,SE10 1AP,"142,073.90",Yes
Communities & Local Government,DCLG,02/08/2013,Current (non AEF) Grants to Local Authorities,Finance & Corporate Services,GREATER MANCHESTER FIRE & RESCUE,,Public Bodies,,2100233109,,Regional Control Centre Grant for August 2013,M27 8US,"158,883.00",Yes
Communities & Local Government,DCLG,02/08/2013,Current (non AEF) Grants to Local Authorities,Neighbourhoods,CORNWALL COUNTY COUNCIL,,Large,,2100232519,,Resources Grant for Housing Development,TR1 3AY,"554,260.00",Yes
Communities & Local Government,DCLG,02/08/2013,Current (non AEF) Grants to Local Authorities,Neighbourhoods,SOUTH OXFORDSHIRE DC,,Large,,2100232711,,Resources Grant for Housing Development,OX10 8HQ,"1,025,000.00",Yes
Communities & Local Government,DCLG,02/08/2013,Current (non AEF) Grants to Local Authorities,Neighbourhoods,WOKINGHAM DC,,Public Bodies,,2100232710,,Resources Grant for Housing Development,RG40 1JW,"1,423,500.00",Yes
Communities & Local Government,DCLG,02/08/2013,Domestic Services,Finance & Corporate Services,INTERSERVE (FACILITIES MANAGEMENT),,Large,,5106195841,Cleaning,Eland House Cleaning 13-14,BS32 4NH,"27,469.95",
Communities & Local Government,DCLG,02/08/2013,Domestic Services,Finance & Corporate Services,INTERSERVE (FACILITIES MANAGEMENT),,Large,,5106195841,Cleaning,TQH Cleaning 13-14,BS32 4NH,"9,032.52",
Communities & Local Government,DCLG,02/08/2013,Domestic Services,Finance & Corporate Services,INTERSERVE (FACILITIES MANAGEMENT),,Large,,5106195841,Cleaning,Hemel Hemp Cleaning 13-14,BS32 4NH,"2,185.31",
Communities & Local Government,DCLG,02/08/2013,Domestic Services,Finance & Corporate Services,INTERSERVE (FACILITIES MANAGEMENT),,Large,,5106195841,Cleaning,Rivergate Cleaning 13-14,BS32 4NH,"5,167.99",
Communities & Local Government,DCLG,02/08/2013,Domestic Services,Finance & Corporate Services,INTERSERVE (FACILITIES MANAGEMENT),,Large,,5106195841,Cleaning,Bridge House Cleaning 13-14,BS32 4NH,"3,029.46",
Communities & Local Government,DCLG,02/08/2013,Domestic Services,Finance & Corporate Services,INTERSERVE (FACILITIES MANAGEMENT),,Large,,5106195841,Cleaning,Citygate Cleaning 13-14,BS32 4NH,"3,046.41",
Communities & Local Government,DCLG,02/08/2013,Domestic Services,Finance & Corporate Services,INTERSERVE (FACILITIES MANAGEMENT),,Large,,5106195841,Cleaning,Queen Street Cleaning 13-14,BS32 4NH,"2,566.06",
Communities & Local Government,DCLG,02/08/2013,Domestic Services,Finance & Corporate Services,INTERSERVE (FACILITIES MANAGEMENT),,Large,,5106195841,Cleaning,5SPP Cleaning 13-14,BS32 4NH,"6,808.15",
Communities & Local Government,DCLG,02/08/2013,Domestic Services,Finance & Corporate Services,INTERSERVE (FACILITIES MANAGEMENT),,Large,,5106195841,Cleaning,Paradise Cleaning 13-14,BS32 4NH,"3,114.09",
Communities & Local Government,DCLG,02/08/2013,Electronic Data Storage,Finance & Corporate Services,TNT UK LIMITED,,Large,,5106195856,Warehousing and Storage,Visions electronic storage,BL10 9GR,"3,750.44",
Communities & Local Government,DCLG,02/08/2013,Facilities Management (ISD use only),Finance & Corporate Services,INTERSERVE (FACILITIES MANAGEMENT),,Large,,5106195841,Building Management,Eland House Off Site Management 13-14,BS32 4NH,"11,118.18",
Communities & Local Government,DCLG,02/08/2013,Facilities Management (ISD use only),Finance & Corporate Services,INTERSERVE (FACILITIES MANAGEMENT),,Large,,5106195841,Building Management,Eland House Reception 13-14,BS32 4NH,"4,902.61",
Communities & Local Government,DCLG,02/08/2013,Facilities Management (ISD use only),Finance & Corporate Services,INTERSERVE (FACILITIES MANAGEMENT),,Large,,5106195841,Building Management,TQH Off Site Management 13-14,BS32 4NH,"7,874.37",
Communities & Local Government,DCLG,02/08/2013,Facilities Management (ISD use only),Finance & Corporate Services,INTERSERVE (FACILITIES MANAGEMENT),,Large,,5106195841,Building Management,TQH On Site Management 13-14,BS32 4NH,"3,181.32",
Communities & Local Government,DCLG,02/08/2013,Facilities Management (ISD use only),Finance & Corporate Services,INTERSERVE (FACILITIES MANAGEMENT),,Large,,5106195841,Building Management,TQH Reception 13-14,BS32 4NH,"1,663.29",
Communities & Local Government,DCLG,02/08/2013,Facilities Management (ISD use only),Finance & Corporate Services,INTERSERVE (FACILITIES MANAGEMENT),,Large,,5106195841,Building Management,Hemel Hemp Off Site Management 13-14,BS32 4NH,877.78,
Communities & Local Government,DCLG,02/08/2013,Facilities Management (ISD use only),Finance & Corporate Services,INTERSERVE (FACILITIES MANAGEMENT),,Large,,5106195841,Building Management,Rivergate Off Site Management 13-14,BS32 4NH,"3,589.89",
Communities & Local Government,DCLG,02/08/2013,Facilities Management (ISD use only),Finance & Corporate Services,INTERSERVE (FACILITIES MANAGEMENT),,Large,,5106195841,Building Management,Rivergate Reception 13-14,BS32 4NH,"1,653.74",
Communities & Local Government,DCLG,02/08/2013,Facilities Management (ISD use only),Finance & Corporate Services,INTERSERVE (FACILITIES MANAGEMENT),,Large,,5106195841,Building Management,Bridge House Off Site Management 13-14,BS32 4NH,"1,733.80",
Communities & Local Government,DCLG,02/08/2013,Facilities Management (ISD use only),Finance & Corporate Services,INTERSERVE (FACILITIES MANAGEMENT),,Large,,5106195841,Building Management,Bridge House On Site Management 13-14,BS32 4NH,"3,611.43",
Communities & Local Government,DCLG,02/08/2013,Facilities Management (ISD use only),Finance & Corporate Services,INTERSERVE (FACILITIES MANAGEMENT),,Large,,5106195841,Building Management,Citygate Off Site Management 13-14,BS32 4NH,"2,946.06",
Communities & Local Government,DCLG,02/08/2013,Facilities Management (ISD use only),Finance & Corporate Services,INTERSERVE (FACILITIES MANAGEMENT),,Large,,5106195841,Building Management,Citygate On Site Management 13-14,BS32 4NH,"2,493.40",
Communities & Local Government,DCLG,02/08/2013,Facilities Management (ISD use only),Finance & Corporate Services,INTERSERVE (FACILITIES MANAGEMENT),,Large,,5106195841,Building Management,Citygate Reception 13-14,BS32 4NH,"1,589.29",
Communities & Local Government,DCLG,02/08/2013,Facilities Management (ISD use only),Finance & Corporate Services,INTERSERVE (FACILITIES MANAGEMENT),,Large,,5106195841,Building Management,Queen Street Off Site Management 13-14,BS32 4NH,"1,596.05",
Communities & Local Government,DCLG,02/08/2013,Facilities Management (ISD use only),Finance & Corporate Services,INTERSERVE (FACILITIES MANAGEMENT),,Large,,5106195841,Building Management,5SPP Off Site Management 13-14,BS32 4NH,"2,911.74",
Communities & Local Government,DCLG,02/08/2013,Facilities Management (ISD use only),Finance & Corporate Services,INTERSERVE (FACILITIES MANAGEMENT),,Large,,5106195841,Building Management,5SPP On Site Management 13-14,BS32 4NH,"2,989.01",
Communities & Local Government,DCLG,02/08/2013,Facilities Management (ISD use only),Finance & Corporate Services,INTERSERVE (FACILITIES MANAGEMENT),,Large,,5106195841,Building Management,5SPP Reception 13-14,BS32 4NH,"2,813.24",
Communities & Local Government,DCLG,02/08/2013,Facilities Management (ISD use only),Finance & Corporate Services,INTERSERVE (FACILITIES MANAGEMENT),,Large,,5106195841,Building Management,Pardise Off Site Management 13-14,BS32 4NH,"1,673.87",
Communities & Local Government,DCLG,02/08/2013,Fixed Maintenance,Finance & Corporate Services,INTERSERVE (FACILITIES MANAGEMENT),,Large,,5106195841,Environmental Services,Bridge House Grounds Maintenance 13-14,BS32 4NH,259.21,
Communities & Local Government,DCLG,02/08/2013,Fixed Maintenance,Finance & Corporate Services,INTERSERVE (FACILITIES MANAGEMENT),,Large,,5106195841,Environmental Services,Queen Street Grounds Maintenance 13-14,BS32 4NH,13.16,
Communities & Local Government,DCLG,02/08/2013,Fixed Maintenance,Finance & Corporate Services,INTERSERVE (FACILITIES MANAGEMENT),,Large,,5106195841,Construction Service Providers,Eland House Maintenance 13-14,BS32 4NH,"39,360.08",
Communities & Local Government,DCLG,02/08/2013,Fixed Maintenance,Finance & Corporate Services,INTERSERVE (FACILITIES MANAGEMENT),,Large,,5106195841,Construction Service Providers,TQH Maintenance 13-14,BS32 4NH,"6,027.81",
Communities & Local Government,DCLG,02/08/2013,Fixed Maintenance,Finance & Corporate Services,INTERSERVE (FACILITIES MANAGEMENT),,Large,,5106195841,Construction Service Providers,Hemel Hemp Maintenance 13-14,BS32 4NH,"5,359.95",
Communities & Local Government,DCLG,02/08/2013,Fixed Maintenance,Finance & Corporate Services,INTERSERVE (FACILITIES MANAGEMENT),,Large,,5106195841,Construction Service Providers,Rivergate Maintenance 13-14,BS32 4NH,"3,840.85",
Communities & Local Government,DCLG,02/08/2013,Fixed Maintenance,Finance & Corporate Services,INTERSERVE (FACILITIES MANAGEMENT),,Large,,5106195841,Construction Service Providers,Bridge House Maintenance 13-14,BS32 4NH,"4,987.45",
Communities & Local Government,DCLG,02/08/2013,Fixed Maintenance,Finance & Corporate Services,INTERSERVE (FACILITIES MANAGEMENT),,Large,,5106195841,Construction Service Providers,Citygate Maintenance 13-14,BS32 4NH,"3,585.11",
Communities & Local Government,DCLG,02/08/2013,Fixed Maintenance,Finance & Corporate Services,INTERSERVE (FACILITIES MANAGEMENT),,Large,,5106195841,Construction Service Providers,Queen Street Maintenance 13-14,BS32 4NH,"6,538.37",
Communities & Local Government,DCLG,02/08/2013,Fixed Maintenance,Finance & Corporate Services,INTERSERVE (FACILITIES MANAGEMENT),,Large,,5106195841,Construction Service Providers,5SPP Maintenance 13-14,BS32 4NH,"10,796.00",
Communities & Local Government,DCLG,02/08/2013,Fixed Maintenance,Finance & Corporate Services,INTERSERVE (FACILITIES MANAGEMENT),,Large,,5106195841,Construction Service Providers,Paradise Maintenance 13-14,BS32 4NH,"7,797.99",
Communities & Local Government,DCLG,02/08/2013,Grant in Aid to NDPBs (non budget),Localism,VALUATION TRIBUNAL SERVICE,,,,2100233117,,,E1 1DU,"560,235.00",Yes
Communities & Local Government,DCLG,02/08/2013,IT - Service Contracts,Finance & Corporate Services,ARCH CONSULTING LTD,,Small,,5106195919,Managed / Outsourced Services,Software Maintenance Development,W4 1PF,"-4,000.00",
Communities & Local Government,DCLG,02/08/2013,IT - Service Contracts,Finance & Corporate Services,KAIZEN ASSOCIATES LTD,,Micro,,5106195920,Managed / Outsourced Services,SAP Application Support,SE1 6SW,"-16,887.05",
Communities & Local Government,DCLG,02/08/2013,IT - Service Contracts,Finance & Corporate Services,STERIA LIMITED,,Large,,5106195013,Managed / Outsourced Services,Audit Commission - CAN073,M14 0WN,"10,873.53",
Communities & Local Government,DCLG,02/08/2013,IT - Service Contracts,Finance & Corporate Services,STERIA LTD,,Large,,5106195846,Managed / Outsourced Services,Quote SQ159 - Eland HSE Black Building,M14 0WN,"7,630.41",
Communities & Local Government,DCLG,02/08/2013,Mobile phone costs,Finance & Corporate Services,VODAFONE BUSINESS SOLUTIONS,,Large,,2300001926,Telecoms,credit note for consolidated telephone costs,RG14 5FF,-598.20,
Communities & Local Government,DCLG,02/08/2013,Office Supplies,Localism,BANNER BUSINESS SUPPLIES LTD,,Large,,5106195805,Office Supplies,DELWEEKLY ABS Stapler Half Strip Black,NR3 1PD,3.31,
Communities & Local Government,DCLG,02/08/2013,Office Supplies,Localism,BANNER BUSINESS SUPPLIES LTD,,Large,,5106195805,Office Supplies,DELWEEKLY Banner A4 Recycled Copier Pape,NR3 1PD,263.28,
Communities & Local Government,DCLG,02/08/2013,Office Supplies,Localism,BANNER BUSINESS SUPPLIES LTD,,Large,,5106195805,Office Supplies,DELWEEKLY Banner A4 Recycled Side Spiral,NR3 1PD,27.14,
Communities & Local Government,DCLG,02/08/2013,Office Supplies,Localism,BANNER BUSINESS SUPPLIES LTD,,Large,,5106195805,Office Supplies,DELWEEKLY Banner Brilliant Page Marker 3,NR3 1PD,1.56,
Communities & Local Government,DCLG,02/08/2013,Office Supplies,Localism,BANNER BUSINESS SUPPLIES LTD,,Large,,5106195805,Office Supplies,DELWEEKLY Banner Fine Ballpoint Pen Blue,NR3 1PD,7.86,
Communities & Local Government,DCLG,02/08/2013,Office Supplies,Localism,BANNER BUSINESS SUPPLIES LTD,,Large,,5106195805,Office Supplies,DELWEEKLY Banner Flipchart Marker Assort,NR3 1PD,2.45,
Communities & Local Government,DCLG,02/08/2013,Office Supplies,Localism,BANNER BUSINESS SUPPLIES LTD,,Large,,5106195805,Office Supplies,DELWEEKLY Banner Medium Glue Stick 20g,NR3 1PD,0.77,
Communities & Local Government,DCLG,02/08/2013,Office Supplies,Localism,BANNER BUSINESS SUPPLIES LTD,,Large,,5106195805,Office Supplies,DELWEEKLY Himark Dry Wipe Bullet Tip Mar,NR3 1PD,2.40,
Communities & Local Government,DCLG,02/08/2013,Office Supplies,Localism,BANNER BUSINESS SUPPLIES LTD,,Large,,5106195805,Office Supplies,DELWEEKLY Himark Highlighter Assorted,NR3 1PD,3.25,
Communities & Local Government,DCLG,02/08/2013,Office Supplies,Localism,BANNER BUSINESS SUPPLIES LTD,,Large,,5106195805,Office Supplies,DELWEEKLY SELF-STICK NOTES 38 X 51MM PAL,NR3 1PD,5.76,
Communities & Local Government,DCLG,02/08/2013,Office Supplies,Localism,BANNER BUSINESS SUPPLIES LTD,,Large,,5106195805,Office Supplies,DELWEEKLY SELF-STICK NOTES 76 X 127MM PA,NR3 1PD,7.10,
Communities & Local Government,DCLG,02/08/2013,Office Supplies,Localism,BANNER BUSINESS SUPPLIES LTD,,Large,,5106195805,Office Supplies,DELWEEKLY SELF-STICK NOTES 76 X 76MM PAL,NR3 1PD,4.51,
Communities & Local Government,DCLG,02/08/2013,Office Supplies,Localism,BANNER BUSINESS SUPPLIES LTD,,Large,,5106195805,Office Supplies,DELWEEKLY Stylo Stik Ballpoint Pen Black,NR3 1PD,11.30,
Communities & Local Government,DCLG,02/08/2013,Photocopying,Finance & Corporate Services,INTERSERVE (FACILITIES MANAGEMENT),,Large,,5106195841,Operational Services,Eland House Reproduction 13-14,BS32 4NH,348.04,
Communities & Local Government,DCLG,02/08/2013,Photocopying,Finance & Corporate Services,INTERSERVE (FACILITIES MANAGEMENT),,Large,,5106195841,Operational Services,TQH Reproduction 13-14,BS32 4NH,"6,529.09",
Communities & Local Government,DCLG,02/08/2013,Photocopying,Finance & Corporate Services,INTERSERVE (FACILITIES MANAGEMENT),,Large,,5106195841,Operational Services,Hemel Hemp Reproduction 13-14,BS32 4NH,124.53,
Communities & Local Government,DCLG,02/08/2013,Photocopying,Finance & Corporate Services,INTERSERVE (FACILITIES MANAGEMENT),,Large,,5106195841,Operational Services,5SPP Reproduction 13-14,BS32 4NH,348.04,
Communities & Local Government,DCLG,02/08/2013,Physical Storage,Finance & Corporate Services,IRON MOUNTAIN (UK) LIMITED,,Large,,5106195858,Warehousing and Storage,Off site storage 2011 costs,EH54 7DF,"7,622.49",
Communities & Local Government,DCLG,02/08/2013,Professional services,Finance & Corporate Services,E C HARRIS LLP,,Large,,5106195782,Construction Service Providers,COM 094 - 12 month proff servs - CS,N1 9AB,"8,580.00",
Communities & Local Government,DCLG,02/08/2013,Professional services,Finance & Corporate Services,ENVIRONMENT AGENCY,,Public Bodies,,5106195867,Environmental Services,CRC Subsistance Fees 2013/14,PE2 8YD,"1,290.00",
Communities & Local Government,DCLG,02/08/2013,Professional services,Localism,VALUATION OFFICE AGENCY,,Public Bodies,,2100233116,Environmental Services,,W1B 5BU,"12,000,000.00",
Communities & Local Government,DCLG,02/08/2013,Professional services,Neighbourhoods,AECOM LIMITED,,Large,,5106195850,Technical Services,Contract amendment CPD0410287,AL1 3ER,"15,253.20",
Communities & Local Government,DCLG,02/08/2013,Professional services,Neighbourhoods,LONDON PENSIONS FUND AUTHORITY,,Public Bodies,,2100233108,Environmental Services,Handling of audit queries on LTGDC closure and pension liabilities,EC3N 4LP,996.00,
Communities & Local Government,DCLG,02/08/2013,Publications,Finance & Corporate Services,JONES YARRELL LEADENHALL LTD,,Large,,5106195831,Learning and Development Materials,Newspaper and Journal susbcription,E3 3JH,571.93,
Communities & Local Government,DCLG,02/08/2013,Publications,Finance & Corporate Services,JONES YARRELL LEADENHALL LTD,,Large,,5106195836,Learning and Development Materials,Journals supply 2013-14,E3 3JH,321.04,
Communities & Local Government,DCLG,02/08/2013,Security,Finance & Corporate Services,INTERSERVE (FACILITIES MANAGEMENT),,Large,,5106195841,Security,Eland House Security 13-14,BS32 4NH,"19,761.04",
Communities & Local Government,DCLG,02/08/2013,Security,Finance & Corporate Services,INTERSERVE (FACILITIES MANAGEMENT),,Large,,5106195841,Security,TQH Security 13-14,BS32 4NH,"9,286.58",
Communities & Local Government,DCLG,02/08/2013,Security,Finance & Corporate Services,INTERSERVE (FACILITIES MANAGEMENT),,Large,,5106195841,Security,Hemel Hemp Security 13-14,BS32 4NH,"4,209.91",
Communities & Local Government,DCLG,02/08/2013,Security,Finance & Corporate Services,INTERSERVE (FACILITIES MANAGEMENT),,Large,,5106195841,Security,Rivergate Security 13-14,BS32 4NH,"6,764.25",
Communities & Local Government,DCLG,02/08/2013,Security,Finance & Corporate Services,INTERSERVE (FACILITIES MANAGEMENT),,Large,,5106195841,Security,Bridge House Security 13-14,BS32 4NH,"3,164.70",
Communities & Local Government,DCLG,02/08/2013,Security,Finance & Corporate Services,INTERSERVE (FACILITIES MANAGEMENT),,Large,,5106195841,Security,Citygate Security 13-14,BS32 4NH,"2,510.43",
Communities & Local Government,DCLG,02/08/2013,Security,Finance & Corporate Services,INTERSERVE (FACILITIES MANAGEMENT),,Large,,5106195841,Security,Queen Street Security 13-14,BS32 4NH,"2,321.36",
Communities & Local Government,DCLG,02/08/2013,Security,Finance & Corporate Services,INTERSERVE (FACILITIES MANAGEMENT),,Large,,5106195841,Security,5SPP Security 13-14,BS32 4NH,"4,747.65",
Communities & Local Government,DCLG,02/08/2013,Security,Finance & Corporate Services,INTERSERVE (FACILITIES MANAGEMENT),,Large,,5106195841,Security,Paradise Security 13-14,BS32 4NH,"2,114.36",
Communities & Local Government,DCLG,02/08/2013,Software Licences,Finance & Corporate Services,VODAFONE BUSINESS SOLUTIONS,,Large,,5106195861,Software,BES licences for FUJITSU transition,RG14 5FF,"3,480.43",
Communities & Local Government,DCLG,02/08/2013,Telecoms equipment (non-capitalised),Finance & Corporate Services,B T PAYMENT SERVICES LTD,,Large,,5106195853,Telecoms,Call charges to 6 July2013,DH98 1BT,"2,808.40",
Communities & Local Government,DCLG,02/08/2013,Travel and Subsistence Account,Localism,CFOA (NATIONAL RESILIANCE) LTD,,Small,,5106195847,Business Travel,ESMCP Secondee's Expense,GL56 0RH,"2,517.70",
Communities & Local Government,DCLG,02/08/2013,Vehicle hire,Finance & Corporate Services,GOVERNMENT CAR & DESPATCH AGENCY,,Public Bodies,,5106195699,Vehicle Hire and Lease,Ministerial Cars,SW8 5AX,247.50,
Communities & Local Government,DCLG,02/08/2013,Waste Disposal and pest control,Finance & Corporate Services,INTERSERVE (FACILITIES MANAGEMENT),,Large,,5106195841,Waste Management Services,Eland House Waste 13-14,BS32 4NH,"3,244.34",
Communities & Local Government,DCLG,02/08/2013,Waste Disposal and pest control,Finance & Corporate Services,INTERSERVE (FACILITIES MANAGEMENT),,Large,,5106195841,Waste Management Services,TQH Waste 13-14,BS32 4NH,"1,301.76",
Communities & Local Government,DCLG,02/08/2013,Waste Disposal and pest control,Finance & Corporate Services,INTERSERVE (FACILITIES MANAGEMENT),,Large,,5106195841,Waste Management Services,Hemel Hemp Waste 13-14,BS32 4NH,267.48,
Communities & Local Government,DCLG,02/08/2013,Waste Disposal and pest control,Finance & Corporate Services,INTERSERVE (FACILITIES MANAGEMENT),,Large,,5106195841,Waste Management Services,Rivergate Waste 13-14,BS32 4NH,917.18,
Communities & Local Government,DCLG,02/08/2013,Waste Disposal and pest control,Finance & Corporate Services,INTERSERVE (FACILITIES MANAGEMENT),,Large,,5106195841,Waste Management Services,Bridge House Waste 13-14,BS32 4NH,516.30,
Communities & Local Government,DCLG,02/08/2013,Waste Disposal and pest control,Finance & Corporate Services,INTERSERVE (FACILITIES MANAGEMENT),,Large,,5106195841,Waste Management Services,Citygate Waste 13-14,BS32 4NH,868.70,
Communities & Local Government,DCLG,02/08/2013,Waste Disposal and pest control,Finance & Corporate Services,INTERSERVE (FACILITIES MANAGEMENT),,Large,,5106195841,Waste Management Services,Queen Street Waste 13-14,BS32 4NH,476.25,
Communities & Local Government,DCLG,02/08/2013,Waste Disposal and pest control,Finance & Corporate Services,INTERSERVE (FACILITIES MANAGEMENT),,Large,,5106195841,Waste Management Services,5SPP Waste 13-14,BS32 4NH,858.73,
Communities & Local Government,DCLG,02/08/2013,Waste Disposal and pest control,Finance & Corporate Services,INTERSERVE (FACILITIES MANAGEMENT),,Large,,5106195841,Waste Management Services,Paradise Waste 13-14,BS32 4NH,498.92,
Communities & Local Government,DCLG,02/08/2013,Work In Progress Pre-Cert 40373 Spend,Neighbourhoods,BIOCITY NOTTINGHAM LIMITED,,Small,,7600005816,,Revenue Grant To Be Paid,NG1 1GF,571.90,Yes
Communities & Local Government,DCLG,02/08/2013,Work In Progress Pre-Cert 40373 Spend,Neighbourhoods,CORNWALL DEVELOPMENT COMPANY LTD,,,,7600005825,,Revenue Grant Clawback Offset,TR1 1EA,"-2,575.90",Yes
Communities & Local Government,DCLG,02/08/2013,Work In Progress Pre-Cert 40373 Spend,Neighbourhoods,CORNWALL DEVELOPMENT COMPANY LTD,,,,7600005825,,Revenue Grant To Be Paid,TR1 1EA,"41,112.32",Yes
Communities & Local Government,DCLG,02/08/2013,Work In Progress Pre-Cert 40373 Spend,Neighbourhoods,ENTERPRISE LOANS EAST MIDLANDS,,Small,,7600005813,,Revenue Grant To Be Paid,NG7 5FU,"16,945.75",Yes
Communities & Local Government,DCLG,02/08/2013,Work In Progress Pre-Cert 40373 Spend,Neighbourhoods,GO GLOBAL NORTHEAST,,Small,,7600005815,,Revenue Grant Clawback Offset,SR5 3HD,-66.08,Yes
Communities & Local Government,DCLG,02/08/2013,Work In Progress Pre-Cert 40373 Spend,Neighbourhoods,GO GLOBAL NORTHEAST,,Small,,7600005815,,Revenue Grant To Be Paid,SR5 3HD,"235,340.43",Yes
Communities & Local Government,DCLG,02/08/2013,Work In Progress Pre-Cert 40373 Spend,Neighbourhoods,KIRKLEES COUNCIL,,,,7600005817,,Revenue Grant To Be Paid,HD1 2TG,"17,290.33",Yes
Communities & Local Government,DCLG,02/08/2013,Work In Progress Pre-Cert 40373 Spend,Neighbourhoods,LEEDS CITY COUNCIL,,,,7600005807,,Revenue Grant To Be Paid,LS2 8BB,"18,112.73",Yes
Communities & Local Government,DCLG,02/08/2013,Work In Progress Pre-Cert 40373 Spend,Neighbourhoods,NORTH EAST ENTERPRISE AGENCY LTD,,,,7600005808,,Revenue Grant To Be Paid,SR3 1AX,"48,251.63",Yes
Communities & Local Government,DCLG,02/08/2013,Work In Progress Pre-Cert 40373 Spend,Neighbourhoods,NORTH EAST LINCOLNSHIRE COUNCIL,,Public Bodies,,7600005820,,Revenue Grant To Be Paid,DN31 1HN,738.06,Yes
Communities & Local Government,DCLG,02/08/2013,Work In Progress Pre-Cert 40373 Spend,Neighbourhoods,NORTH YORKSHIRE COUNTY COUNCIL,,Large,,7600005812,,Revenue Grant To Be Paid,DL7 8AL,"27,831.46",Yes
Communities & Local Government,DCLG,02/08/2013,Work In Progress Pre-Cert 40373 Spend,Neighbourhoods,NORTHUM'LAND BUSINESS SERVICES LTD,,,,7600005822,,Revenue Grant To Be Paid,NE63 8QZ,"67,500.59",Yes
Communities & Local Government,DCLG,02/08/2013,Work In Progress Pre-Cert 40373 Spend,Neighbourhoods,NTH EAST SOCIAL ENTERPRISE PARTNERS,,,,7600005821,,Revenue Grant To Be Paid,NE33 4EB,"154,619.39",Yes
Communities & Local Government,DCLG,02/08/2013,Work In Progress Pre-Cert 40373 Spend,Neighbourhoods,SOUTH DEVON COLLEGE,,,,7600005826,,Revenue Grant Clawback Offset,TQ4 7EJ,"-4,695.29",Yes
Communities & Local Government,DCLG,02/08/2013,Work In Progress Pre-Cert 40373 Spend,Neighbourhoods,SOUTH DEVON COLLEGE,,,,7600005826,,Revenue Grant To Be Paid,TQ4 7EJ,"9,614.23",Yes
Communities & Local Government,DCLG,02/08/2013,Work In Progress Pre-Cert 40373 Spend,Neighbourhoods,SOUTH DEVON COLLEGE,,,,7600005827,,Revenue Grant To Be Paid,TQ4 7EJ,"23,229.97",Yes
Communities & Local Government,DCLG,02/08/2013,Work In Progress Pre-Cert 40373 Spend,Neighbourhoods,UNIVERSITY OF SHEFFIELD,,,,7600005811,,Revenue Grant To Be Paid,S60 5TZ,"18,301.96",Yes
Communities & Local Government,DCLG,02/08/2013,Work In Progress Pre-Cert 40373 Spend,Neighbourhoods,UNIVERSITY OF SHEFFIELD,,,,7600005814,,Revenue Grant To Be Paid,S60 5TZ,"12,201.29",Yes
Communities & Local Government,DCLG,02/08/2013,Work In Progress Pre-Cert 40373 Spend,Neighbourhoods,UNIVERSITY OF SUNDERLAND,,,,7600005818,,Revenue Grant To Be Paid,SR1 3SD,"83,569.68",Yes
Communities & Local Government,DCLG,02/08/2013,Work In Progress Pre-Cert 40373 Spend,Neighbourhoods,YORK UNIVERSITY,,Large,,7600005810,,Revenue Grant To Be Paid,YO10 5DD,"9,969.56",Yes
Communities & Local Government,DCLG,02/08/2013,Work In Progress Pre-Cert 40373 Spend,Neighbourhoods,YTKO LIMITED,,,,7600005823,,Revenue Grant To Be Paid,CB4 0WS,"54,723.20",Yes
Communities & Local Government,DCLG,02/08/2013,Work In Progress Pre-Cert 40373 Spend,Neighbourhoods,YTKO LIMITED,,,,7600005824,,Revenue Grant To Be Paid,CB4 0WS,"54,723.20",Yes
Communities & Local Government,DCLG,02/08/2013,Work In Progress Pre-Cert 40467 Spend,Neighbourhoods,BIOCITY NOTTINGHAM LIMITED,,Small,,7600005816,,Capital Grant To Be Paid,NG1 1GF,318.78,Yes
Communities & Local Government,DCLG,02/08/2013,Work In Progress Pre-Cert 40467 Spend,Neighbourhoods,CORNWALL DEVELOPMENT COMPANY LTD,,,,7600005825,,Capital Grant To Be Paid,TR1 1EA,"148,007.82",Yes
Communities & Local Government,DCLG,02/08/2013,Work In Progress Pre-Cert 40467 Spend,Neighbourhoods,DURHAM COUNTY COUNCIL,,,,7600005819,,Capital Grant To Be Paid,DL16 6JQ,"181,656.19",Yes
Communities & Local Government,DCLG,02/08/2013,Work In Progress Pre-Cert 40467 Spend,Neighbourhoods,HOMES & COMMUNITIES AGENCY,,Large,,7600005806,,Capital Grant To Be Paid,NE11 0NA,"21,330.98",Yes
Communities & Local Government,DCLG,02/08/2013,Work In Progress Pre-Cert 40467 Spend,Neighbourhoods,JARRANG LTD,,,,7600005809,,Capital Grant To Be Paid,TR11 4SZ,"7,837.84",Yes
Communities & Local Government,DCLG,02/08/2013,Work In Progress Pre-Cert 40467 Spend,Neighbourhoods,KIRKLEES COUNCIL,,,,7600005817,,Capital Grant To Be Paid,HD1 2TG,"87,601.17",Yes
Communities & Local Government,DCLG,02/08/2013,Work In Progress Pre-Cert 40467 Spend,Neighbourhoods,NORTH YORKSHIRE COUNTY COUNCIL,,Large,,7600005812,,Capital Grant To Be Paid,DL7 8AL,"4,783.80",Yes
Communities & Local Government,DCLG,02/08/2013,Work In Progress Pre-Cert 40467 Spend,Neighbourhoods,UNIVERSITY OF SHEFFIELD,,,,7600005811,,Capital Grant To Be Paid,S60 5TZ,"901,312.50",Yes
Communities & Local Government,DCLG,02/08/2013,Work In Progress Pre-Cert 40467 Spend,Neighbourhoods,YORK UNIVERSITY,,Large,,7600005810,,Capital Grant To Be Paid,YO10 5DD,"59,529.04",Yes
Communities & Local Government,DCLG,05/08/2013,Agency Staff,Finance & Corporate Services,CERTES COMPUTING LTD,,Medium,,5106195898,Contingent Labour,Temporary Staff July 2013,B46 1HQ,"2,946.24",
Communities & Local Government,DCLG,05/08/2013,Agency Staff,Finance & Corporate Services,REED EMPLOYMENT SERVICES,,Large,,5106195909,Contingent Labour,Admin support for DG,SW20 0BA,579.77,
Communities & Local Government,DCLG,05/08/2013,Agency Staff,Finance & Corporate Services,REED EMPLOYMENT SERVICES,,Large,,5106195911,Contingent Labour,PA admin,SW20 0BA,606.88,
Communities & Local Government,DCLG,05/08/2013,Agency Staff,Finance & Corporate Services,REED EMPLOYMENT SERVICES,,Large,,5106195912,Contingent Labour,Admin support for DG,SW20 0BA,596.82,
Communities & Local Government,DCLG,05/08/2013,Current Grants to Non Profit Bodies,Localism,ANNE FRANK TRUST UK LTD,,Small,,2100233183,,Anne Frank Educational Programme,NW5 4B4,"50,406.00",Yes
Communities & Local Government,DCLG,05/08/2013,Current Grants to Non Profit Bodies,Localism,FAITH MATTERS,Yes,Small,,2100233186,,Tell MAMA Funding for August and September 2013,SW7 1EE,"20,722.00",Yes
Communities & Local Government,DCLG,05/08/2013,Current Grants to Non Profit Bodies,Localism,KEEP BRITAIN TIDY,,Medium,,2100233182,,Support for KBT for  Love Parks  week,WN3 4EX,"4,500.00",Yes
Communities & Local Government,DCLG,05/08/2013,Fixed Maintenance,Neighbourhoods,E C HARRIS LLP,,Large,,5106195751,Construction Service Providers,ERDF SW LDU QS Services to Feb 14,N1 9AB,450.00,
Communities & Local Government,DCLG,05/08/2013,Office Supplies,Finance & Corporate Services,DANWOOD FINANCE LIMITED,,Large,,5106195895,Office Supplies,Hemel Photocopiers,RH1 1NY,318.64,
Communities & Local Government,DCLG,05/08/2013,Professional services,Neighbourhoods,E C HARRIS LLP,,Large,,5106195753,Construction Service Providers,ERDF Southwest QS Services,N1 9AB,"4,266.00",
Communities & Local Government,DCLG,05/08/2013,Professional services,Neighbourhoods,LONDON PENSIONS FUND AUTHORITY,,Public Bodies,,5106195874,Financial,admin of pensions for LTGDC,EC3N 4LP,"1,880.00",
Communities & Local Government,DCLG,05/08/2013,Research,Neighbourhoods,ROYAL TOWN PLANNING INSTITUTE-NW,,Medium,,5106195910,Operational Services,European Structural Fund Programme Costs,EC3R 8DL,"10,864.20",
Communities & Local Government,DCLG,05/08/2013,Research,Neighbourhoods,ROYAL TOWN PLANNING INSTITUTE-NW,,Medium,,5106195910,Operational Services,European Structural Fund Programme Costs,EC3R 8DL,71.10,
Communities & Local Government,DCLG,05/08/2013,Services provided by other Govt Orgs,Finance & Corporate Services,DEPT FOR EDUCATION,,Public Bodies,,5106195843,Business and Commercial Services,DCLG Security Vetting 2013-14,CF14 3UW,"3,226.40",Yes
Communities & Local Government,DCLG,05/08/2013,Steady State Service Provision,Finance & Corporate Services,VALUATION OFFICE AGENCY,,Public Bodies,,5106195889,Business Process Outsourcing Services,Research - Study of Land Values,W1B 5BU,"24,000.00",
Communities & Local Government,DCLG,05/08/2013,Training,Finance & Corporate Services,CAPITA BUSINESS SERVICES LTD,,Large,,5106195756,Development and Training,Fast Stream Training - Mid Term courses,DL1 9HB,-616.00,
Communities & Local Government,DCLG,05/08/2013,Training,Finance & Corporate Services,CAPITA BUSINESS SERVICES LTD,,Large,,5106195897,Development and Training,CS Training - Leadership and Management,DL1 9HB,777.00,
Communities & Local Government,DCLG,05/08/2013,Vehicle hire,Finance & Corporate Services,GOVERNMENT CAR & DESPATCH AGENCY,,Public Bodies,,5106195684,Vehicle Hire and Lease,Ministerial Cars,SW8 5AX,393.75,
Communities & Local Government,DCLG,05/08/2013,Vehicle hire,Finance & Corporate Services,GOVERNMENT CAR & DESPATCH AGENCY,,Public Bodies,,5106195892,Vehicle Hire and Lease,Ministerial Cars,SW8 5AX,738.75,
Communities & Local Government,DCLG,05/08/2013,Vehicle Maintenance,Localism,BABCOCK CRITICAL SERVICES LTD,,Large,,5106195775,Fleet Management,Unplanned Maintainance,NG15 0DR,"27,234.50",
Communities & Local Government,DCLG,05/08/2013,Vehicle Maintenance,Localism,BABCOCK CRITICAL SERVICES LTD,,Large,,5106195917,Fleet Management,Fixed cost 13/14,NG15 0DR,"543,813.19",
Communities & Local Government,DCLG,05/08/2013,Work In Progress Pre-Cert 40373 Spend,Neighbourhoods,ARKWRIGHT SOCIETY LTD,,Small,,7600005834,,Revenue Grant To Be Paid,DE4 3RQ,507.62,Yes
Communities & Local Government,DCLG,05/08/2013,Work In Progress Pre-Cert 40373 Spend,Neighbourhoods,LOUGHBOROUGH UNIVERSITY,,Large,,7600005829,,Revenue Grant To Be Paid,LE11 3TU,"23,960.92",Yes
Communities & Local Government,DCLG,05/08/2013,Work In Progress Pre-Cert 40373 Spend,Neighbourhoods,MANSFIELD DISTRICT COUNCIL,,Large,,7600005836,,Revenue Grant To Be Paid,NG19 7BH,"2,153.98",Yes
Communities & Local Government,DCLG,05/08/2013,Work In Progress Pre-Cert 40373 Spend,Neighbourhoods,NOTTINGHAM UNIVERSITY,,Large,,7600005828,,Revenue Grant To Be Paid,NG7 2RD,"74,351.87",Yes
Communities & Local Government,DCLG,05/08/2013,Work In Progress Pre-Cert 40373 Spend,Neighbourhoods,NOTTINGHAM UNIVERSITY,,Large,,7600005830,,Revenue Grant To Be Paid,NG7 2RD,"18,953.44",Yes
Communities & Local Government,DCLG,05/08/2013,Work In Progress Pre-Cert 40373 Spend,Neighbourhoods,NOTTINGHAM UNIVERSITY,,Large,,7600005831,,Revenue Grant To Be Paid,NG7 2RD,"66,912.68",Yes
Communities & Local Government,DCLG,05/08/2013,Work In Progress Pre-Cert 40373 Spend,Neighbourhoods,NOTTINGHAM UNIVERSITY,,Large,,7600005832,,Revenue Grant To Be Paid,NG7 2RD,"16,538.62",Yes
Communities & Local Government,DCLG,05/08/2013,Work In Progress Pre-Cert 40467 Spend,Neighbourhoods,ARKWRIGHT SOCIETY LTD,,Small,,7600005834,,Capital Grant To Be Paid,DE4 3RQ,"183,643.65",Yes
Communities & Local Government,DCLG,05/08/2013,Work In Progress Pre-Cert 40467 Spend,Neighbourhoods,DERBY CITY COUNCIL,,Large,,7600005835,,Capital Grant To Be Paid,DE1 2FE,"10,050.72",Yes
Communities & Local Government,DCLG,05/08/2013,Work In Progress Pre-Cert 40467 Spend,Neighbourhoods,MANSFIELD DISTRICT COUNCIL,,Large,,7600005836,,Capital Grant To Be Paid,NG19 7BH,"163,902.89",Yes
Communities & Local Government,DCLG,05/08/2013,Work In Progress Pre-Cert 40467 Spend,Neighbourhoods,NOTTINGHAM UNIVERSITY,,Large,,7600005831,,Capital Grant To Be Paid,NG7 2RD,"95,604.50",Yes
Communities & Local Government,DCLG,06/08/2013,Agency Staff,Finance & Corporate Services,MANPOWER UK LTD,,Large,,5106195937,Contingent Labour,+12 weeks Higher Rate,UB8 1AB,384.29,
Communities & Local Government,DCLG,06/08/2013,Agency Staff,Finance & Corporate Services,SBS GROUP (UK) LTD,,Large,,5106195929,Contingent Labour,SAP Technical Support,EC1N 8TS,"3,546.00",
Communities & Local Government,DCLG,06/08/2013,Current Grants to Non Profit Bodies,Neighbourhoods,CHARTERED INST OF HOUSING,,Medium,,5000232266,,Supporting People Project 3,CV4 8JP,"20,000.00",Yes
Communities & Local Government,DCLG,06/08/2013,Current Grants to Non Profit Bodies,Neighbourhoods,CITIZENS ADVICE,,,,5000232267,,Home Project 1,NE1 8AF,"221,293.00",Yes
Communities & Local Government,DCLG,06/08/2013,Current Grants to Non Profit Bodies,Neighbourhoods,CRISIS UK,Yes,Medium,,5000232268,,Home Project 1,E1 6LT,"280,000.00",Yes
Communities & Local Government,DCLG,06/08/2013,Current Grants to Non Profit Bodies,Neighbourhoods,HOMELESS LINK,Yes,,,5000232269,,Home Project 3,SE11 4AP,"78,750.00",Yes
Communities & Local Government,DCLG,06/08/2013,Current Grants to Non Profit Bodies,Neighbourhoods,HOMELESS LINK,Yes,,,5000232270,,Home Project 1,SE11 4AP,"375,000.00",Yes
Communities & Local Government,DCLG,06/08/2013,Current Grants to Non Profit Bodies,Neighbourhoods,PASSAGE,,,,5000232275,,Home Project 1,SW1P 1NL,"25,400.00",Yes
Communities & Local Government,DCLG,06/08/2013,Current Grants to Non Profit Bodies,Neighbourhoods,SITRA (SERVICES),Yes,Small,,5000232272,,Supporting People Project 2,SW8 1SJ,"14,704.00",Yes
Communities & Local Government,DCLG,06/08/2013,Current Grants to Non Profit Bodies,Neighbourhoods,SITRA (SERVICES),Yes,Small,,5000232273,,Supporting People Project 1,SW8 1SJ,"59,102.00",Yes
Communities & Local Government,DCLG,06/08/2013,Current Grants to Non Profit Bodies,Neighbourhoods,ST BASILS CENTRE,,,,5000232271,,Home Project 1,B9 4AX,"52,500.00",Yes
Communities & Local Government,DCLG,06/08/2013,Current Grants to Non Profit Bodies,Neighbourhoods,WOMEN'S AID FEDERATION,Yes,,,5000232274,,Home Project 1,BS99 7WS,"31,250.00",Yes
Communities & Local Government,DCLG,06/08/2013,Fixed Maintenance,Neighbourhoods,E C HARRIS LLP,,Large,,5106195939,Construction Service Providers,ERDF ER LDU QS Services to Feb 14,N1 9AB,"1,826.00",
Communities & Local Government,DCLG,06/08/2013,IT - Service Contracts,Finance & Corporate Services,PROCSERVE SHARED SERVICES LTD,,Large,,5106195882,Managed / Outsourced Services,32mths subscriptions Jul 2011-Jul 2014,SW1W 9SR,"6,176.64",
Communities & Local Government,DCLG,06/08/2013,IT - Service Contracts,Finance & Corporate Services,STERIA LTD,,Large,,5106195923,Managed / Outsourced Services,SQ - Exchange Server Profile Analyzer,M14 0WN,"2,423.08",
Communities & Local Government,DCLG,06/08/2013,Professional services,Finance & Corporate Services,E C HARRIS LLP,,Large,,5106195928,Construction Service Providers,PAMU Com 23 - additional resource - FE,N1 9AB,"10,488.00",
Communities & Local Government,DCLG,06/08/2013,Professional services,Neighbourhoods,MR R S MILNE,,,,2100233245,Environmental Services,Production of weekly e-newsletter sent via Planning Portal,,"1,133.00",
Communities & Local Government,DCLG,06/08/2013,Professional services,Neighbourhoods,MS E M COCHRANE,,,,2100233244,Environmental Services,Production of weekly e-newsletter sent via Planning Portal,,"1,359.60",
Communities & Local Government,DCLG,06/08/2013,Publicity,Finance & Corporate Services,PRESS ASSOCIATION,,Large,,5106195936,Advertising,Press Association - NewsWire service,DN14 7YH,"1,240.93",
Communities & Local Government,DCLG,06/08/2013,Telecoms equipment (non-capitalised),Finance & Corporate Services,DAMOVO UK LTD,,Large,,5106195944,Telecoms,Routine Engineering and powerdowns,RH12 4QP,660.24,
Communities & Local Government,DCLG,06/08/2013,Travel and Subsistence Account,Finance & Corporate Services,REDFERN TRAVEL LIMITED,,Small,,2100233254,Business Travel,Monthly Consolidated Travel Costs July 13,BD1 3AZ,936.21,
Communities & Local Government,DCLG,06/08/2013,Travel and Subsistence Account,Finance & Corporate Services,REDFERN TRAVEL LIMITED,,Small,,2100233254,Business Travel,Monthly Consolidated Travel Costs July 13,BD1 3AZ,255.14,
Communities & Local Government,DCLG,06/08/2013,Travel and Subsistence Account,Finance & Corporate Services,REDFERN TRAVEL LIMITED,,Small,,2100233254,Business Travel,Monthly Consolidated Travel Costs July 13,BD1 3AZ,579.27,
Communities & Local Government,DCLG,06/08/2013,Travel and Subsistence Account,Finance & Corporate Services,REDFERN TRAVEL LIMITED,,Small,,2100233254,Business Travel,Monthly Consolidated Travel Costs July 13,BD1 3AZ,596.61,
Communities & Local Government,DCLG,06/08/2013,Travel and Subsistence Account,Finance & Corporate Services,REDFERN TRAVEL LIMITED,,Small,,2100233254,Business Travel,Monthly Consolidated Travel Costs July 13,BD1 3AZ,"6,341.24",
Communities & Local Government,DCLG,06/08/2013,Travel and Subsistence Account,Finance & Corporate Services,REDFERN TRAVEL LIMITED,,Small,,2100233254,Business Travel,Monthly Consolidated Travel Costs July 13,BD1 3AZ,455.55,
Communities & Local Government,DCLG,06/08/2013,Travel and Subsistence Account,Finance & Corporate Services,REDFERN TRAVEL LIMITED,,Small,,2100233254,Business Travel,Monthly Consolidated Travel Costs July 13,BD1 3AZ,273.58,
Communities & Local Government,DCLG,06/08/2013,Travel and Subsistence Account,Finance & Corporate Services,REDFERN TRAVEL LIMITED,,Small,,2100233254,Business Travel,Monthly Consolidated Travel Costs July 13,BD1 3AZ,"2,378.58",
Communities & Local Government,DCLG,06/08/2013,Travel and Subsistence Account,Finance & Corporate Services,REDFERN TRAVEL LIMITED,,Small,,2100233254,Business Travel,Monthly Consolidated Travel Costs July 13,BD1 3AZ,665.87,
Communities & Local Government,DCLG,06/08/2013,Travel and Subsistence Account,Finance & Corporate Services,REDFERN TRAVEL LIMITED,,Small,,2100233254,Business Travel,Monthly Consolidated Travel Costs July 13,BD1 3AZ,"5,699.16",
Communities & Local Government,DCLG,06/08/2013,Travel and Subsistence Account,Finance & Corporate Services,REDFERN TRAVEL LIMITED,,Small,,2100233254,Business Travel,Monthly Consolidated Travel Costs July 13,BD1 3AZ,"1,007.45",
Communities & Local Government,DCLG,06/08/2013,Travel and Subsistence Account,Finance & Corporate Services,REDFERN TRAVEL LIMITED,,Small,,2100233254,Business Travel,Monthly Consolidated Travel Costs July 13,BD1 3AZ,"1,483.42",
Communities & Local Government,DCLG,06/08/2013,Travel and Subsistence Account,Finance & Corporate Services,REDFERN TRAVEL LIMITED,,Small,,2100233254,Business Travel,Monthly Consolidated Travel Costs July 13,BD1 3AZ,"2,086.00",
Communities & Local Government,DCLG,06/08/2013,Travel and Subsistence Account,Finance & Corporate Services,REDFERN TRAVEL LIMITED,,Small,,2100233254,Business Travel,Monthly Consolidated Travel Costs July 13,BD1 3AZ,353.94,
Communities & Local Government,DCLG,06/08/2013,Travel and Subsistence Account,Finance & Corporate Services,REDFERN TRAVEL LIMITED,,Small,,2100233254,Business Travel,Monthly Consolidated Travel Costs July 13,BD1 3AZ,"2,701.28",
Communities & Local Government,DCLG,06/08/2013,Travel and Subsistence Account,Finance & Corporate Services,REDFERN TRAVEL LIMITED,,Small,,2100233254,Business Travel,Monthly Consolidated Travel Costs July 13,BD1 3AZ,298.42,
Communities & Local Government,DCLG,06/08/2013,Travel and Subsistence Account,Localism,REDFERN TRAVEL LIMITED,,Small,,2100233254,Business Travel,Monthly Consolidated Travel Costs July 13,BD1 3AZ,538.33,
Communities & Local Government,DCLG,06/08/2013,Travel and Subsistence Account,Localism,REDFERN TRAVEL LIMITED,,Small,,2100233254,Business Travel,Monthly Consolidated Travel Costs July 13,BD1 3AZ,471.00,
Communities & Local Government,DCLG,06/08/2013,Travel and Subsistence Account,Localism,REDFERN TRAVEL LIMITED,,Small,,2100233254,Business Travel,Monthly Consolidated Travel Costs July 13,BD1 3AZ,858.65,
Communities & Local Government,DCLG,06/08/2013,Travel and Subsistence Account,Localism,REDFERN TRAVEL LIMITED,,Small,,2100233254,Business Travel,Monthly Consolidated Travel Costs July 13,BD1 3AZ,315.13,
Communities & Local Government,DCLG,06/08/2013,Travel and Subsistence Account,Localism,REDFERN TRAVEL LIMITED,,Small,,2100233254,Business Travel,Monthly Consolidated Travel Costs July 13,BD1 3AZ,956.04,
Communities & Local Government,DCLG,06/08/2013,Travel and Subsistence Account,Localism,REDFERN TRAVEL LIMITED,,Small,,2100233254,Business Travel,Monthly Consolidated Travel Costs July 13,BD1 3AZ,469.24,
Communities & Local Government,DCLG,06/08/2013,Travel and Subsistence Account,Localism,REDFERN TRAVEL LIMITED,,Small,,2100233254,Business Travel,Monthly Consolidated Travel Costs July 13,BD1 3AZ,"1,055.61",
Communities & Local Government,DCLG,06/08/2013,Travel and Subsistence Account,Localism,REDFERN TRAVEL LIMITED,,Small,,2100233254,Business Travel,Monthly Consolidated Travel Costs July 13,BD1 3AZ,802.31,
Communities & Local Government,DCLG,06/08/2013,Travel and Subsistence Account,Localism,REDFERN TRAVEL LIMITED,,Small,,2100233254,Business Travel,Monthly Consolidated Travel Costs July 13,BD1 3AZ,459.78,
Communities & Local Government,DCLG,06/08/2013,Travel and Subsistence Account,Localism,REDFERN TRAVEL LIMITED,,Small,,2100233254,Business Travel,Monthly Consolidated Travel Costs July 13,BD1 3AZ,"1,300.03",
Communities & Local Government,DCLG,06/08/2013,Travel and Subsistence Account,Localism,REDFERN TRAVEL LIMITED,,Small,,2100233254,Business Travel,Monthly Consolidated Travel Costs July 13,BD1 3AZ,"1,055.42",
Communities & Local Government,DCLG,06/08/2013,Travel and Subsistence Account,Localism,REDFERN TRAVEL LIMITED,,Small,,2100233254,Business Travel,Monthly Consolidated Travel Costs July 13,BD1 3AZ,"4,442.35",
Communities & Local Government,DCLG,06/08/2013,Travel and Subsistence Account,Localism,REDFERN TRAVEL LIMITED,,Small,,2100233254,Business Travel,Monthly Consolidated Travel Costs July 13,BD1 3AZ,"2,146.26",
Communities & Local Government,DCLG,06/08/2013,Travel and Subsistence Account,Localism,REDFERN TRAVEL LIMITED,,Small,,2100233254,Business Travel,Monthly Consolidated Travel Costs July 13,BD1 3AZ,"2,187.64",
Communities & Local Government,DCLG,06/08/2013,Travel and Subsistence Account,Localism,REDFERN TRAVEL LIMITED,,Small,,2100233254,Business Travel,Monthly Consolidated Travel Costs July 13,BD1 3AZ,"1,086.00",
Communities & Local Government,DCLG,06/08/2013,Travel and Subsistence Account,Localism,REDFERN TRAVEL LIMITED,,Small,,2100233254,Business Travel,Monthly Consolidated Travel Costs July 13,BD1 3AZ,407.45,
Communities & Local Government,DCLG,06/08/2013,Travel and Subsistence Account,Localism,REDFERN TRAVEL LIMITED,,Small,,2100233254,Business Travel,Monthly Consolidated Travel Costs July 13,BD1 3AZ,599.47,
Communities & Local Government,DCLG,06/08/2013,Travel and Subsistence Account,Localism,REDFERN TRAVEL LIMITED,,Small,,2100233254,Business Travel,Monthly Consolidated Travel Costs July 13,BD1 3AZ,276.65,
Communities & Local Government,DCLG,06/08/2013,Travel and Subsistence Account,Localism,REDFERN TRAVEL LIMITED,,Small,,2100233254,Business Travel,Monthly Consolidated Travel Costs July 13,BD1 3AZ,"2,665.97",
Communities & Local Government,DCLG,06/08/2013,Travel and Subsistence Account,Localism,REDFERN TRAVEL LIMITED,,Small,,2100233254,Business Travel,Monthly Consolidated Travel Costs July 13,BD1 3AZ,"3,907.44",
Communities & Local Government,DCLG,06/08/2013,Travel and Subsistence Account,Neighbourhoods,REDFERN TRAVEL LIMITED,,Small,,2100233254,Business Travel,Monthly Consolidated Travel Costs July 13,BD1 3AZ,311.87,
Communities & Local Government,DCLG,06/08/2013,Travel and Subsistence Account,Neighbourhoods,REDFERN TRAVEL LIMITED,,Small,,2100233254,Business Travel,Monthly Consolidated Travel Costs July 13,BD1 3AZ,"1,374.15",
Communities & Local Government,DCLG,06/08/2013,Travel and Subsistence Account,Neighbourhoods,REDFERN TRAVEL LIMITED,,Small,,2100233254,Business Travel,Monthly Consolidated Travel Costs July 13,BD1 3AZ,327.04,
Communities & Local Government,DCLG,06/08/2013,Travel and Subsistence Account,Neighbourhoods,REDFERN TRAVEL LIMITED,,Small,,2100233254,Business Travel,Monthly Consolidated Travel Costs July 13,BD1 3AZ,"1,419.06",
Communities & Local Government,DCLG,06/08/2013,Travel and Subsistence Account,Neighbourhoods,REDFERN TRAVEL LIMITED,,Small,,2100233254,Business Travel,Monthly Consolidated Travel Costs July 13,BD1 3AZ,"4,102.66",
Communities & Local Government,DCLG,06/08/2013,Travel and Subsistence Account,Neighbourhoods,REDFERN TRAVEL LIMITED,,Small,,2100233254,Business Travel,Monthly Consolidated Travel Costs July 13,BD1 3AZ,534.56,
Communities & Local Government,DCLG,06/08/2013,Travel and Subsistence Account,Neighbourhoods,REDFERN TRAVEL LIMITED,,Small,,2100233254,Business Travel,Monthly Consolidated Travel Costs July 13,BD1 3AZ,"5,315.14",
Communities & Local Government,DCLG,06/08/2013,Travel and Subsistence Account,Neighbourhoods,REDFERN TRAVEL LIMITED,,Small,,2100233254,Business Travel,Monthly Consolidated Travel Costs July 13,BD1 3AZ,"5,855.51",
Communities & Local Government,DCLG,06/08/2013,Travel and Subsistence Account,Neighbourhoods,REDFERN TRAVEL LIMITED,,Small,,2100233254,Business Travel,Monthly Consolidated Travel Costs July 13,BD1 3AZ,"1,411.87",
Communities & Local Government,DCLG,06/08/2013,Travel and Subsistence Account,Neighbourhoods,REDFERN TRAVEL LIMITED,,Small,,2100233254,Business Travel,Monthly Consolidated Travel Costs July 13,BD1 3AZ,"4,290.66",
Communities & Local Government,DCLG,06/08/2013,Travel and Subsistence Account,Neighbourhoods,REDFERN TRAVEL LIMITED,,Small,,2100233254,Business Travel,Monthly Consolidated Travel Costs July 13,BD1 3AZ,"3,821.41",
Communities & Local Government,DCLG,06/08/2013,Travel and Subsistence Account,Neighbourhoods,REDFERN TRAVEL LIMITED,,Small,,2100233254,Business Travel,Monthly Consolidated Travel Costs July 13,BD1 3AZ,"1,090.36",
Communities & Local Government,DCLG,06/08/2013,Travel and Subsistence Account,Neighbourhoods,REDFERN TRAVEL LIMITED,,Small,,2100233254,Business Travel,Monthly Consolidated Travel Costs July 13,BD1 3AZ,655.73,
Communities & Local Government,DCLG,06/08/2013,Travel and Subsistence Account,Neighbourhoods,REDFERN TRAVEL LIMITED,,Small,,2100233254,Business Travel,Monthly Consolidated Travel Costs July 13,BD1 3AZ,656.59,
Communities & Local Government,DCLG,06/08/2013,Travel and Subsistence Account,Neighbourhoods,REDFERN TRAVEL LIMITED,,Small,,2100233254,Business Travel,Monthly Consolidated Travel Costs July 13,BD1 3AZ,"1,956.57",
Communities & Local Government,DCLG,06/08/2013,Travel and Subsistence Account,Neighbourhoods,REDFERN TRAVEL LIMITED,,Small,,2100233254,Business Travel,Monthly Consolidated Travel Costs July 13,BD1 3AZ,"1,285.10",
Communities & Local Government,DCLG,06/08/2013,Travel and Subsistence Account,Neighbourhoods,REDFERN TRAVEL LIMITED,,Small,,2100233254,Business Travel,Monthly Consolidated Travel Costs July 13,BD1 3AZ,"3,003.87",
Communities & Local Government,DCLG,06/08/2013,Travel and Subsistence Account,Neighbourhoods,REDFERN TRAVEL LIMITED,,Small,,2100233254,Business Travel,Monthly Consolidated Travel Costs July 13,BD1 3AZ,"2,931.15",
Communities & Local Government,DCLG,06/08/2013,Travel and Subsistence Account,Neighbourhoods,REDFERN TRAVEL LIMITED,,Small,,2100233254,Business Travel,Monthly Consolidated Travel Costs July 13,BD1 3AZ,"2,259.56",
Communities & Local Government,DCLG,06/08/2013,Travel and Subsistence Account,Neighbourhoods,REDFERN TRAVEL LIMITED,,Small,,2100233254,Business Travel,Monthly Consolidated Travel Costs July 13,BD1 3AZ,"2,915.73",
Communities & Local Government,DCLG,06/08/2013,Travel and Subsistence Account,Neighbourhoods,REDFERN TRAVEL LIMITED,,Small,,2100233254,Business Travel,Monthly Consolidated Travel Costs July 13,BD1 3AZ,"1,694.05",
Communities & Local Government,DCLG,06/08/2013,Travel and Subsistence Account,Neighbourhoods,REDFERN TRAVEL LIMITED,,Small,,2100233254,Business Travel,Monthly Consolidated Travel Costs July 13,BD1 3AZ,257.18,
Communities & Local Government,DCLG,06/08/2013,Travel and Subsistence Account,Neighbourhoods,REDFERN TRAVEL LIMITED,,Small,,2100233254,Business Travel,Monthly Consolidated Travel Costs July 13,BD1 3AZ,"1,213.45",
Communities & Local Government,DCLG,06/08/2013,Travel and Subsistence Account,Neighbourhoods,REDFERN TRAVEL LIMITED,,Small,,2100233254,Business Travel,Monthly Consolidated Travel Costs July 13,BD1 3AZ,"3,359.96",
Communities & Local Government,DCLG,06/08/2013,Travel and Subsistence Account,Neighbourhoods,REDFERN TRAVEL LIMITED,,Small,,2100233254,Business Travel,Monthly Consolidated Travel Costs July 13,BD1 3AZ,337.41,
Communities & Local Government,DCLG,06/08/2013,Travel and Subsistence Account,Strategic Performance Team,REDFERN TRAVEL LIMITED,,Small,,2100233254,Business Travel,Monthly Consolidated Travel Costs July 13,BD1 3AZ,"1,476.59",
Communities & Local Government,DCLG,06/08/2013,Travel and Subsistence Account,Troubled Families,REDFERN TRAVEL LIMITED,,Small,,2100233254,Business Travel,Monthly Consolidated Travel Costs July 13,BD1 3AZ,"4,416.34",
Communities & Local Government,DCLG,06/08/2013,Work In Progress Pre-Cert 40373 Spend,Neighbourhoods,BIORENEWABLES DEVELOPMENT CENTRE LT,,,,7600005863,,Revenue Grant To Be Paid,YO10 5NY,"88,591.69",Yes
Communities & Local Government,DCLG,06/08/2013,Work In Progress Pre-Cert 40373 Spend,Neighbourhoods,BRADFORD ENTERPRISE AGENCY LIMITED,,Micro,,7600005865,,Revenue Grant To Be Paid,BD1 0AH,"2,320.00",Yes
Communities & Local Government,DCLG,06/08/2013,Work In Progress Pre-Cert 40373 Spend,Neighbourhoods,CASE TRAINING SERVICES LTD,Yes,Small,,7600005846,,Revenue Grant To Be Paid,HU2 8DQ,"2,761.34",Yes
Communities & Local Government,DCLG,06/08/2013,Work In Progress Pre-Cert 40373 Spend,Neighbourhoods,CASE-DA,,Micro,,7600005873,,Revenue Grant To Be Paid,LE1 7EA,"33,241.50",Yes
Communities & Local Government,DCLG,06/08/2013,Work In Progress Pre-Cert 40373 Spend,Neighbourhoods,COMMUNITY FOUNDATION FOR LEEDS,Yes,Micro,,7600005838,,Revenue Grant To Be Paid,LS1 2TE,"2,884.21",Yes
Communities & Local Government,DCLG,06/08/2013,Work In Progress Pre-Cert 40373 Spend,Neighbourhoods,COMMUNITY FOUNDATION FOR LEEDS,Yes,Micro,,7600005839,,Revenue Grant To Be Paid,LS1 2TE,"7,940.87",Yes
Communities & Local Government,DCLG,06/08/2013,Work In Progress Pre-Cert 40373 Spend,Neighbourhoods,DURHAM COUNTY COUNCIL,,,,7600005860,,Revenue Grant To Be Paid,DL16 6JQ,"16,401.75",Yes
Communities & Local Government,DCLG,06/08/2013,Work In Progress Pre-Cert 40373 Spend,Neighbourhoods,FOOD &  DRINK FORUM LTD (I-NET),,Small,,2300002035,,Recovery of ERDF Grant,NG5 9RG,"-2,638.65",Yes
Communities & Local Government,DCLG,06/08/2013,Work In Progress Pre-Cert 40373 Spend,Neighbourhoods,GENERATOR,,Micro,,7600005852,,Revenue Grant To Be Paid,NE1 2PQ,"59,760.77",Yes
Communities & Local Government,DCLG,06/08/2013,Work In Progress Pre-Cert 40373 Spend,Neighbourhoods,HUDDERSFIELD UNIVERISTY,,,,7600005858,,Revenue Grant Clawback Offset,HD1 3DH,-119.19,Yes
Communities & Local Government,DCLG,06/08/2013,Work In Progress Pre-Cert 40373 Spend,Neighbourhoods,HUDDERSFIELD UNIVERISTY,,,,7600005858,,Revenue Grant To Be Paid,HD1 3DH,"7,491.49",Yes
Communities & Local Government,DCLG,06/08/2013,Work In Progress Pre-Cert 40373 Spend,Neighbourhoods,HUDDERSFIELD UNIVERISTY,,,,7600005859,,Revenue Grant Clawback Offset,HD1 3DH,-639.07,Yes
Communities & Local Government,DCLG,06/08/2013,Work In Progress Pre-Cert 40373 Spend,Neighbourhoods,HUDDERSFIELD UNIVERISTY,,,,7600005859,,Revenue Grant To Be Paid,HD1 3DH,"22,979.10",Yes
Communities & Local Government,DCLG,06/08/2013,Work In Progress Pre-Cert 40373 Spend,Neighbourhoods,KEY FUND INVESTMENTS LTD,,Small,,7600005848,,Revenue Grant To Be Paid,S9 3TY,"3,286.73",Yes
Communities & Local Government,DCLG,06/08/2013,Work In Progress Pre-Cert 40373 Spend,Neighbourhoods,KEY FUND INVESTMENTS LTD,,Small,,7600005849,,Revenue Grant To Be Paid,S9 3TY,"3,657.95",Yes
Communities & Local Government,DCLG,06/08/2013,Work In Progress Pre-Cert 40373 Spend,Neighbourhoods,KIRKLEES COUNCIL,,,,7600005854,,Revenue Grant To Be Paid,HD1 2TG,"18,995.13",Yes
Communities & Local Government,DCLG,06/08/2013,Work In Progress Pre-Cert 40373 Spend,Neighbourhoods,KIRKLEES COUNCIL,,,,7600005855,,Revenue Grant To Be Paid,HD1 2TG,"4,976.27",Yes
Communities & Local Government,DCLG,06/08/2013,Work In Progress Pre-Cert 40373 Spend,Neighbourhoods,LOUGHBOROUGH UNIVERSITY,,Large,,7600005870,,Revenue Grant To Be Paid,LE11 3TU,"21,863.36",Yes
Communities & Local Government,DCLG,06/08/2013,Work In Progress Pre-Cert 40373 Spend,Neighbourhoods,MEDIAWORKS TRUST,,Small,,7600005874,,Revenue Grant To Be Paid,DE22 3RG,"1,291.38",Yes
Communities & Local Government,DCLG,06/08/2013,Work In Progress Pre-Cert 40373 Spend,Neighbourhoods,NOTTINGHAM TRENT UNIVERSITY,,Large,,7600005872,,Revenue Grant Clawback Offset,NG1 4FZ,"-5,378.03",Yes
Communities & Local Government,DCLG,06/08/2013,Work In Progress Pre-Cert 40373 Spend,Neighbourhoods,NOTTINGHAM TRENT UNIVERSITY,,Large,,7600005872,,Revenue Grant To Be Paid,NG1 4FZ,"9,109.36",Yes
Communities & Local Government,DCLG,06/08/2013,Work In Progress Pre-Cert 40373 Spend,Neighbourhoods,NOTTINGHAM TRENT UNIVERSITY,,Large,,7600005876,,Revenue Grant To Be Paid,NG1 4FZ,"24,960.45",Yes
Communities & Local Government,DCLG,06/08/2013,Work In Progress Pre-Cert 40373 Spend,Neighbourhoods,NOTTINGHAM UNIVERSITY,,Large,,7600005875,,Revenue Grant To Be Paid,NG7 2RD,"26,935.74",Yes
Communities & Local Government,DCLG,06/08/2013,Work In Progress Pre-Cert 40373 Spend,Neighbourhoods,PASTURES DEVELOPMENT COMPANY LTD,,,,7600005871,,Revenue Grant To Be Paid,DN31 1LW,869.68,Yes
Communities & Local Government,DCLG,06/08/2013,Work In Progress Pre-Cert 40373 Spend,Neighbourhoods,SHEFFIELD CITY COUNCIL,,,,7600005837,,Revenue Grant Clawback Offset,S1 2SH,"-30,000.00",Yes
Communities & Local Government,DCLG,06/08/2013,Work In Progress Pre-Cert 40373 Spend,Neighbourhoods,SHEFFIELD CITY COUNCIL,,,,7600005837,,Revenue Grant To Be Paid,S1 2SH,"38,558.58",Yes
Communities & Local Government,DCLG,06/08/2013,Work In Progress Pre-Cert 40373 Spend,Neighbourhoods,SHEFFIELD CITY COUNCIL,,,,7600005869,,Revenue Grant To Be Paid,S1 2SH,"9,688.90",Yes
Communities & Local Government,DCLG,06/08/2013,Work In Progress Pre-Cert 40373 Spend,Neighbourhoods,SHEFFIELD HALLAM UNIVERSITY,,,,7600005840,,Revenue Grant To Be Paid,S1 1WB,"18,884.40",Yes
Communities & Local Government,DCLG,06/08/2013,Work In Progress Pre-Cert 40373 Spend,Neighbourhoods,SHEFFIELD HALLAM UNIVERSITY,,,,7600005841,,Revenue Grant To Be Paid,S1 1WB,"9,265.75",Yes
Communities & Local Government,DCLG,06/08/2013,Work In Progress Pre-Cert 40373 Spend,Neighbourhoods,SHEFFIELD HALLAM UNIVERSITY,,,,7600005857,,Revenue Grant To Be Paid,S1 1WB,"8,589.98",Yes
Communities & Local Government,DCLG,06/08/2013,Work In Progress Pre-Cert 40373 Spend,Neighbourhoods,SHEFFIELD HALLAM UNIVERSITY,,,,7600005864,,Revenue Grant To Be Paid,S1 1WB,"19,394.66",Yes
Communities & Local Government,DCLG,06/08/2013,Work In Progress Pre-Cert 40373 Spend,Neighbourhoods,STOCKTON BOROUGH COUNCIL,,,,7600005866,,Revenue Grant To Be Paid,TS18 1LD,"1,024.42",Yes
Communities & Local Government,DCLG,06/08/2013,Work In Progress Pre-Cert 40373 Spend,Neighbourhoods,UNIVERSITY OF BRADFORD,,,,7600005862,,Revenue Grant To Be Paid,BD7 1DP,"13,826.92",Yes
Communities & Local Government,DCLG,06/08/2013,Work In Progress Pre-Cert 40373 Spend,Neighbourhoods,UNIVERSITY OF SHEFFIELD,,,,7600005853,,Revenue Grant To Be Paid,S60 5TZ,"23,580.88",Yes
Communities & Local Government,DCLG,06/08/2013,Work In Progress Pre-Cert 40373 Spend,Neighbourhoods,UNIVERSITY OF SHEFFIELD,,,,7600005856,,Revenue Grant To Be Paid,S60 5TZ,"35,371.33",Yes
Communities & Local Government,DCLG,06/08/2013,Work In Progress Pre-Cert 40373 Spend,Neighbourhoods,YORKS & HUMBER PEOPLE UTD AGAINST C,,,,7600005850,,Revenue Grant To Be Paid,S1 2AH,"20,919.77",Yes
Communities & Local Government,DCLG,06/08/2013,Work In Progress Pre-Cert 40373 Spend,Neighbourhoods,YORKS & HUMBER PEOPLE UTD AGAINST C,,,,7600005851,,Revenue Grant To Be Paid,S1 2AH,"36,989.93",Yes
Communities & Local Government,DCLG,06/08/2013,Work In Progress Pre-Cert 40467 Spend,Neighbourhoods,BOLTON  BUSINESS VENTURES LTD,,,,2300002028,,Repayment of uninvested ERDF Grant,BL1 8SW,"-122,125.00",Yes
Communities & Local Government,DCLG,06/08/2013,Work In Progress Pre-Cert 40467 Spend,Neighbourhoods,BRADFORD ENTERPRISE AGENCY LIMITED,,Micro,,7600005865,,Capital Grant To Be Paid,BD1 0AH,"39,288.75",Yes
Communities & Local Government,DCLG,06/08/2013,Work In Progress Pre-Cert 40467 Spend,Neighbourhoods,CASE TRAINING SERVICES LTD,Yes,Small,,7600005846,,Capital Grant To Be Paid,HU2 8DQ,"22,646.52",Yes
Communities & Local Government,DCLG,06/08/2013,Work In Progress Pre-Cert 40467 Spend,Neighbourhoods,DURHAM COUNTY COUNCIL,,,,7600005861,,Capital Grant To Be Paid,DL16 6JQ,"350,246.52",Yes
Communities & Local Government,DCLG,06/08/2013,Work In Progress Pre-Cert 40467 Spend,Neighbourhoods,KIRKLEES COUNCIL,,,,7600005854,,Capital Grant To Be Paid,HD1 2TG,"2,188.38",Yes
Communities & Local Government,DCLG,06/08/2013,Work In Progress Pre-Cert 40467 Spend,Neighbourhoods,KIRKLEES COUNCIL,,,,7600005855,,Capital Grant To Be Paid,HD1 2TG,"57,992.95",Yes
Communities & Local Government,DCLG,06/08/2013,Work In Progress Pre-Cert 40467 Spend,Neighbourhoods,MEDIAWORKS TRUST,,Small,,7600005874,,Capital Grant To Be Paid,DE22 3RG,34.24,Yes
Communities & Local Government,DCLG,06/08/2013,Work In Progress Pre-Cert 40467 Spend,Neighbourhoods,NOTTINGHAM UNIVERSITY,,Large,,7600005875,,Capital Grant To Be Paid,NG7 2RD,"13,158.08",Yes
Communities & Local Government,DCLG,06/08/2013,Work In Progress Pre-Cert 40467 Spend,Neighbourhoods,PASTURES DEVELOPMENT COMPANY LTD,,,,7600005867,,Capital Grant To Be Paid,DN31 1LW,"4,430.62",Yes
Communities & Local Government,DCLG,06/08/2013,Work In Progress Pre-Cert 40467 Spend,Neighbourhoods,PASTURES DEVELOPMENT COMPANY LTD,,,,7600005868,,Capital Grant To Be Paid,DN31 1LW,"67,374.24",Yes
Communities & Local Government,DCLG,06/08/2013,Work In Progress Pre-Cert 40467 Spend,Neighbourhoods,PASTURES DEVELOPMENT COMPANY LTD,,,,7600005871,,Capital Grant To Be Paid,DN31 1LW,"1,704.08",Yes
Communities & Local Government,DCLG,06/08/2013,Work In Progress Pre-Cert 40467 Spend,Neighbourhoods,SCREEN YORKSHIRE LIMITED,,,,7600005847,,Capital Grant To Be Paid,LS2 7EY,"56,250.00",Yes
Communities & Local Government,DCLG,06/08/2013,Work In Progress Pre-Cert 40467 Spend,Neighbourhoods,SHEFFIELD CITY COUNCIL,,,,7600005842,,Capital Grant To Be Paid,S1 2SH,"47,064.55",Yes
Communities & Local Government,DCLG,06/08/2013,Work In Progress Pre-Cert 40467 Spend,Neighbourhoods,SHEFFIELD CITY COUNCIL,,,,7600005843,,Capital Grant To Be Paid,S1 2SH,"68,876.55",Yes
Communities & Local Government,DCLG,06/08/2013,Work In Progress Pre-Cert 40467 Spend,Neighbourhoods,SHEFFIELD CITY COUNCIL,,,,7600005844,,Capital Grant To Be Paid,S1 2SH,"45,014.71",Yes
Communities & Local Government,DCLG,06/08/2013,Work In Progress Pre-Cert 40467 Spend,Neighbourhoods,SHEFFIELD CITY COUNCIL,,,,7600005845,,Capital Grant To Be Paid,S1 2SH,"108,088.67",Yes
Communities & Local Government,DCLG,06/08/2013,Work In Progress Pre-Cert 40467 Spend,Neighbourhoods,SHEFFIELD CITY COUNCIL,,,,7600005869,,Capital Grant To Be Paid,S1 2SH,"3,082.65",Yes
Communities & Local Government,DCLG,06/08/2013,Work In Progress Pre-Cert 40467 Spend,Neighbourhoods,STOCKTON BOROUGH COUNCIL,,,,7600005866,,Capital Grant To Be Paid,TS18 1LD,"2,311.00",Yes
Communities & Local Government,DCLG,06/08/2013,Work In Progress Pre-Cert 40467 Spend,Neighbourhoods,UNIVERSITY OF SHEFFIELD,,,,7600005856,,Capital Grant To Be Paid,S60 5TZ,"28,194.83",Yes
Communities & Local Government,DCLG,07/08/2013,Accrued Expense (Vendor),Finance & Corporate Services,DEPT FOR WORK & PENSIONS,,Public Bodies,,2100233331,,Salary recovery for Ex GO staff ,CF14 3UW,"3,321.48",
Communities & Local Government,DCLG,07/08/2013,Agency Staff,Finance & Corporate Services,CAPITA RESOURCING LTD,,Large,,5106195957,Contingent Labour,Interim Manager,SL6 1DP,631.86,
Communities & Local Government,DCLG,07/08/2013,Agency Staff,Finance & Corporate Services,CAPITA RESOURCING LTD,,Large,,5106195965,Contingent Labour,CPD 0492030 Capita MSP,SL6 1DP,"1,275.00",
Communities & Local Government,DCLG,07/08/2013,Agency Staff,Localism,CAPITA RESOURCING LTD,,Large,,5106195963,Contingent Labour,Interim,SL6 1DP,"1,117.80",
Communities & Local Government,DCLG,07/08/2013,Agency Staff,Neighbourhoods,CAPITA RESOURCING LTD,,Large,,5106195948,Contingent Labour,Interim Manager,SL6 1DP,"2,375.94",
Communities & Local Government,DCLG,07/08/2013,Agency Staff,Neighbourhoods,CAPITA RESOURCING LTD,,Large,,5106195950,Contingent Labour,Interim Manager,SL6 1DP,621.00,
Communities & Local Government,DCLG,07/08/2013,Agency Staff,Neighbourhoods,CAPITA RESOURCING LTD,,Large,,5106195952,Contingent Labour,Interim Manager,SL6 1DP,"1,392.34",
Communities & Local Government,DCLG,07/08/2013,Agency Staff,Neighbourhoods,CAPITA RESOURCING LTD,,Large,,5106195953,Contingent Labour,Interim Manager,SL6 1DP,"3,825.00",
Communities & Local Government,DCLG,07/08/2013,Agency Staff,Neighbourhoods,CAPITA RESOURCING LTD,,Large,,5106195953,Contingent Labour,Interim Manager (Expenses),SL6 1DP,124.92,
Communities & Local Government,DCLG,07/08/2013,Agency Staff,Neighbourhoods,CAPITA RESOURCING LTD,,Large,,5106195955,Contingent Labour,Contractor ERDF,SL6 1DP,510.00,
Communities & Local Government,DCLG,07/08/2013,Agency Staff,Neighbourhoods,CAPITA RESOURCING LTD,,Large,,5106195957,Contingent Labour,Expenses INTERREG 2Seas-Territorial Faci,SL6 1DP,43.74,
Communities & Local Government,DCLG,07/08/2013,Agency Staff,Neighbourhoods,CAPITA RESOURCING LTD,,Large,,5106195958,Contingent Labour,Expenses,SL6 1DP,52.90,
Communities & Local Government,DCLG,07/08/2013,Agency Staff,Neighbourhoods,CAPITA RESOURCING LTD,,Large,,5106195958,Contingent Labour,Interim Manager,SL6 1DP,"1,912.50",
Communities & Local Government,DCLG,07/08/2013,Agency Staff,Neighbourhoods,CAPITA RESOURCING LTD,,Large,,5106195960,Contingent Labour,Expenses,SL6 1DP,22.68,
Communities & Local Government,DCLG,07/08/2013,Agency Staff,Neighbourhoods,CAPITA RESOURCING LTD,,Large,,5106195960,Contingent Labour,Interim Manager,SL6 1DP,"1,794.72",
Communities & Local Government,DCLG,07/08/2013,Agency Staff,Neighbourhoods,CAPITA RESOURCING LTD,,Large,,5106195962,Contingent Labour,Expenses,SL6 1DP,89.87,
Communities & Local Government,DCLG,07/08/2013,Agency Staff,Neighbourhoods,CAPITA RESOURCING LTD,,Large,,5106195962,Contingent Labour,Interim Manager,SL6 1DP,"2,018.28",
Communities & Local Government,DCLG,07/08/2013,Agency Staff,Neighbourhoods,CAPITA RESOURCING LTD,,Large,,5106195964,Contingent Labour,Interim Manager,SL6 1DP,"1,707.78",
Communities & Local Government,DCLG,07/08/2013,Catering,Finance & Corporate Services,EDEN CATERERS LTD,,Small,,5106195954,Catering,Refreshments for JGA Event,SE1 7LD,378.80,
Communities & Local Government,DCLG,07/08/2013,Current Grants to Non Profit Bodies,Localism,SANDWELL CONSORTIUM CIC,,,,2100233255,,English Lang Comp - support grant,B67 7AA,"4,000.00",Yes
Communities & Local Government,DCLG,07/08/2013,Grant in Aid to NDPBs (non budget),Neighbourhoods,HOMES & COMMUNITIES AGENCY,,Public Bodies,,2100233329,,HCA Grant in Aid Claim W/C 7 August 2013,NE11 0NA,"16,596,095.00",Yes
Communities & Local Government,DCLG,07/08/2013,"IT - PC, Network & Hardware",Localism,DELL CORPORATION LTD,,Large,,5106195733,ICT Hardware,PowerVault TL2000 Tape Library,RG12 1LF,"9,115.20",
Communities & Local Government,DCLG,07/08/2013,Legal Fees,Neighbourhoods,JOHN PUGH-SMITH,,,,5106195993,Legal,Legal/Mediation Fees,WC2R 3AT,"6,300.00",
Communities & Local Government,DCLG,07/08/2013,Medals,Localism,ROYAL MINT,,Public Bodies,,5106195968,Learning and Development Materials,FS Long Service and Good Conduct Medals,CF72 8YT,623.70,
Communities & Local Government,DCLG,07/08/2013,Medals,Localism,ROYAL MINT,,Public Bodies,,5106195969,Learning and Development Materials,FS Long Service and Good Conduct Medals,CF72 8YT,683.10,
Communities & Local Government,DCLG,07/08/2013,Medals,Localism,ROYAL MINT,,Public Bodies,,5106195971,Learning and Development Materials,FS Long Service and Good Conduct Medals,CF72 8YT,564.30,
Communities & Local Government,DCLG,07/08/2013,Medals,Localism,ROYAL MINT,,Public Bodies,,5106195973,Learning and Development Materials,FS Long Service and Good Conduct Medals,CF72 8YT,297.00,
Communities & Local Government,DCLG,07/08/2013,Medals,Localism,ROYAL MINT,,Public Bodies,,5106195974,Learning and Development Materials,FS Long Service and Good Conduct Medals,CF72 8YT,415.80,
Communities & Local Government,DCLG,07/08/2013,Physical Storage,Finance & Corporate Services,INXTERIORS REFURBISHMENTS LTD,,Micro,,5106195988,Warehousing and Storage,Storage,TN8 6EL,"1,015.00",
Communities & Local Government,DCLG,07/08/2013,Printing,Finance & Corporate Services,STATIONERY OFFICE LTD,,Large,,5106195985,Printing Services,Non-Vatable printing services,NR3 1PD,206.25,
Communities & Local Government,DCLG,07/08/2013,Printing,Finance & Corporate Services,STATIONERY OFFICE LTD,,Large,,5106195985,Printing Services,VAT chargeable printing services,NR3 1PD,130.00,
Communities & Local Government,DCLG,07/08/2013,Printing,Finance & Corporate Services,STATIONERY OFFICE LTD,,Large,,5106195987,Printing Services,Non-Vatable printing services,NR3 1PD,196.00,
Communities & Local Government,DCLG,07/08/2013,Printing,Finance & Corporate Services,STATIONERY OFFICE LTD,,Large,,5106195987,Printing Services,VAT chargeable printing services,NR3 1PD,130.00,
Communities & Local Government,DCLG,07/08/2013,Professional services,Neighbourhoods,VALUATION OFFICE AGENCY,,Public Bodies,,5106195976,Financial,Financial Checks/Fees 2011/12,W1B 5BU,"1,634.50",
Communities & Local Government,DCLG,07/08/2013,Publicity,Finance & Corporate Services,GORKANA GROUP LTD,,Large,,5106195991,Advertising,Press Cuttings,EC1Y 8QE,"3,830.92",
Communities & Local Government,DCLG,07/08/2013,Technical Aids for the disabled,Finance & Corporate Services,DCLG GOVERNMENT PROCUREMENT CARD,,,,1000003854,,AT290 - Braillemaker prof - Assist tech,TN37 7GA,473.99,
Communities & Local Government,DCLG,07/08/2013,Vehicle hire,Finance & Corporate Services,GOVERNMENT CAR & DESPATCH AGENCY,,Public Bodies,,5106195959,Vehicle Hire and Lease,Car of SOS -Duty Car 1- LT206,SW8 5AX,"7,204.66",
Communities & Local Government,DCLG,07/08/2013,Work In Progress Pre-Cert 40373 Spend,Neighbourhoods,ALT VALLEY COMMUNITY TRUST,,,,7600005879,,Revenue Grant To Be Paid,L11 0BS,"179,024.63",Yes
Communities & Local Government,DCLG,07/08/2013,Work In Progress Pre-Cert 40373 Spend,Neighbourhoods,CENTRAL LANCASHIRE UNIVERSITY,,,,7600005881,,Revenue Grant To Be Paid,PR1 2HE,"262,807.58",Yes
Communities & Local Government,DCLG,07/08/2013,Work In Progress Pre-Cert 40373 Spend,Neighbourhoods,LIVERPOOL JOHN MOORES UNIVERSITY,,,,7600005880,,Revenue Grant To Be Paid,L3 2AJ,"73,434.68",Yes
Communities & Local Government,DCLG,07/08/2013,Work In Progress Pre-Cert 40373 Spend,Neighbourhoods,LIVERPOOL JOHN MOORES UNIVERSITY,,,,7600005882,,Revenue Grant To Be Paid,L3 2AJ,"13,620.99",Yes
Communities & Local Government,DCLG,07/08/2013,Work In Progress Pre-Cert 40373 Spend,Neighbourhoods,LIVERPOOL JOHN MOORES UNIVERSITY,,,,7600005883,,Revenue Grant To Be Paid,L3 2AJ,"1,912.11",Yes
Communities & Local Government,DCLG,07/08/2013,Work In Progress Pre-Cert 40373 Spend,Neighbourhoods,LIVERPOOL UNIVERSITY,,,,7600005886,,Revenue Grant Clawback Offset,L69 7ZX,-13.53,Yes
Communities & Local Government,DCLG,07/08/2013,Work In Progress Pre-Cert 40373 Spend,Neighbourhoods,LIVERPOOL UNIVERSITY,,,,7600005886,,Revenue Grant To Be Paid,L69 7ZX,"69,211.78",Yes
Communities & Local Government,DCLG,07/08/2013,Work In Progress Pre-Cert 40373 Spend,Neighbourhoods,NCEE,,,,7600005887,,Revenue Grant Clawback Offset,CV1 2TT,0.43,Yes
Communities & Local Government,DCLG,07/08/2013,Work In Progress Pre-Cert 40373 Spend,Neighbourhoods,NCEE,,,,7600005887,,Revenue Grant To Be Paid,CV1 2TT,"46,236.83",Yes
Communities & Local Government,DCLG,07/08/2013,Work In Progress Pre-Cert 40373 Spend,Neighbourhoods,NCEE,,,,7600005888,,Revenue Grant Clawback Offset,CV1 2TT,8.53,Yes
Communities & Local Government,DCLG,07/08/2013,Work In Progress Pre-Cert 40373 Spend,Neighbourhoods,NCEE,,,,7600005888,,Revenue Grant To Be Paid,CV1 2TT,"181,743.30",Yes
Communities & Local Government,DCLG,07/08/2013,Work In Progress Pre-Cert 40373 Spend,Neighbourhoods,NORTH WEST AEROSPACE ALLIANCE,,,,7600005885,,Revenue Grant Clawback Offset,BB9 9BT,-327.24,Yes
Communities & Local Government,DCLG,07/08/2013,Work In Progress Pre-Cert 40373 Spend,Neighbourhoods,NORTH WEST AEROSPACE ALLIANCE,,,,7600005885,,Revenue Grant To Be Paid,BB9 9BT,"42,919.94",Yes
Communities & Local Government,DCLG,07/08/2013,Work In Progress Pre-Cert 40373 Spend,Neighbourhoods,PRINCES TRUST,,Medium,,7600005878,,Revenue Grant To Be Paid,B9 4AA,"2,138.94",Yes
Communities & Local Government,DCLG,07/08/2013,Work In Progress Pre-Cert 40373 Spend,Neighbourhoods,ST HELENS CHAMBER,,Medium,,7600005884,,Revenue Grant To Be Paid,WA10 1FY,"47,816.52",Yes
Communities & Local Government,DCLG,07/08/2013,Work In Progress Pre-Cert 40467 Spend,Neighbourhoods,LIVERPOOL JOHN MOORES UNIVERSITY,,,,7600005883,,Capital Grant To Be Paid,L3 2AJ,"97,211.87",Yes
Communities & Local Government,DCLG,07/08/2013,Work In Progress Pre-Cert 40467 Spend,Neighbourhoods,PRINCES TRUST,,Medium,,7600005878,,Capital Grant To Be Paid,B9 4AA,"42,025.00",Yes
Communities & Local Government,DCLG,07/08/2013,Work In Progress Pre-Cert 40467 Spend,Neighbourhoods,TAMESIDE COLLEGE,,,,7600005877,,Capital Grant To Be Paid,OL6 6NX,"99,870.88",Yes
Communities & Local Government,DCLG,08/08/2013,Advertising,Finance & Corporate Services,DATA LATERAL LTD,,Medium,,5106196050,Advertising,Right to Buy Phase 2,NG17 5FB,"136,907.95",
Communities & Local Government,DCLG,08/08/2013,Agency Staff,Finance & Corporate Services,ALLEN LANE FINANCIAL RECRUITMENT,,Medium,Yes,5106195951,Contingent Labour,Interim Manager (Qualified Accountant),,"3,796.08",
Communities & Local Government,DCLG,08/08/2013,Agency Staff,Finance & Corporate Services,REED EMPLOYMENT SERVICES,,Large,,5106196019,Contingent Labour,PA admin,SW20 0BA,606.88,
Communities & Local Government,DCLG,08/08/2013,Agency Staff,Finance & Corporate Services,REED EMPLOYMENT SERVICES,,Large,,5106196028,Contingent Labour,Temporary PA Support - Agency Staff,SW20 0BA,634.92,
Communities & Local Government,DCLG,08/08/2013,Agency Staff,Neighbourhoods,REED EMPLOYMENT SERVICES,,Large,,5106196021,Contingent Labour,Extension of Support- Rate Adjustment,SW20 0BA,"1,635.42",
Communities & Local Government,DCLG,08/08/2013,Agency Staff,Neighbourhoods,REED EMPLOYMENT SERVICES,,Large,,5106196022,Contingent Labour,POLICY SUPPORT FOR HGAH,SW20 0BA,"1,032.91",
Communities & Local Government,DCLG,08/08/2013,Agency Staff,Neighbourhoods,REED EMPLOYMENT SERVICES,,Large,,5106196024,Contingent Labour,Policy support,SW20 0BA,896.63,
Communities & Local Government,DCLG,08/08/2013,Current (non AEF) Grants to Local Authorities,Localism,TYNE & WEAR FIRE AUTHORITY (RSG),,,,5000231836,,Overpayment of Grant recovered by Exchequer,SR2 7DN,"-1,445,462.00",Yes
Communities & Local Government,DCLG,08/08/2013,"Furniture, Fittings and carpets",Finance & Corporate Services,AMARYLLIS LTD,,Medium,,5106195984,"Furniture, Fixtures and Fittings",JR398 Power Cables Installation level 1,CM2 8TE,"1,660.46",
Communities & Local Government,DCLG,08/08/2013,"IT - PC, Network & Hardware",Neighbourhoods,REED SPECIALIST RECRUITMENT LTD,,Large,,5106196027,Contingent Labour,Help to Buy Temp,NN1 1UE,739.44,
Communities & Local Government,DCLG,08/08/2013,IT - Service Contracts,Finance & Corporate Services,STERIA LIMITED,,Large,,5106195999,Managed / Outsourced Services,PINS Network Bridge HW Support,M14 0WN,265.58,
Communities & Local Government,DCLG,08/08/2013,IT - Service Contracts,Finance & Corporate Services,STERIA LIMITED,,Large,,5106196000,Managed / Outsourced Services,Steria - Planet Support 2013/14 - CAN069,M14 0WN,912.52,
Communities & Local Government,DCLG,08/08/2013,IT - Service Contracts,Finance & Corporate Services,STERIA LIMITED,,Large,,5106196006,Managed / Outsourced Services,CAN024 - Eland Wi-fi Support-Apr13-Aug13,M14 0WN,"3,769.74",
Communities & Local Government,DCLG,08/08/2013,IT - Service Contracts,Finance & Corporate Services,STERIA LIMITED,,Large,,5106196008,Managed / Outsourced Services,Link Services inc Blackberry Charges,M14 0WN,"4,074.16",
Communities & Local Government,DCLG,08/08/2013,IT - Service Contracts,Finance & Corporate Services,STERIA LIMITED,,Large,,5106196009,Managed / Outsourced Services,Link Services inc Blackberry Charges,M14 0WN,"15,787.36",
Communities & Local Government,DCLG,08/08/2013,IT - Service Contracts,Finance & Corporate Services,STERIA LIMITED,,Large,,5106196010,Managed / Outsourced Services,Additional Managed services,M14 0WN,"4,916.03",
Communities & Local Government,DCLG,08/08/2013,IT - Service Contracts,Finance & Corporate Services,STERIA LIMITED,,Large,,5106196013,Managed / Outsourced Services,Audit Commission - CAN073,M14 0WN,"32,144.15",
Communities & Local Government,DCLG,08/08/2013,IT - Service Contracts,Finance & Corporate Services,STERIA LIMITED,,Large,,5106196030,Managed / Outsourced Services,TSA WAN Services,M14 0WN,"8,826.59",
Communities & Local Government,DCLG,08/08/2013,IT - Service Contracts,Finance & Corporate Services,STERIA LIMITED,,Large,,5106196031,Managed / Outsourced Services,Out of Hours Service,M14 0WN,"11,926.60",
Communities & Local Government,DCLG,08/08/2013,IT - Service Contracts,Finance & Corporate Services,STERIA LIMITED,,Large,,5106196034,Managed / Outsourced Services,New Datacentre Solution,M14 0WN,"57,542.43",
Communities & Local Government,DCLG,08/08/2013,IT - Service Contracts,Finance & Corporate Services,STERIA LIMITED,,Large,,5106196039,Managed / Outsourced Services,LOGASnet Support Services,M14 0WN,"63,142.34",
Communities & Local Government,DCLG,08/08/2013,IT - Service Contracts,Finance & Corporate Services,STERIA LIMITED,,Large,,5106196039,Managed / Outsourced Services,Link Services inc Blackberry Charges,M14 0WN,"176,134.54",
Communities & Local Government,DCLG,08/08/2013,IT - Service Contracts,Finance & Corporate Services,STERIA LIMITED,,Large,,5106196039,Managed / Outsourced Services,DCLG Link Service Feb 2011 to Feb 2013,M14 0WN,"247,460.37",
Communities & Local Government,DCLG,08/08/2013,IT - Software Maintenance,Finance & Corporate Services,FRONTRANGE SOLUTIONS UK LTD,,Medium,,5106196001,Managed / Outsourced Services,HEAT support and maintenance 2013-14,RG14 2PZ,"6,231.17",
Communities & Local Government,DCLG,08/08/2013,Printing,Finance & Corporate Services,WILLIAMS LEA LIMITED,,Large,,5106196032,Printing Services,Year 3 Print Services,W2 6LG,"16,064.22",
Communities & Local Government,DCLG,08/08/2013,Printing,Finance & Corporate Services,WILLIAMS LEA LIMITED,,Large,,5106196032,Printing Services,Year 3 Print Services (0% VAT),W2 6LG,307.02,
Communities & Local Government,DCLG,08/08/2013,Services provided by other Govt Orgs,Neighbourhoods,VALUATION OFFICE AGENCY,,Public Bodies,,5106195975,Business and Commercial Services,RTB VOA Valuation 13/14,W1B 5BU,"118,676.40",Yes
Communities & Local Government,DCLG,08/08/2013,Services provided by other Govt Orgs,Neighbourhoods,VALUATION OFFICE AGENCY,,Public Bodies,,5106195979,Business and Commercial Services,RTB VOA Valuation 13/14,W1B 5BU,"180,822.78",Yes
Communities & Local Government,DCLG,08/08/2013,Steady State Service Provision,Neighbourhoods,CEL GROUP,,Medium,,5106196015,Business Process Outsourcing Services,Payments for 1/10/12 - 30/09/13,SK13 8HT,"71,179.67",
Communities & Local Government,DCLG,08/08/2013,Steady State Service Provision,Neighbourhoods,SQW LTD,,Medium,,5106196052,Business Process Outsourcing Services,2012/13 Programme Evaluation,CB4 9ZR,"15,687.33",
Communities & Local Government,DCLG,08/08/2013,Telecoms equipment (non-capitalised),Finance & Corporate Services,DAMOVO UK LTD,,Large,,5106196035,Telecoms,Routine Engineering and powerdowns,RH12 4QP,585.42,
Communities & Local Government,DCLG,08/08/2013,Telecoms equipment (non-capitalised),Finance & Corporate Services,DAMOVO UK LTD,,Large,,5106196043,Telecoms,MPLS Circuit Charges 9 sites,RH12 4QP,"6,988.44",
Communities & Local Government,DCLG,08/08/2013,Telecoms equipment (non-capitalised),Finance & Corporate Services,DAMOVO UK LTD,,Large,,5106196043,Telecoms,Regional Hubs Mont5hly recurring and Lin,RH12 4QP,"10,477.81",
Communities & Local Government,DCLG,08/08/2013,Telecoms equipment (non-capitalised),Finance & Corporate Services,DAMOVO UK LTD,,Large,,5106196043,Telecoms,Telephone Support Services,RH12 4QP,"83,307.93",
Communities & Local Government,DCLG,08/08/2013,Training,Finance & Corporate Services,CAPITA BUSINESS SERVICES LTD,,Large,,5106195995,Development and Training,High Potential Development Scheme (HPDS),DL1 9HB,"5,826.52",
Communities & Local Government,DCLG,08/08/2013,Training,Finance & Corporate Services,CAPITA BUSINESS SERVICES LTD,,Large,,5106195996,Development and Training,CSL Training - Working in the CS,DL1 9HB,957.00,
Communities & Local Government,DCLG,08/08/2013,Training,Finance & Corporate Services,QA  LTD,,Large,,5106196029,Development and Training,MCSA Windows Server 2012,LS12 6BD,"3,867.00",
Communities & Local Government,DCLG,08/08/2013,Transcriptions,Troubled Families,TYPEOUT,,Medium,,5106196037,Transcriptions,Transcription for Intervention Workers interviews,GU8 6BH,236.25,
Communities & Local Government,DCLG,08/08/2013,Vehicle hire,Finance & Corporate Services,GOVERNMENT CAR & DESPATCH AGENCY,,Public Bodies,,5106196051,Vehicle Hire and Lease,Car of SOS -Duty Car 1- LT206,SW8 5AX,"6,954.66",
Communities & Local Government,DCLG,08/08/2013,Work In Progress Pre-Cert 40373 Spend,Neighbourhoods,CORNWALL COUNCIL,,,,7600005889,,Revenue Grant To Be Paid,TR1 3AY,"4,093.39",Yes
Communities & Local Government,DCLG,08/08/2013,Work In Progress Pre-Cert 40467 Spend,Neighbourhoods,CORNWALL COUNCIL,,,,7600005889,,Capital Grant To Be Paid,TR1 3AY,510.52,Yes
Communities & Local Government,DCLG,08/08/2013,Work In Progress Pre-Cert 40467 Spend,Neighbourhoods,ENGINEERED ARTS LTD,,,,7600005890,,Capital Grant To Be Paid,TR10 9EW,"12,069.34",Yes
Communities & Local Government,DCLG,08/08/2013,Work In Progress Pre-Cert 40467 Spend,Neighbourhoods,ROCHDALE METROPOLITAN COUNCIL,,,,7600005891,,Capital Grant To Be Paid,OL16 1LQ,"14,845.02",Yes
Communities & Local Government,DCLG,09/08/2013,Agency Staff,Finance & Corporate Services,PREMIERE EMPLOYMENT GROUP LTD,,Large,,5106196066,Contingent Labour,Admin clerical support,M3 2JA,541.80,
Communities & Local Government,DCLG,09/08/2013,Agency Staff,Finance & Corporate Services,PREMIERE EMPLOYMENT GROUP LTD,,Large,,5106196068,Contingent Labour,Admin clerical support,M3 2JA,541.80,
Communities & Local Government,DCLG,09/08/2013,Agency Staff,Finance & Corporate Services,SQUARE ONE RESOURCES LTD,,Medium,,5106196075,Contingent Labour,Interim Manager,EC2A 2AD,"2,858.82",
Communities & Local Government,DCLG,09/08/2013,Agency Staff,Finance & Corporate Services,SQUARE ONE RESOURCES LTD,,Medium,,5106196076,Contingent Labour,Interim Manager,EC2A 2AD,"2,858.82",
Communities & Local Government,DCLG,09/08/2013,Electricity,Finance & Corporate Services,EDF ENERGY 1 LIMITED,,Large,,5106196071,Energy,Bridge House Electricity 2013-14,PL3 5XQ,"11,130.82",
Communities & Local Government,DCLG,09/08/2013,Electricity,Finance & Corporate Services,EDF ENERGY 1 LIMITED,,Large,,5106196073,Energy,Rivergate Electricity 2013-14,PL3 5XQ,"12,676.92",
Communities & Local Government,DCLG,09/08/2013,Electricity,Finance & Corporate Services,EDF ENERGY 1 LIMITED,,Large,,5106196074,Energy,St Philips Place Electricity 2013-14,PL3 5XQ,"12,373.57",
Communities & Local Government,DCLG,09/08/2013,Electricity,Finance & Corporate Services,EDF ENERGY 1 LIMITED,,Large,,5106196077,Energy,Paradise Circus Electricity 2013-14,PL3 5XQ,"2,887.54",
Communities & Local Government,DCLG,09/08/2013,Electricity,Finance & Corporate Services,EDF ENERGY 1 LIMITED,,Large,,5106196078,Energy,Eland House Electricity 2013-14,PL3 5XQ,"52,572.47",
Communities & Local Government,DCLG,09/08/2013,Electricity,Finance & Corporate Services,EDF ENERGY 1 LIMITED,,Large,,5106196079,Energy,Queen St Electricty 2013-14,PL3 5XQ,"1,736.36",
Communities & Local Government,DCLG,09/08/2013,Grant in Aid to NDPBs (non budget),Localism,COMMISSION LOCAL ADMINISTRATION,,,,2100233184,,DCLG budget contribution for the CLAE August 2013,SW1P 4QP,"899,600.00",Yes
Communities & Local Government,DCLG,09/08/2013,IT - Service Contracts,Finance & Corporate Services,STERIA LIMITED,,Large,,5106196055,Managed / Outsourced Services,Eland house,M14 0WN,"9,991.83",
Communities & Local Government,DCLG,09/08/2013,IT - Service Contracts,Finance & Corporate Services,STERIA LIMITED,,Large,,5106196062,Managed / Outsourced Services,CAN 61 MFD,M14 0WN,"22,971.37",
Communities & Local Government,DCLG,09/08/2013,IT - Service Contracts,Finance & Corporate Services,STERIA LIMITED,,Large,,5106196063,Managed / Outsourced Services,SQ163 - Build 10PCs & 30User ACs Fujitsu,M14 0WN,"1,369.82",
Communities & Local Government,DCLG,09/08/2013,IT - Service Contracts,Finance & Corporate Services,STERIA LIMITED,,Large,,5106196064,Managed / Outsourced Services,Steria packaging for NR00411,M14 0WN,"4,422.23",
Communities & Local Government,DCLG,09/08/2013,IT - Service Contracts,Finance & Corporate Services,STERIA LIMITED,,Large,,5106196067,Managed / Outsourced Services,LOGASnet Support Services,M14 0WN,"6,770.82",
Communities & Local Government,DCLG,09/08/2013,IT - Service Contracts,Finance & Corporate Services,STERIA LTD,,Large,,5106196054,Managed / Outsourced Services,Installation of AT Software for RA,M14 0WN,423.27,
Communities & Local Government,DCLG,09/08/2013,IT - Service Contracts,Finance & Corporate Services,SWIRRL IT LIMITED,,Micro,,5106196082,Managed / Outsourced Services,DCLG Data Strategy,FK7 7WT,"21,600.00",
Communities & Local Government,DCLG,09/08/2013,Research,Finance & Corporate Services,THREE DRAGONS (LC) LTD,,Micro,,5106195983,Operational Services,Research - Impact of S106 Planning,BA21 3BZ,"19,960.80",
Communities & Local Government,DCLG,09/08/2013,Work In Progress Pre-Cert 40373 Spend,Neighbourhoods,UNIVERSITY OF THE WEST OF ENGLAND,,,,7600005892,,Revenue Grant To Be Paid,BS16 1QY,"194,684.73",Yes
Communities & Local Government,DCLG,09/08/2013,Work In Progress Pre-Cert 40467 Spend,Neighbourhoods,BISHOP GROSSETESTE UNIV COLL LINCOL,,Large,,7600005893,,Capital Grant To Be Paid,LN1 3DY,"38,411.37",Yes
Communities & Local Government,DCLG,12/08/2013,Agency Staff,Finance & Corporate Services,REED EMPLOYMENT SERVICES,,Large,,5106196110,Contingent Labour,Temporary Admin Support - Agency Staff,SW20 0BA,574.86,
Communities & Local Government,DCLG,12/08/2013,Agency Staff,Finance & Corporate Services,SQUARE ONE RESOURCES LTD,,Medium,,5106196098,Contingent Labour,Interim Manager,EC2A 2AD,"2,858.82",
Communities & Local Government,DCLG,12/08/2013,Agency Staff,Finance & Corporate Services,SQUARE ONE RESOURCES LTD,,Medium,,5106196099,Contingent Labour,Interim Manager,EC2A 2AD,"2,858.82",
Communities & Local Government,DCLG,12/08/2013,Agency Staff,Finance & Corporate Services,SQUARE ONE RESOURCES LTD,,Medium,,5106196100,Contingent Labour,Interim Manager,EC2A 2AD,"2,858.82",
Communities & Local Government,DCLG,12/08/2013,Agency Staff,Finance & Corporate Services,SQUARE ONE RESOURCES LTD,,Medium,,5106196101,Contingent Labour,Interim Manager,EC2A 2AD,"2,858.82",
Communities & Local Government,DCLG,12/08/2013,Agency Staff,Neighbourhoods,REED EMPLOYMENT SERVICES,,Large,,5106196087,Contingent Labour,Policy support,SW20 0BA,867.94,
Communities & Local Government,DCLG,12/08/2013,Agency Staff,Neighbourhoods,REED EMPLOYMENT SERVICES,,Large,,5106196088,Contingent Labour,Policy support,SW20 0BA,"1,154.86",
Communities & Local Government,DCLG,12/08/2013,Agency Staff,Neighbourhoods,REED EMPLOYMENT SERVICES,,Large,,5106196095,Contingent Labour,Policy support,SW20 0BA,"1,013.38",
Communities & Local Government,DCLG,12/08/2013,Central Share,Localism,OFFICE OF THE PAYMASTER GENERAL (NN,,,,2100233475,,BRR Central Share Receipts August 2013,RH10 1UH,"1,140,350,931.00",
Communities & Local Government,DCLG,12/08/2013,IT - Service Contracts,Finance & Corporate Services,STERIA LIMITED,,Large,,5106196097,Managed / Outsourced Services,NR410 Steria packaging of CCM software,M14 0WN,"14,830.09",
Communities & Local Government,DCLG,12/08/2013,IT - Software Maintenance,Finance & Corporate Services,METHODS CONSULTING LTD,,Medium,,5106196103,Managed / Outsourced Services,PIMS Application Support,WC2H 8AD,"24,000.00",
Communities & Local Government,DCLG,12/08/2013,Legal Fees,Finance & Corporate Services,TREASURY SOLICITOR,,Public Bodies,,2100233425,Legal,REF:LT92083A/GHO/B5,WC2B 4TS,"28,000.00",
Communities & Local Government,DCLG,12/08/2013,NNDR Central List Receipts,Localism,OFFICE OF THE PAYMASTER GENERAL (NN,,,,2100233475,,Central List receipts August 2013,RH10 1UH,"132,725,886.00",Yes
Communities & Local Government,DCLG,12/08/2013,Online Database Information Retrieval,Finance & Corporate Services,DOW JONES REUTERS BUS INTERACTIVE L,,Large,,2300002022,ICT Services,Factiva 2013-14,E1W 1AZ,-508.80,
Communities & Local Government,DCLG,12/08/2013,Online Database Information Retrieval,Finance & Corporate Services,DOW JONES REUTERS BUS INTERACTIVE L,,Large,,5106196058,ICT Services,Factiva 2013-14,E1W 1AZ,954.00,
Communities & Local Government,DCLG,12/08/2013,Online Database Information Retrieval,Finance & Corporate Services,DOW JONES REUTERS BUS INTERACTIVE L,,Large,,5106196059,ICT Services,Factiva 2013-14,E1W 1AZ,954.00,
Communities & Local Government,DCLG,12/08/2013,Removals and Porterage,Finance & Corporate Services,D FURNELL PLANT SERVICES LTD,,Small,,5106196096,Transport,Hemel Hempstead to Victoria and return,HP1 7BT,342.00,
Communities & Local Government,DCLG,12/08/2013,Research,Neighbourhoods,E C HARRIS LLP,,Large,,5106196107,Operational Services,Cat 2 and 3 call off work,N1 9AB,"18,360.00",
Communities & Local Government,DCLG,12/08/2013,Services provided by other Govt Orgs,Finance & Corporate Services,RAILWAYS PENSION TRUSTEE CO LTD,,Large,,5106196102,Business and Commercial Services,Services provided by other Gov'ment Deps,DL3 6XR,"2,352.00",Yes
Communities & Local Government,DCLG,12/08/2013,Subscriptions,Finance & Corporate Services,ARCHIVES & RECORDS ASSCN (UK & IRE),,Micro,,5106196065,Subscriptions and Admissions,Membership Oct 13 to Sep 14 incl,TA1 1SW,275.00,
Communities & Local Government,DCLG,12/08/2013,Subscriptions,Finance & Corporate Services,OFFICE OF THE  PAYMASTER GENERAL (C,,,,5106196105,Subscriptions and Admissions,GES Annual Charges 2013-14 exc. VAT,SW1A 2HQ,"1,723.00",
Communities & Local Government,DCLG,12/08/2013,Subscriptions,Finance & Corporate Services,OFFICE OF THE  PAYMASTER GENERAL (C,,,,5106196105,Subscriptions and Admissions,GES Annual Charges 2013-14 inc. VAT,SW1A 2HQ,"7,850.00",
Communities & Local Government,DCLG,12/08/2013,Training,Finance & Corporate Services,EURO ACADAMY TAXES ECONOMICS & LAW,,Small,,2300002041,Development and Training,Technical Assistance for European Struct,10117,"-1,205.32",
Communities & Local Government,DCLG,12/08/2013,Training,Finance & Corporate Services,EURO ACADAMY TAXES ECONOMICS & LAW,,Small,,5106196085,Development and Training,Smart indicators for EU Funds 2014-2020,10117,857.06,
Communities & Local Government,DCLG,12/08/2013,Transitional Receipts,Localism,OFFICE OF THE PAYMASTER GENERAL (NN,,,,2100233475,,BRR Transitional Protection receipts August 2013,RH10 1UH,"2,434,400.00",
Communities & Local Government,DCLG,12/08/2013,Work In Progress Pre-Cert 40373 Spend,Neighbourhoods,BIRMINGHAM CITY COUNCIL (NOT RATES),,Large,,7600005904,,Revenue Grant To Be Paid,B1 1BB,"26,926.27",Yes
Communities & Local Government,DCLG,12/08/2013,Work In Progress Pre-Cert 40373 Spend,Neighbourhoods,COVENTRY UNIVERSITY ENTERPRISES LTD,,Medium,,7600005897,,Revenue Grant Clawback Offset,CV1 2TT,"-8,187.28",Yes
Communities & Local Government,DCLG,12/08/2013,Work In Progress Pre-Cert 40373 Spend,Neighbourhoods,COVENTRY UNIVERSITY ENTERPRISES LTD,,Medium,,7600005897,,Revenue Grant To Be Paid,CV1 2TT,"15,340.16",Yes
Communities & Local Government,DCLG,12/08/2013,Work In Progress Pre-Cert 40373 Spend,Neighbourhoods,COVENTRY UNIVERSITY ENTERPRISES LTD,,Medium,,7600005898,,Revenue Grant To Be Paid,CV1 2TT,"55,149.72",Yes
Communities & Local Government,DCLG,12/08/2013,Work In Progress Pre-Cert 40373 Spend,Neighbourhoods,COVENTRY UNIVERSITY ENTERPRISES LTD,,Medium,,7600005903,,Revenue Grant To Be Paid,CV1 2TT,"13,787.09",Yes
Communities & Local Government,DCLG,12/08/2013,Work In Progress Pre-Cert 40373 Spend,Neighbourhoods,DNCC LIMITED,,Medium,,7600005833,,Revenue Grant To Be Paid,S41 7NA,"38,976.44",Yes
Communities & Local Government,DCLG,12/08/2013,Work In Progress Pre-Cert 40373 Spend,Neighbourhoods,HEART OF ENGLAND FINE FOODS,,Small,,7600005902,,Revenue Grant To Be Paid,SY1 3TG,"41,336.16",Yes
Communities & Local Government,DCLG,12/08/2013,Work In Progress Pre-Cert 40373 Spend,Neighbourhoods,LEICESTER CITY COUNCIL,,Large,,7600005901,,Revenue Grant Clawback Offset,LE1 6ZG,"-1,715.38",Yes
Communities & Local Government,DCLG,12/08/2013,Work In Progress Pre-Cert 40373 Spend,Neighbourhoods,LEICESTER CITY COUNCIL,,Large,,7600005901,,Revenue Grant To Be Paid,LE1 6ZG,"23,977.93",Yes
Communities & Local Government,DCLG,12/08/2013,Work In Progress Pre-Cert 40373 Spend,Neighbourhoods,LEICESTER CITY COUNCIL,,Large,,7600005905,,Revenue Grant To Be Paid,LE1 6ZG,"36,275.34",Yes
Communities & Local Government,DCLG,12/08/2013,Work In Progress Pre-Cert 40373 Spend,Neighbourhoods,SHROPSHIRE COUNCIL,,Public Bodies,,7600005899,,Revenue Grant To Be Paid,SY2 6ND,"2,599.73",Yes
Communities & Local Government,DCLG,12/08/2013,Work In Progress Pre-Cert 40373 Spend,Neighbourhoods,STOKE-ON-TRENT CITY COUNCIL,,Large,,7600005894,,Revenue Grant To Be Paid,ST4 1HP,"12,480.84",Yes
Communities & Local Government,DCLG,12/08/2013,Work In Progress Pre-Cert 40373 Spend,Neighbourhoods,STOKE-ON-TRENT CITY COUNCIL,,Large,,7600005895,,Revenue Grant To Be Paid,ST4 1HP,"10,091.79",Yes
Communities & Local Government,DCLG,12/08/2013,Work In Progress Pre-Cert 40373 Spend,Neighbourhoods,UNIVERSITY HOSPITALS BIRMINGHAM,,Large,,7600005896,,Revenue Grant To Be Paid,B15 2WB,"11,818.73",Yes
Communities & Local Government,DCLG,12/08/2013,Work In Progress Pre-Cert 40373 Spend,Neighbourhoods,UNIVERSITY OF WOLVERHAMPTON,,Large,,7600005900,,Revenue Grant To Be Paid,WV1 1SB,"45,201.17",Yes
Communities & Local Government,DCLG,12/08/2013,Work In Progress Pre-Cert 40467 Spend,Neighbourhoods,SHROPSHIRE COUNCIL,,Public Bodies,,7600005899,,Capital Grant To Be Paid,SY2 6ND,"30,737.16",Yes
Communities & Local Government,DCLG,13/08/2013,Agency Staff,Finance & Corporate Services,REED EMPLOYMENT SERVICES,,Large,,5106196113,Contingent Labour,Admin support for DG,SW20 0BA,358.09,
Communities & Local Government,DCLG,13/08/2013,Agency Staff,Finance & Corporate Services,SQUARE ONE RESOURCES LTD,,Medium,,5106196131,Contingent Labour,Interim Manager,EC2A 2AD,"2,858.82",
Communities & Local Government,DCLG,13/08/2013,Agency Staff,Neighbourhoods,CAPITA RESOURCING LTD,,Large,,5106195967,Contingent Labour,Expenses,SL6 1DP,88.08,
Communities & Local Government,DCLG,13/08/2013,Agency Staff,Neighbourhoods,CAPITA RESOURCING LTD,,Large,,5106195967,Contingent Labour,Interim Manager,SL6 1DP,"7,452.00",
Communities & Local Government,DCLG,13/08/2013,Current (non AEF) Grants to Local Authorities,Localism,GLOUCESTERSHIRE COUNTY COUNCIL,,,,5000231757,,Overpayment of Grant recovered by Exchequer,GL2 2AX,"-23,843.00",Yes
Communities & Local Government,DCLG,13/08/2013,Current (non AEF) Grants to Local Authorities,Localism,OXFORDSHIRE CC,,,,5000231771,,Overpayment of Grant recovered by Exchequer,OX1 1SD,"-5,964.00",Yes
Communities & Local Government,DCLG,13/08/2013,"IT - PC, Network & Hardware",Finance & Corporate Services,BUSINESS DISABILITY FORUM,,Small,,5106196133,ICT Services,Licence Fee-Access to Mental Health Book,SE1 2NY,"1,800.00",
Communities & Local Government,DCLG,13/08/2013,IT - Service Contracts,Finance & Corporate Services,STERIA LIMITED,,Large,,5106196126,Managed / Outsourced Services,SQ153 / NR00448 - PST File Deletion,M14 0WN,"2,240.59",
Communities & Local Government,DCLG,13/08/2013,IT - Service Contracts,Localism,MOTT MACDONALD LTD,,Large,,5106196143,Managed / Outsourced Services,Core Service Period 1 (Jun 13-May 15),BN1 4FY,"56,055.51",
Communities & Local Government,DCLG,13/08/2013,IT - Service Contracts,Finance & Corporate Services,PARITY RESOURCES LTD,,Large,,5106195276,Managed / Outsourced Services,Business Planning & Consolidation System,SW19 3RY,"-2,276.00",
Communities & Local Government,DCLG,13/08/2013,IT - Service Contracts,Finance & Corporate Services,PARITY RESOURCES LTD,,Large,,5106195277,Managed / Outsourced Services,Business Planning & Consolidation System,SW19 3RY,"-21,053.00",
Communities & Local Government,DCLG,13/08/2013,IT - Service Contracts,Finance & Corporate Services,PARITY RESOURCES LTD,,Large,,5106196090,Managed / Outsourced Services,Business Planning & Consolidation System,SW19 3RY,"17,895.00",
Communities & Local Government,DCLG,13/08/2013,IT - Service Contracts,Finance & Corporate Services,PARITY RESOURCES LTD,,Large,,5106196091,Managed / Outsourced Services,Business Planning & Consolidation System,SW19 3RY,"18,343.00",
Communities & Local Government,DCLG,13/08/2013,IT - Software Maintenance,Finance & Corporate Services,KAIZEN ASSOCIATES LTD,,Micro,,5106196116,Managed / Outsourced Services,SAP Application Support,SE1 6SW,"5,201.70",
Communities & Local Government,DCLG,13/08/2013,IT - Software Maintenance,Finance & Corporate Services,METHODS CONSULTING LTD,,Medium,,5106196119,Managed / Outsourced Services,PIMS Application Support,WC2H 8AD,"24,000.00",
Communities & Local Government,DCLG,13/08/2013,Legal Fees,Finance & Corporate Services,TREASURY SOLICITORS DEPT,,Public Bodies,,5106196128,Legal,Tsol Payments (20% VAT),WC2B 4TS,"108,199.07",
Communities & Local Government,DCLG,13/08/2013,Legal Fees,Finance & Corporate Services,TREASURY SOLICITORS DEPT,,Public Bodies,,5106196128,Legal,Tsol Payments with 0%VAT rate,WC2B 4TS,37.80,
Communities & Local Government,DCLG,13/08/2013,Online Database Information Retrieval,Finance & Corporate Services,DODS PARLIAMENTARY COMM  LTD,,Large,,5106196139,ICT Services,Dod's People 2013-14,SW1H 9BP,"8,168.77",
Communities & Local Government,DCLG,13/08/2013,Safety equipment,Finance & Corporate Services,CYCLESCHEME LTD,,Large,,5106196129,Clothing and Textiles,Salaried Cycle to work scheme accessorie,BA1 2LN,50.00,
Communities & Local Government,DCLG,13/08/2013,Steady State Service Provision,Finance & Corporate Services,ALLPAY LIMITED,,Medium,,5106196132,Business Process Outsourcing Services,DC/DC Transaction Charges,HR1 3SE,464.10,
Communities & Local Government,DCLG,13/08/2013,Steady State Service Provision,Finance & Corporate Services,ALLPAY LIMITED,,Medium,,5106196132,Business Process Outsourcing Services,Monthly Management Fee Payments,HR1 3SE,500.00,
Communities & Local Government,DCLG,13/08/2013,Telecoms equipment (non-capitalised),Finance & Corporate Services,COLT TELECOMMUNICATIONS,,Large,,5106195740,Telecoms,Dark fibre - HoC to Eland house monthly,EC3A 7QN,500.00,
Communities & Local Government,DCLG,13/08/2013,Training,Finance & Corporate Services,ASSOC FOR GEOGRAPHIC INFORMATION,,Micro,,5106195741,Development and Training,AGI Geocommunity Conference,EC3A 6AU,390.00,
Communities & Local Government,DCLG,13/08/2013,Training,Finance & Corporate Services,OFFICE FOR NATIONAL STATISTICS,,Public Bodies,,2300002033,Learning and Development Materials,Reimbursement for cancelled traning course,NP10 8XG,-700.00,
Communities & Local Government,DCLG,13/08/2013,Training,Finance & Corporate Services,OFFICE FOR NATIONAL STATISTICS,,Public Bodies,,2300002034,Learning and Development Materials,Reimbursement for cancelled traning course,NP10 8XG,-700.00,
Communities & Local Government,DCLG,13/08/2013,Training,Finance & Corporate Services,SAP (UK) LTD,,Large,,5106196154,Development and Training,BW305 BW Query Design and Analysis,TW14 8HD,"-2,210.00",
Communities & Local Government,DCLG,13/08/2013,Training,Finance & Corporate Services,SAP (UK) LTD,,Large,,5106196155,Development and Training,BW305 BW Query Design and Analysis,TW14 8HD,"2,210.00",
Communities & Local Government,DCLG,13/08/2013,Vehicle hire,Finance & Corporate Services,CYCLESCHEME LTD,,Large,,5106196129,Vehicle Hire and Lease,Salaried Cycle to work scheme,BA1 2LN,500.00,
Communities & Local Government,DCLG,13/08/2013,Vehicle hire,Finance & Corporate Services,CYCLESCHEME LTD,,Large,,5106196142,Vehicle Hire and Lease,Salaried Cycle to work scheme,BA1 2LN,965.00,
Communities & Local Government,DCLG,13/08/2013,Work In Progress Pre-Cert 40373 Spend,Neighbourhoods,CARBON LIMITING TECHNOLOGIES LTD,,Small,,7600005920,,Revenue Grant To Be Paid,GU51 5SY,"7,900.10",Yes
Communities & Local Government,DCLG,13/08/2013,Work In Progress Pre-Cert 40373 Spend,Neighbourhoods,COMMUNITY ACTION DERBY,,,,7600005925,,Revenue Grant To Be Paid,DE1 2GT,"11,988.30",Yes
Communities & Local Government,DCLG,13/08/2013,Work In Progress Pre-Cert 40373 Spend,Neighbourhoods,FOOD &  DRINK FORUM LTD (I-NET),,Small,,7600005926,,Revenue Grant To Be Paid,NG5 9RG,"77,892.37",Yes
Communities & Local Government,DCLG,13/08/2013,Work In Progress Pre-Cert 40373 Spend,Neighbourhoods,GENERATOR,,Micro,,7600005917,,Revenue Grant To Be Paid,NE1 2PQ,"12,562.16",Yes
Communities & Local Government,DCLG,13/08/2013,Work In Progress Pre-Cert 40373 Spend,Neighbourhoods,INSTITUTE FOR SUSTAINABILITY,,Small,,7600005909,,Revenue Grant To Be Paid,N1 6AH,"28,431.84",Yes
Communities & Local Government,DCLG,13/08/2013,Work In Progress Pre-Cert 40373 Spend,Neighbourhoods,INSTITUTE FOR SUSTAINABILITY,,Small,,7600005918,,Revenue Grant To Be Paid,N1 6AH,"14,080.79",Yes
Communities & Local Government,DCLG,13/08/2013,Work In Progress Pre-Cert 40373 Spend,Neighbourhoods,INSTITUTE FOR SUSTAINABILITY,,Small,,7600005924,,Revenue Grant To Be Paid,N1 6AH,"9,312.18",Yes
Communities & Local Government,DCLG,13/08/2013,Work In Progress Pre-Cert 40373 Spend,Neighbourhoods,LEICESTER UNIVERSITY,,Large,,7600005914,,Revenue Grant To Be Paid,LE1 7RH,"8,600.74",Yes
Communities & Local Government,DCLG,13/08/2013,Work In Progress Pre-Cert 40373 Spend,Neighbourhoods,LEICS AFRICAN CARIBBEAN BUSINESS AS,,Small,,7600005919,,Revenue Grant To Be Paid,LE2 0GU,"3,120.51",Yes
Communities & Local Government,DCLG,13/08/2013,Work In Progress Pre-Cert 40373 Spend,Neighbourhoods,NEWCASTLE UNIVERSITY,,,,7600005908,,Revenue Grant To Be Paid,NE1 7RU,"93,568.05",Yes
Communities & Local Government,DCLG,13/08/2013,Work In Progress Pre-Cert 40373 Spend,Neighbourhoods,NORTH EAST FINANCE (HOLDCO),,,,7600005912,,Revenue Grant To Be Paid,NE1 4AD,"489,663.72",Yes
Communities & Local Government,DCLG,13/08/2013,Work In Progress Pre-Cert 40373 Spend,Neighbourhoods,NOTTINGHAM UNIVERSITY,,Large,,7600005922,,Revenue Grant To Be Paid,NG7 2RD,"78,874.99",Yes
Communities & Local Government,DCLG,13/08/2013,Work In Progress Pre-Cert 40373 Spend,Neighbourhoods,ONE EAST MIDLANDS,,,,7600005910,,Revenue Grant To Be Paid,NG1 3FB,"8,941.23",Yes
Communities & Local Government,DCLG,13/08/2013,Work In Progress Pre-Cert 40373 Spend,Neighbourhoods,REMADE SOUTH EAST,,Micro,,7600005915,,Revenue Grant To Be Paid,ME19 6BJ,537.90,Yes
Communities & Local Government,DCLG,13/08/2013,Work In Progress Pre-Cert 40373 Spend,Neighbourhoods,REMADE SOUTH EAST,,Micro,,7600005916,,Revenue Grant To Be Paid,ME19 6BJ,"1,284.87",Yes
Communities & Local Government,DCLG,13/08/2013,Work In Progress Pre-Cert 40373 Spend,Neighbourhoods,SUNDERLAND CITY COUNCIL,,,,7600005913,,Revenue Grant To Be Paid,SR2 7DN,"2,318.24",Yes
Communities & Local Government,DCLG,13/08/2013,Work In Progress Pre-Cert 40373 Spend,Neighbourhoods,UNIVERSITY OF TEESIDE,,,,7600005906,,Revenue Grant To Be Paid,TS1 3BA,"617,117.33",Yes
Communities & Local Government,DCLG,13/08/2013,Work In Progress Pre-Cert 40373 Spend,Neighbourhoods,UNIVERSITY OF TEESIDE,,,,7600005907,,Revenue Grant To Be Paid,TS1 3BA,"120,911.82",Yes
Communities & Local Government,DCLG,13/08/2013,Work In Progress Pre-Cert 40373 Spend,Neighbourhoods,UNIVERSITY OF TEESIDE,,,,7600005911,,Revenue Grant To Be Paid,TS1 3BA,"106,608.85",Yes
Communities & Local Government,DCLG,13/08/2013,Work In Progress Pre-Cert 40373 Spend,Neighbourhoods,WORKING LINKS,,,,7600005921,,Revenue Grant To Be Paid,WC2E 9JL,"38,834.96",Yes
Communities & Local Government,DCLG,13/08/2013,Work In Progress Pre-Cert 40373 Spend,Neighbourhoods,YTKO LIMITED,,,,7600005923,,Revenue Grant To Be Paid,CB4 0WS,"65,402.66",Yes
Communities & Local Government,DCLG,13/08/2013,Work In Progress Pre-Cert 40467 Spend,Neighbourhoods,NOTTINGHAM UNIVERSITY,,Large,,7600005922,,Capital Grant To Be Paid,NG7 2RD,"74,194.81",Yes
Communities & Local Government,DCLG,13/08/2013,Work In Progress Pre-Cert 40467 Spend,Neighbourhoods,SUNDERLAND CITY COUNCIL,,,,7600005913,,Capital Grant To Be Paid,SR2 7DN,"69,504.95",Yes
Communities & Local Government,DCLG,14/08/2013,Agency Staff,Finance & Corporate Services,ALLEN LANE FINANCIAL RECRUITMENT,,Medium,Yes,5106196183,Contingent Labour,Interim Manager (Qualified Accountant),,"3,036.86",
Communities & Local Government,DCLG,14/08/2013,Agency Staff,Finance & Corporate Services,ALLEN LANE FINANCIAL RECRUITMENT,,Medium,Yes,5106196209,Contingent Labour,Interim Manager (Qualified Accountant),,"3,036.86",
Communities & Local Government,DCLG,14/08/2013,Agency Staff,Finance & Corporate Services,CAPITA RESOURCING LTD,,Large,,5106196169,Contingent Labour,Expenses,SL6 1DP,9.12,
Communities & Local Government,DCLG,14/08/2013,Agency Staff,Finance & Corporate Services,CAPITA RESOURCING LTD,,Large,,5106196171,Contingent Labour,Interim Manager,SL6 1DP,631.86,
Communities & Local Government,DCLG,14/08/2013,Agency Staff,Finance & Corporate Services,CAPITA RESOURCING LTD,,Large,,5106196178,Contingent Labour,CPD 0492030 Capita MSP,SL6 1DP,306.00,
Communities & Local Government,DCLG,14/08/2013,Agency Staff,Finance & Corporate Services,CAPITA RESOURCING LTD,,Large,,5106196188,Contingent Labour,Interim Manager (IAS),SL6 1DP,"2,178.00",
Communities & Local Government,DCLG,14/08/2013,Agency Staff,Finance & Corporate Services,CAPITA RESOURCING LTD,,Large,,5106196201,Contingent Labour,CPD 0492030 Capita MSP,SL6 1DP,"1,275.00",
Communities & Local Government,DCLG,14/08/2013,Agency Staff,Finance & Corporate Services,CAPITA RESOURCING LTD,,Large,,5106196230,Contingent Labour,CPD 0492030 Capita MSP,SL6 1DP,"2,160.00",
Communities & Local Government,DCLG,14/08/2013,Agency Staff,Finance & Corporate Services,CAPITA RESOURCING LTD,,Large,,5106196235,Contingent Labour,CPD 0492030 Capita MSP,SL6 1DP,"2,400.00",
Communities & Local Government,DCLG,14/08/2013,Agency Staff,Finance & Corporate Services,CAPITA RESOURCING LTD,,Large,,5106196236,Contingent Labour,CPD 0492030 Capita MSP,SL6 1DP,"2,400.00",
Communities & Local Government,DCLG,14/08/2013,Agency Staff,Finance & Corporate Services,REED EMPLOYMENT SERVICES,,Large,,5106196192,Contingent Labour,Temporary Admin Support - Agency Staff,SW20 0BA,652.08,
Communities & Local Government,DCLG,14/08/2013,Agency Staff,Finance & Corporate Services,REED EMPLOYMENT SERVICES,,Large,,5106196200,Contingent Labour,Temporary Admin Support - Agency Staff,SW20 0BA,617.76,
Communities & Local Government,DCLG,14/08/2013,Agency Staff,Finance & Corporate Services,REED EMPLOYMENT SERVICES,,Large,,5106196202,Contingent Labour,Temporary Admin Support - Agency Staff,SW20 0BA,579.16,
Communities & Local Government,DCLG,14/08/2013,Agency Staff,Finance & Corporate Services,REED EMPLOYMENT SERVICES,,Large,,5106196204,Contingent Labour,Temporary Admin Support - Agency Staff,SW20 0BA,634.92,
Communities & Local Government,DCLG,14/08/2013,Agency Staff,Finance & Corporate Services,REED EMPLOYMENT SERVICES,,Large,,5106196207,Contingent Labour,Temporary Admin Support - Agency Staff,SW20 0BA,652.08,
Communities & Local Government,DCLG,14/08/2013,Agency Staff,Finance & Corporate Services,REED EMPLOYMENT SERVICES,,Large,,5106196208,Contingent Labour,Temporary Admin Support - Agency Staff,SW20 0BA,609.18,
Communities & Local Government,DCLG,14/08/2013,Agency Staff,Localism,CAPITA RESOURCING LTD,,Large,,5106196169,Contingent Labour,Interim Manager (Ext 01),SL6 1DP,"2,868.78",
Communities & Local Government,DCLG,14/08/2013,Agency Staff,Localism,CAPITA RESOURCING LTD,,Large,,5106196177,Contingent Labour,Interim Manager (Ext 01),SL6 1DP,"5,990.64",
Communities & Local Government,DCLG,14/08/2013,Agency Staff,Localism,MANPOWER UK LTD,,Large,,2300002044,Contingent Labour,Agency Staff,UB8 1AB,-336.60,
Communities & Local Government,DCLG,14/08/2013,Agency Staff,Localism,MANPOWER UK LTD,,Large,,5106196215,Contingent Labour,Agency Staff,UB8 1AB,656.38,
Communities & Local Government,DCLG,14/08/2013,Agency Staff,Neighbourhoods,CAPITA RESOURCING LTD,,Large,,5106196161,Contingent Labour,Interim Manager,SL6 1DP,"1,912.50",
Communities & Local Government,DCLG,14/08/2013,Agency Staff,Neighbourhoods,CAPITA RESOURCING LTD,,Large,,5106196162,Contingent Labour,Interim Manager,SL6 1DP,"2,375.94",
Communities & Local Government,DCLG,14/08/2013,Agency Staff,Neighbourhoods,CAPITA RESOURCING LTD,,Large,,5106196172,Contingent Labour,Expenses,SL6 1DP,148.88,
Communities & Local Government,DCLG,14/08/2013,Agency Staff,Neighbourhoods,CAPITA RESOURCING LTD,,Large,,5106196172,Contingent Labour,Interim Manager,SL6 1DP,"1,912.50",
Communities & Local Government,DCLG,14/08/2013,Agency Staff,Neighbourhoods,CAPITA RESOURCING LTD,,Large,,5106196174,Contingent Labour,Interim Manager,SL6 1DP,"1,392.34",
Communities & Local Government,DCLG,14/08/2013,Agency Staff,Neighbourhoods,CAPITA RESOURCING LTD,,Large,,5106196175,Contingent Labour,Expenses,SL6 1DP,184.88,
Communities & Local Government,DCLG,14/08/2013,Agency Staff,Neighbourhoods,CAPITA RESOURCING LTD,,Large,,5106196175,Contingent Labour,Interim Manager,SL6 1DP,"3,825.00",
Communities & Local Government,DCLG,14/08/2013,Agency Staff,Neighbourhoods,CAPITA RESOURCING LTD,,Large,,5106196176,Contingent Labour,Expenses,SL6 1DP,9.00,
Communities & Local Government,DCLG,14/08/2013,Agency Staff,Neighbourhoods,CAPITA RESOURCING LTD,,Large,,5106196176,Contingent Labour,Interim Manager,SL6 1DP,"3,105.00",
Communities & Local Government,DCLG,14/08/2013,Agency Staff,Neighbourhoods,CAPITA RESOURCING LTD,,Large,,5106196180,Contingent Labour,Expenses,SL6 1DP,68.52,
Communities & Local Government,DCLG,14/08/2013,Agency Staff,Neighbourhoods,CAPITA RESOURCING LTD,,Large,,5106196180,Contingent Labour,Interim Manager,SL6 1DP,"1,794.72",
Communities & Local Government,DCLG,14/08/2013,Agency Staff,Neighbourhoods,CAPITA RESOURCING LTD,,Large,,5106196191,Contingent Labour,Expenses,SL6 1DP,756.70,
Communities & Local Government,DCLG,14/08/2013,Agency Staff,Neighbourhoods,CAPITA RESOURCING LTD,,Large,,5106196191,Contingent Labour,Interim Manager,SL6 1DP,"4,253.10",
Communities & Local Government,DCLG,14/08/2013,Agency Staff,Neighbourhoods,REED SPECIALIST RECRUITMENT LTD,,Large,,5106196231,Contingent Labour,Temporary staff for a time limited period,NN1 1UE,251.42,
Communities & Local Government,DCLG,14/08/2013,Cap Grants to Private Sector Companies,Neighbourhoods,UNILEVER UK CENTRAL RESOURCES,,,,2100233578,,Regional Growth Fund Qtr 2 grant payment -cap,3133 AT,"396,198.80",Yes
Communities & Local Government,DCLG,14/08/2013,Electricity,Finance & Corporate Services,EDF ENERGY 1 LIMITED,,Large,,5106196217,Energy,SW Taunton Electricity 2013-14,PL3 5XQ,"2,970.89",
Communities & Local Government,DCLG,14/08/2013,Electricity,Finance & Corporate Services,EDF ENERGY 1 LIMITED,,Large,,5106196218,Energy,EoE Waterbeach Electricity 2013-14,PL3 5XQ,"4,019.53",
Communities & Local Government,DCLG,14/08/2013,Electricity,Finance & Corporate Services,EDF ENERGY 1 LIMITED,,Large,,5106196219,Energy,WM Wolverhampton Electricity - 2013-14,PL3 5XQ,"4,228.08",
Communities & Local Government,DCLG,14/08/2013,Electricity,Finance & Corporate Services,EDF ENERGY 1 LIMITED,,Large,,5106196220,Energy,Y&H Wakefeild Electricity 2013-14,PL3 5XQ,"2,933.74",
Communities & Local Government,DCLG,14/08/2013,Electricity,Finance & Corporate Services,EDF ENERGY 1 LIMITED,,Large,,5106196220,Energy,Y&H Wakefeild Electricity 2013-14 0% VAT,PL3 5XQ,7.98,
Communities & Local Government,DCLG,14/08/2013,Electricity,Finance & Corporate Services,EDF ENERGY 1 LIMITED,,Large,,5106196221,Energy,EM Castle Don Electricity 2013-14,PL3 5XQ,"3,818.78",
Communities & Local Government,DCLG,14/08/2013,Grant in Aid to NDPBs (non budget),Neighbourhoods,HOMES & COMMUNITIES AGENCY,,Public Bodies,,2100233571,,HCA weekly Grant-In-Aid claim - Wed 14 August 2013,NE11 0NA,"21,708,067.00",Yes
Communities & Local Government,DCLG,14/08/2013,IT - Service Contracts,Finance & Corporate Services,STERIA LIMITED,,Large,,5106196158,Managed / Outsourced Services,Software packaging for NR00417,M14 0WN,"4,422.23",
Communities & Local Government,DCLG,14/08/2013,IT - Service Contracts,Finance & Corporate Services,STERIA LIMITED,,Large,,5106196159,Managed / Outsourced Services,SQ161 - Add. work for NR00437 Plymouth,M14 0WN,"4,510.99",
Communities & Local Government,DCLG,14/08/2013,Mobile phone costs,Localism,AST CONNECTIONS LTD,,Medium,,5106196237,Telecoms,EMT SAT PHONE,NR31 0LX,451.38,
Communities & Local Government,DCLG,14/08/2013,Mobile phone costs,Localism,BABCOCK CRITICAL SERVICES LTD,,Large,,5106196167,Telecoms,Orange Airtime Bills For ND Flt-2013/14,NG15 0DR,755.11,
Communities & Local Government,DCLG,14/08/2013,Physical Storage,Finance & Corporate Services,IRON MOUNTAIN (UK) LIMITED,,Large,,5106196134,Warehousing and Storage,Offsite storage - tapes,EH54 7DF,422.57,
Communities & Local Government,DCLG,14/08/2013,Professional services,Localism,GOVT ACTUARYS DEPARTMENT,,Public Bodies,,5106196189,Financial,Provision of Pension Advice LGPS,EC4A 1AB,"14,760.43",
Communities & Local Government,DCLG,14/08/2013,Professional services,Localism,GOVT ACTUARYS DEPARTMENT,,Public Bodies,,5106196190,Financial,Provision of Pension Advice LGPS,EC4A 1AB,869.30,
Communities & Local Government,DCLG,14/08/2013,Subscriptions,Finance & Corporate Services,ASSCN OF DIRECTORS OF CHILDRENS SER,,Micro,,5106196206,Subscriptions and Admissions,ADCS Associate Membership Fee 2013/14,M4 3TR,150.00,
Communities & Local Government,DCLG,14/08/2013,Training,Finance & Corporate Services,ASSCN OF DIRECTORS OF CHILDRENS SER,,Micro,,5106196206,Development and Training,ADCS Annual Conference 2013,M4 3TR,355.00,
Communities & Local Government,DCLG,14/08/2013,Training,Finance & Corporate Services,CAPITA BUSINESS SERVICES LTD,,Large,,5106196170,Development and Training,Briefings & Submissions Workshop,DL1 9HB,"2,170.00",
Communities & Local Government,DCLG,14/08/2013,Travel and Subsistence Account,Localism,MR M IRFAN CHISHTI,,,,2100233577,Business Travel,EXPENSES,,300.25,
Communities & Local Government,DCLG,14/08/2013,Utilisation of Unfunded Pension Scheme,Neighbourhoods,LONDON PENSIONS FUND AUTHORITY,,Public Bodies,,2100233574,,6473 COVERING JULY PAYMENTS,EC3N 4LP,358.69,
Communities & Local Government,DCLG,14/08/2013,Water,Finance & Corporate Services,SEVERN TRENT WATER LTD,,Large,,5106196216,Operation of Water Supplies and Distribution,West Midlands RCC  Water 2013-14,CV3 9FJ,668.80,
Communities & Local Government,DCLG,14/08/2013,Work In Progress Pre-Cert 40373 Spend,Neighbourhoods,ACCESS TO BUSINESS,,Small,,7600005931,,Revenue Grant Clawback Offset,WV2 1AA,"-1,829.94",Yes
Communities & Local Government,DCLG,14/08/2013,Work In Progress Pre-Cert 40373 Spend,Neighbourhoods,ACCESS TO BUSINESS,,Small,,7600005931,,Revenue Grant To Be Paid,WV2 1AA,"38,411.14",Yes
Communities & Local Government,DCLG,14/08/2013,Work In Progress Pre-Cert 40373 Spend,Neighbourhoods,BIRMINGHAM CITY COUNCIL (NOT RATES),,Large,,7600005929,,Revenue Grant To Be Paid,B1 1BB,"15,158.56",Yes
Communities & Local Government,DCLG,14/08/2013,Work In Progress Pre-Cert 40373 Spend,Neighbourhoods,CORNWALL COUNCIL,,,,7600005927,,Revenue Grant To Be Paid,TR1 3AY,"68,227.83",Yes
Communities & Local Government,DCLG,14/08/2013,Work In Progress Pre-Cert 40373 Spend,Neighbourhoods,NORFOLK & WAVENEY ENTERPRISE SERV'S,,Medium,,7600005930,,Revenue Grant To Be Paid,NR2 1JH,"29,579.40",Yes
Communities & Local Government,DCLG,14/08/2013,Work In Progress Pre-Cert 40373 Spend,Neighbourhoods,SERCO REGIONAL SERVICES LTD,,,,7600005936,,Revenue Grant To Be Paid,PL6 8BT,"54,126.40",Yes
Communities & Local Government,DCLG,14/08/2013,Work In Progress Pre-Cert 40373 Spend,Neighbourhoods,SHROPSHIRE COUNCIL,,Public Bodies,,7600005928,,Revenue Grant To Be Paid,SY2 6ND,"12,339.20",Yes
Communities & Local Government,DCLG,14/08/2013,Work In Progress Pre-Cert 40373 Spend,Neighbourhoods,STAFFORDSHIRE COUNTY COUNCIL,,,,7600005933,,Revenue Grant To Be Paid,ST16 2DH,"41,771.58",Yes
Communities & Local Government,DCLG,14/08/2013,Work In Progress Pre-Cert 40373 Spend,Neighbourhoods,STOKE-ON-TRENT CITY COUNCIL,,Large,,7600005932,,Revenue Grant To Be Paid,ST4 1HP,"26,131.89",Yes
Communities & Local Government,DCLG,14/08/2013,Work In Progress Pre-Cert 40373 Spend,Neighbourhoods,UK HISTORIC BUILDING PRESERVATION T,Yes,Small,,7600005935,,Revenue Grant To Be Paid,SW1W 0QP,"18,798.92",Yes
Communities & Local Government,DCLG,14/08/2013,Work In Progress Pre-Cert 40373 Spend,Neighbourhoods,YTKO LIMITED,,,,7600005934,,Revenue Grant To Be Paid,CB4 0WS,"14,865.98",Yes
Communities & Local Government,DCLG,14/08/2013,Work In Progress Pre-Cert 40467 Spend,Neighbourhoods,BIRMINGHAM CITY COUNCIL (NOT RATES),,Large,,7600005929,,Capital Grant To Be Paid,B1 1BB,"108,832.15",Yes
Communities & Local Government,DCLG,14/08/2013,Work In Progress Pre-Cert 40467 Spend,Neighbourhoods,UK HISTORIC BUILDING PRESERVATION T,Yes,Small,,7600005935,,Capital Grant To Be Paid,SW1W 0QP,"3,897.55",Yes
Communities & Local Government,DCLG,15/08/2013,Agency Staff,Finance & Corporate Services,MANPOWER UK LTD,,Large,,5106196135,Contingent Labour,+12 weeks Higher Rate,UB8 1AB,555.76,
Communities & Local Government,DCLG,15/08/2013,Agency Staff,Finance & Corporate Services,PREMIERE EMPLOYMENT GROUP LTD,,Large,,5106196254,Contingent Labour,Admin clerical support,M3 2JA,541.80,
Communities & Local Government,DCLG,15/08/2013,Agency Staff,Finance & Corporate Services,REED EMPLOYMENT SERVICES,,Large,,5106196268,Contingent Labour,Temporary PA Support - Agency Staff,SW20 0BA,394.68,
Communities & Local Government,DCLG,15/08/2013,Agency Staff,Finance & Corporate Services,REED EMPLOYMENT SERVICES,,Large,,5106196273,Contingent Labour,Admin support for DG,SW20 0BA,566.98,
Communities & Local Government,DCLG,15/08/2013,Agency Staff,Finance & Corporate Services,REED EMPLOYMENT SERVICES,,Large,,5106196282,Contingent Labour,PA admin,SW20 0BA,592.68,
Communities & Local Government,DCLG,15/08/2013,Agency Staff,Localism,MANPOWER UK LTD,,Large,,5106196157,Contingent Labour,Agency Staff,UB8 1AB,918.59,
Communities & Local Government,DCLG,15/08/2013,Agency Staff,Neighbourhoods,REED EMPLOYMENT SERVICES,,Large,,5106196255,Contingent Labour,Extension of Support- Rate Adjustment,SW20 0BA,"1,592.66",
Communities & Local Government,DCLG,15/08/2013,Cap Grants to Private Sector Companies,Neighbourhoods,AESICA PHARMACEUTICALS LTD,,,,2100233433,,Regional Growth Fund Payment Q2 2013/14,NE12 8BS,"109,365.00",Yes
Communities & Local Government,DCLG,15/08/2013,Cap Grants to Private Sector Companies,Neighbourhoods,ALAMO MANUFACTURING SEVICES (UK) LT,,,,2100233487,,Regional Growth Fund Payment Q2 2013/14,WR11 8SW,"62,383.00",Yes
Communities & Local Government,DCLG,15/08/2013,Cap Grants to Private Sector Companies,Neighbourhoods,AVANTI HYLAS 2 LIMITED,,,,2100233477,,Regional Growth Fund Payment Q2 2013/14,EC2A 3AY,"68,685.00",Yes
Communities & Local Government,DCLG,15/08/2013,Cap Grants to Private Sector Companies,Neighbourhoods,BIRMINGHAM CITY COUNCIL,,,,2100233489,,Regional Growth Fund Payment Q2 2013/14,B3 3PL,"1,825,010.00",Yes
Communities & Local Government,DCLG,15/08/2013,Cap Grants to Private Sector Companies,Neighbourhoods,BLACKBURN WITH DARWEN BC,,Large,,2100233529,,Regional Growth Fund Qtr 2 grant payment,BB1 7DY,"300,000.00",Yes
Communities & Local Government,DCLG,15/08/2013,Cap Grants to Private Sector Companies,Neighbourhoods,BLS ELECTRONICS LTD,,Small,,2100233434,,Regional Growth Fund Payment Q2 2013/14,DH9 7YB,"5,877.00",Yes
Communities & Local Government,DCLG,15/08/2013,Cap Grants to Private Sector Companies,Neighbourhoods,BRUNTON SHAW UK,,Medium,,2100233512,,Regional Growth Fund Payment Q2 2013/14,S80 3ES,"80,000.00",Yes
Communities & Local Government,DCLG,15/08/2013,Cap Grants to Private Sector Companies,Neighbourhoods,BURNLEY BC,,,,2100233516,,Regional Growth Fund Qtr 2 grant payment,BB11 2DS,"9,973.00",Yes
Communities & Local Government,DCLG,15/08/2013,Cap Grants to Private Sector Companies,Neighbourhoods,CAB AUTOMOTIVE LTD,,,,2100233496,,Regional Growth Fund Payment Q2 2013/14,OY4 7UJ,"372,898.68",Yes
Communities & Local Government,DCLG,15/08/2013,Cap Grants to Private Sector Companies,Neighbourhoods,CERAM RESEARCH LIMITED,,Medium,,2100233497,,Regional Growth Fund Payment Q2 2013/14,ST4 7LQ,"83,474.00",Yes
Communities & Local Government,DCLG,15/08/2013,Cap Grants to Private Sector Companies,Neighbourhoods,CROWN SPECIALITY PACKAGING UK LTD,,,,2100233518,,Regional Growth Fund Qtr 2 grant payment,OX12 9BP,"185,000.00",Yes
Communities & Local Government,DCLG,15/08/2013,Cap Grants to Private Sector Companies,Neighbourhoods,CUMMINS LTD,,Large,,2100233435,,Regional Growth Fund Payment Q2 2013/14,DL1 4PW,"226,265.00",Yes
Communities & Local Government,DCLG,15/08/2013,Cap Grants to Private Sector Companies,Neighbourhoods,DARCHEM ENGINEERING LIMITED,,,,2100233436,,Regional Growth Fund Payment Q2 2013/14,TS21 1LB,"377,484.00",Yes
Communities & Local Government,DCLG,15/08/2013,Cap Grants to Private Sector Companies,Neighbourhoods,DERBY CITY COUNCIL,,Large,,2100233488,,Regional Growth Fund Payment Q2 2013/14,DE1 2YL,"1,654,384.00",Yes
Communities & Local Government,DCLG,15/08/2013,Cap Grants to Private Sector Companies,Neighbourhoods,DRUCK LTD,,,,2100233508,,Regional Growth Fund Payment Q2 2013/14,LE6 0FH,"300,414.00",Yes
Communities & Local Government,DCLG,15/08/2013,Cap Grants to Private Sector Companies,Neighbourhoods,ENERGY COAST WEST CUMBRIA LTD,,Medium,,2100233520,,Regional Growth Fund Qtr 2 grant payment,CA24 3JZ,"567,857.45",Yes
Communities & Local Government,DCLG,15/08/2013,Cap Grants to Private Sector Companies,Neighbourhoods,FERGUSON POLYCOM LTD,,Medium,,2100233521,,Regional Growth Fund Qtr 2 grant payment,OL8 3RA,"332,566.00",Yes
Communities & Local Government,DCLG,15/08/2013,Cap Grants to Private Sector Companies,Neighbourhoods,GTR MANCHESTER COMBINED AUTHORITY,,Public Bodies,,2100233482,,Regional Growth Fund Payment Q2 2013/14,M60 2JR,"5,483,000.00",Yes
Communities & Local Government,DCLG,15/08/2013,Cap Grants to Private Sector Companies,Neighbourhoods,GTR MANCHESTER COMBINED AUTHORITY,,Public Bodies,,2100233513,,Regional Growth Fund Qtr 2 grant payment,M60 2JR,"110,000.00",Yes
Communities & Local Government,DCLG,15/08/2013,Cap Grants to Private Sector Companies,Neighbourhoods,GTR MANCHESTER COMBINED AUTHORITY,,Public Bodies,,2100233535,,Regional Growth Fund Qtr 2 grant payment,M60 2JR,"1,121,462.00",Yes
Communities & Local Government,DCLG,15/08/2013,Cap Grants to Private Sector Companies,Neighbourhoods,HALTON BOROUGH COUNCIL,,Large,,2100233493,,Regional Growth Fund Qtr 2 grant payment,WA8 7QF,"562,870.00",Yes
Communities & Local Government,DCLG,15/08/2013,Cap Grants to Private Sector Companies,Neighbourhoods,HEIGHTS (UK) LIMITED,,,,2100233523,,Regional Growth Fund Qtr 2 grant payment,HX2 7TJ,"9,418.75",Yes
Communities & Local Government,DCLG,15/08/2013,Cap Grants to Private Sector Companies,Neighbourhoods,HEREFORDSHIRE COUNCIL,,Public Bodies,,2100233498,,Regional Growth Fund Payment Q2 2013/14,HR1 1ZT,"150,000.00",Yes
Communities & Local Government,DCLG,15/08/2013,Cap Grants to Private Sector Companies,Neighbourhoods,HINCKLEY &  BOSWORTH BOROUGH COUNCI,,Large,,2100233499,,Regional Growth Fund Payment Q2 2013/14,LE10 1BZ,"1,440,023.00",Yes
Communities & Local Government,DCLG,15/08/2013,Cap Grants to Private Sector Companies,Neighbourhoods,JCB SERVICE,,Large,,2100233500,,Regional Growth Fund Payment Q2 2013/14,ST14 5JP,"335,792.00",Yes
Communities & Local Government,DCLG,15/08/2013,Cap Grants to Private Sector Companies,Neighbourhoods,LEEANN FASHIONS LTD,,Medium,,2100233511,,Regional Growth Fund Payment Q2 2013/14,LE10 3EZ,"681,418.00",Yes
Communities & Local Government,DCLG,15/08/2013,Cap Grants to Private Sector Companies,Neighbourhoods,LIVERPOOL CITY COUNCIL,,Public Bodies,,2100233494,,Regional Growth Fund Qtr 2 grant payment,L2 2DH,"175,109.22",Yes
Communities & Local Government,DCLG,15/08/2013,Cap Grants to Private Sector Companies,Neighbourhoods,LIVERPOOL CITY COUNCIL,,Public Bodies,,2100233524,,Regional Growth Fund Qtr 2 grant payment,L2 2DH,"577,338.00",Yes
Communities & Local Government,DCLG,15/08/2013,Cap Grants to Private Sector Companies,Neighbourhoods,LUCITE INTERNATIONAL UK LTD,,,,2100233525,,Regional Growth Fund Qtr 2 grant payment,BB3 1QB,"88,883.00",Yes
Communities & Local Government,DCLG,15/08/2013,Cap Grants to Private Sector Companies,Neighbourhoods,MOLCULAR PROFILES LTD,,,,2100233509,,Regional Growth Fund Payment Q2 2013/14,NG15 6UP,"240,975.00",Yes
Communities & Local Government,DCLG,15/08/2013,Cap Grants to Private Sector Companies,Neighbourhoods,NDC POLYTHENES LTD,,Small,,2100233506,,Regional Growth Fund Payment Q2 2013/14,DY2 0XQ,"38,517.77",Yes
Communities & Local Government,DCLG,15/08/2013,Cap Grants to Private Sector Companies,Neighbourhoods,NEWCASTLE CITY COUNCIL,,,,2100233439,,Regional Growth Fund Payment Q2 2013/14,NE1 8QN,"89,253.00",Yes
Communities & Local Government,DCLG,15/08/2013,Cap Grants to Private Sector Companies,Neighbourhoods,NEWCASTLE CITY COUNCIL,,,,2100233440,,Regional Growth Fund Payment Q2 2013/14,NE1 8QN,"677,333.00",Yes
Communities & Local Government,DCLG,15/08/2013,Cap Grants to Private Sector Companies,Neighbourhoods,PARGAT & COMPANY LTD,,,,2100233503,,Regional Growth Fund Payment Q2 2013/14,B71 4JZ,"72,337.00",Yes
Communities & Local Government,DCLG,15/08/2013,Cap Grants to Private Sector Companies,Neighbourhoods,PIRELLI TYRES LTD,,Large,,2100233527,,Regional Growth Fund Qtr 2 grant payment,DE13 0BH,"685,707.00",Yes
Communities & Local Government,DCLG,15/08/2013,Cap Grants to Private Sector Companies,Neighbourhoods,ROMAX TECHNOLOGY LTD,,,,2100233510,,Regional Growth Fund Payment Q2 2013/14,NG7 2PZ,"106,752.32",Yes
Communities & Local Government,DCLG,15/08/2013,Cap Grants to Private Sector Companies,Neighbourhoods,SALFORD CITY COUNCIL,,Public Bodies,,2100233530,,Regional Growth Fund Qtr 2 grant payment,M27 5AW,"3,468,278.00",Yes
Communities & Local Government,DCLG,15/08/2013,Cap Grants to Private Sector Companies,Neighbourhoods,SOUTHAMPTON CITY COUNCIL,,Public Bodies,,2100233485,,Regional Growth Fund Payment Q2 2013/14,SO14 7NR,"1,051,084.90",Yes
Communities & Local Government,DCLG,15/08/2013,Cap Grants to Private Sector Companies,Neighbourhoods,STOCKTON ON TEES BC,,,,2100233443,,Regional Growth Fund Payment Q2 2013/14,TS18 1LE,"44,991.00",Yes
Communities & Local Government,DCLG,15/08/2013,Cap Grants to Private Sector Companies,Neighbourhoods,TAMESIDE MBC,,Large,,2100233531,,Regional Growth Fund Qtr 2 grant payment,OL6 6DL,"130,422.34",Yes
Communities & Local Government,DCLG,15/08/2013,Cap Grants to Private Sector Companies,Neighbourhoods,THARSUS ENGINEERING LTD,,,,2100233444,,Regional Growth Fund Payment Q2 2013/14,NE24 5TG,"31,445.44",Yes
Communities & Local Government,DCLG,15/08/2013,Cap Grants to Private Sector Companies,Neighbourhoods,THOMAS DUDLEY LTD,,,,2100233502,,Regional Growth Fund Payment Q2 2013/14,DY1 4SN,"68,243.44",Yes
Communities & Local Government,DCLG,15/08/2013,Cap Grants to Private Sector Companies,Neighbourhoods,TINSELY SPECIAL PRODUCTS LTD,,,,2100233445,,Regional Growth Fund Payment Q2 2013/14,TS16 0PS,"163,925.00",Yes
Communities & Local Government,DCLG,15/08/2013,Cap Grants to Private Sector Companies,Neighbourhoods,TYGAVAC ADVANCED MATERIALS LTD,,Small,,2100233514,,Regional Growth Fund Qtr 2 grant payment,OL16 5LX,"204,341.34",Yes
Communities & Local Government,DCLG,15/08/2013,Cap Grants to Private Sector Companies,Neighbourhoods,UK HISTORIC BUILDING PRESERVATION T,Yes,Small,,2100233504,,Regional Growth Fund Payment Q2 2013/14,SW1W 0QP,"329,128.00",Yes
Communities & Local Government,DCLG,15/08/2013,Cap Grants to Private Sector Companies,Neighbourhoods,UNIPRES (UK) LTD,,Large,,2100233446,,Regional Growth Fund Payment Q2 2013/14,NE38 8LP,"292,285.00",Yes
Communities & Local Government,DCLG,15/08/2013,Cap Grants to Private Sector Companies,Neighbourhoods,WAKEFIELD MDC,,Large,,2100233515,,Regional Growth Fund Qtr 2 grant payment,WF1 1ZS,"186,637.00",Yes
Communities & Local Government,DCLG,15/08/2013,Cap Grants to Private Sector Companies,Neighbourhoods,ZYTEC AUTOMOTIVE LTD,,Medium,,2100233507,,Regional Growth Fund Payment Q2 2013/14,WS13 8RY,"169,544.00",Yes
Communities & Local Government,DCLG,15/08/2013,Current (non AEF) Grants to Local Authorities,Localism,ADUR DC,,,,5000233102,,Council Tax Freeze,BN11 1HB,"6,324.00",Yes
Communities & Local Government,DCLG,15/08/2013,Current (non AEF) Grants to Local Authorities,Localism,AMBER VALLEY BC,,,,5000233103,,Council Tax Freeze,DE5 3WZ,"6,281.00",Yes
Communities & Local Government,DCLG,15/08/2013,Current (non AEF) Grants to Local Authorities,Localism,ARUN DC,,,,5000233007,,Council Tax Freeze,BN17 5LF,"10,193.00",Yes
Communities & Local Government,DCLG,15/08/2013,Current (non AEF) Grants to Local Authorities,Localism,ASHFIELD DC,,,,5000233104,,Council Tax Freeze,NG17 8DA,"6,120.00",Yes
Communities & Local Government,DCLG,15/08/2013,Current (non AEF) Grants to Local Authorities,Localism,AVON & SOMERSET POLICE AUTHORITY,,,,5000233282,,Local Council Tax Support for Police Commissioners,TA1 4DY,"1,134,139.00",Yes
Communities & Local Government,DCLG,15/08/2013,Current (non AEF) Grants to Local Authorities,Localism,AVON & SOMERSET POLICE AUTHORITY,,,,5000233283,,Council Tax Freeze for Police and Crime Commission,TA1 4DY,"236,939.00",Yes
Communities & Local Government,DCLG,15/08/2013,Current (non AEF) Grants to Local Authorities,Localism,AVON & SOMERSET POLICE AUTHORITY,,,,5000233284,,Council Tax Freeze,TA1 4DY,"96,157.00",Yes
Communities & Local Government,DCLG,15/08/2013,Current (non AEF) Grants to Local Authorities,Localism,BABERGH DC,,,,5000233008,,Council Tax Freeze,IP7 6SJ,"4,940.00",Yes
Communities & Local Government,DCLG,15/08/2013,Current (non AEF) Grants to Local Authorities,Localism,BARKING & DAGENHAM LB (HSG),,,,5000233009,,Council Tax Freeze,RM10 7BY,"54,036.00",Yes
Communities & Local Government,DCLG,15/08/2013,Current (non AEF) Grants to Local Authorities,Localism,BARNET LBC,,,,5000233105,,Council Tax Freeze,NW4 4BG,"160,368.00",Yes
Communities & Local Government,DCLG,15/08/2013,Current (non AEF) Grants to Local Authorities,Localism,BARNSLEY MBC,,,,5000233106,,Council Tax Freeze,S70 2AQ,"85,376.00",Yes
Communities & Local Government,DCLG,15/08/2013,Current (non AEF) Grants to Local Authorities,Localism,BASILDON BOROUGH COUNCIL,,,,5000233107,,Council Tax Freeze,SS14 0DF,"16,163.00",Yes
Communities & Local Government,DCLG,15/08/2013,Current (non AEF) Grants to Local Authorities,Localism,BASINGSTOKE & DEANE BC,,,,5000233108,,Council Tax Freeze,RG21 2AJ,"6,906.00",Yes
Communities & Local Government,DCLG,15/08/2013,Current (non AEF) Grants to Local Authorities,Localism,BASSETLAW DC (HSG),,,,5000233010,,Council Tax Freeze,S80 2AH,"5,562.00",Yes
Communities & Local Government,DCLG,15/08/2013,Current (non AEF) Grants to Local Authorities,Localism,BATH & NE SOMERSET DC (HSG),,,,5000233011,,Council Tax Freeze,BA1 5AW,"79,022.00",Yes
Communities & Local Government,DCLG,15/08/2013,Current (non AEF) Grants to Local Authorities,Localism,BEDFORD UNITARY AUTHORITY,,,,5000233278,,Council Tax Freeze,MK40 1SJ,"74,916.00",Yes
Communities & Local Government,DCLG,15/08/2013,Current (non AEF) Grants to Local Authorities,Localism,BEDFORDSHIRE POLICE AUTHORITY,,,,5000233285,,Local Council Tax Support for Police Commissioners,MK43 9AX,"387,392.00",Yes
Communities & Local Government,DCLG,15/08/2013,Current (non AEF) Grants to Local Authorities,Localism,BEDFORDSHIRE POLICE AUTHORITY,,,,5000233286,,Council Tax Freeze for Police and Crime Commission,MK43 9AX,"75,094.00",Yes
Communities & Local Government,DCLG,15/08/2013,Current (non AEF) Grants to Local Authorities,Localism,BEXLEY LB (HSG),,,,5000233012,,Council Tax Freeze,DA8 1TL,"95,872.00",Yes
Communities & Local Government,DCLG,15/08/2013,Current (non AEF) Grants to Local Authorities,Localism,BIRMINGHAM CITY CNCL,,,,5000233109,,Council Tax Freeze,B2 2AJ,"334,618.00",Yes
Communities & Local Government,DCLG,15/08/2013,Current (non AEF) Grants to Local Authorities,Localism,BLABY DC (HSG),,,,5000233013,,Council Tax Freeze,LE9 5EP,"4,435.00",Yes
Communities & Local Government,DCLG,15/08/2013,Current (non AEF) Grants to Local Authorities,Localism,BLACKBURN WITH DARWEN BC,,,,5000233110,,Council Tax Freeze,BB1 7DY,"49,160.00",Yes
Communities & Local Government,DCLG,15/08/2013,Current (non AEF) Grants to Local Authorities,Localism,BLACKPOOL BC,,,,5000233111,,Council Tax Freeze,FY1 1NA,"59,757.00",Yes
Communities & Local Government,DCLG,15/08/2013,Current (non AEF) Grants to Local Authorities,Localism,BOLSOVER DC,,,,5000233112,,Council Tax Freeze,S44 6NF,"3,605.00",Yes
Communities & Local Government,DCLG,15/08/2013,Current (non AEF) Grants to Local Authorities,Localism,BOSTON BC,,,,5000233014,,Council Tax Freeze,PE21 8QR,"3,341.00",Yes
Communities & Local Government,DCLG,15/08/2013,Current (non AEF) Grants to Local Authorities,Localism,BOURNEMOUTH DC,,,,5000233113,,Council Tax Freeze,BH2 6EB,"79,981.00",Yes
Communities & Local Government,DCLG,15/08/2013,Current (non AEF) Grants to Local Authorities,Localism,BRACKNELL FOREST DC,,,,5000233114,,Council Tax Freeze,RG12 1AQ,"49,776.00",Yes
Communities & Local Government,DCLG,15/08/2013,Current (non AEF) Grants to Local Authorities,Localism,BRAINTREE DC,,,,5000233015,,Council Tax Freeze,CM7 6HB,"8,825.00",Yes
Communities & Local Government,DCLG,15/08/2013,Current (non AEF) Grants to Local Authorities,Localism,BRENT LB (HSG),,,,5000233016,,Council Tax Freeze,HA9 9HD,"99,422.00",Yes
Communities & Local Government,DCLG,15/08/2013,Current (non AEF) Grants to Local Authorities,Localism,BRENTWOOD BC,,,,5000233115,,Council Tax Freeze,CM15 8AY,"5,671.00",Yes
Communities & Local Government,DCLG,15/08/2013,Current (non AEF) Grants to Local Authorities,Localism,BROADLAND DC,,Large,,5000233017,,Council Tax Freeze,NR7 0DU,"5,336.00",Yes
Communities & Local Government,DCLG,15/08/2013,Current (non AEF) Grants to Local Authorities,Localism,BROXBOURNE BC,,Public Bodies,,5000233116,,Council Tax Freeze,EN8 9XG,"4,246.00",Yes
Communities & Local Government,DCLG,15/08/2013,Current (non AEF) Grants to Local Authorities,Localism,BROXTOWE BC,,,,5000233117,,Council Tax Freeze,NG9 1AB,"5,930.00",Yes
Communities & Local Government,DCLG,15/08/2013,Current (non AEF) Grants to Local Authorities,Localism,BUCKINGHAMSHIRE CC,,,,5000233118,,Council Tax Freeze,HP20 1UD,"232,198.00",Yes
Communities & Local Government,DCLG,15/08/2013,Current (non AEF) Grants to Local Authorities,Localism,BUCKS & MILTON KEYNES FIRE AUTH,,,,5000233260,,Council Tax Freeze,HP20 1BD,"17,730.00",Yes
Communities & Local Government,DCLG,15/08/2013,Current (non AEF) Grants to Local Authorities,Localism,CAMBRIDGESHIRE POLICE AUTHORITY,,,,5000233287,,Local Council Tax Support for Police Commissioners,P18 8NP,"480,699.00",Yes
Communities & Local Government,DCLG,15/08/2013,Current (non AEF) Grants to Local Authorities,Localism,CAMBRIDGESHIRE POLICE AUTHORITY,,,,5000233288,,Council Tax Freeze for Police and Crime Commission,P18 8NP,"117,250.00",Yes
Communities & Local Government,DCLG,15/08/2013,Current (non AEF) Grants to Local Authorities,Localism,CAMDEN LB,,,,5000233119,,Council Tax Freeze,WC1H 8NG,"102,147.00",Yes
Communities & Local Government,DCLG,15/08/2013,Current (non AEF) Grants to Local Authorities,Localism,CARLISLE CITY CNCL,,,,5000233018,,Council Tax Freeze,CA3 8QG,"6,846.00",Yes
Communities & Local Government,DCLG,15/08/2013,Current (non AEF) Grants to Local Authorities,Localism,CENTRAL BEDFORDSHIRE COUNCIL,,,,5000233276,,Council Tax Freeze,SG17 5TQ,"131,022.00",Yes
Communities & Local Government,DCLG,15/08/2013,Current (non AEF) Grants to Local Authorities,Localism,CHARNWOOD BC,,,,5000233120,,Council Tax Freeze,LE11 2TU,"7,019.00",Yes
Communities & Local Government,DCLG,15/08/2013,Current (non AEF) Grants to Local Authorities,Localism,CHELTENHAM BC,,,,5000233121,,Council Tax Freeze,GL50 1PW,"7,858.00",Yes
Communities & Local Government,DCLG,15/08/2013,Current (non AEF) Grants to Local Authorities,Localism,CHERWELL DC,,,,5000233019,,Council Tax Freeze,OX15 4AA,"6,304.00",Yes
Communities & Local Government,DCLG,15/08/2013,Current (non AEF) Grants to Local Authorities,Localism,CHESHIRE EAST COUNCIL,,,,5000233277,,Council Tax Freeze,SK10 1DP,"180,515.00",Yes
Communities & Local Government,DCLG,15/08/2013,Current (non AEF) Grants to Local Authorities,Localism,CHORLEY DC,,,,5000233122,,Council Tax Freeze,PR7 1DP,"6,596.00",Yes
Communities & Local Government,DCLG,15/08/2013,Current (non AEF) Grants to Local Authorities,Localism,CITY OF LONDON (HSG),,,,5000233020,,Local Council Tax Support for Police Commissioners,EC2P 2EJ,"7,925.00",Yes
Communities & Local Government,DCLG,15/08/2013,Current (non AEF) Grants to Local Authorities,Localism,CITY OF LONDON (HSG),,,,5000233021,,Council Tax Freeze,EC2P 2EJ,"5,000.00",Yes
Communities & Local Government,DCLG,15/08/2013,Current (non AEF) Grants to Local Authorities,Localism,CITY OF SUNDERLAND (HSG),,,,5000233022,,Council Tax Freeze,SR2 7DN,"97,908.00",Yes
Communities & Local Government,DCLG,15/08/2013,Current (non AEF) Grants to Local Authorities,Localism,COLCHESTER BC,,,,5000233123,,Council Tax Freeze,CO3 3WG,"10,692.00",Yes
Communities & Local Government,DCLG,15/08/2013,Current (non AEF) Grants to Local Authorities,Localism,CORBY BC,,,,5000233023,,Council Tax Freeze,NN17 1GD,"3,338.00",Yes
Communities & Local Government,DCLG,15/08/2013,Current (non AEF) Grants to Local Authorities,Localism,CORNWALL UNITARY AUTHORITY,,,,5000233280,,Council Tax Freeze,TR1 3AY,"251,331.00",Yes
Communities & Local Government,DCLG,15/08/2013,Current (non AEF) Grants to Local Authorities,Localism,COTSWOLD DC,,,,5000233024,,Council Tax Freeze,GL7 1PX,"5,461.00",Yes
Communities & Local Government,DCLG,15/08/2013,Current (non AEF) Grants to Local Authorities,Localism,COUNTY DURHAM & DARLINGTON,,,,5000233269,,Council Tax Freeze,DH1 5UE,"17,429.00",Yes
Communities & Local Government,DCLG,15/08/2013,Current (non AEF) Grants to Local Authorities,Localism,COVENTRY CITY CNCL,,,,5000233124,,Council Tax Freeze,CV1 2QL,"120,752.00",Yes
Communities & Local Government,DCLG,15/08/2013,Current (non AEF) Grants to Local Authorities,Localism,CRAVEN DC (HSG),,,,5000233025,,Council Tax Freeze,BD23 1PS,"3,426.00",Yes
Communities & Local Government,DCLG,15/08/2013,Current (non AEF) Grants to Local Authorities,Localism,CRAWLEY BC,,,,5000233026,,Council Tax Freeze,RH10 1UZ,"6,990.00",Yes
Communities & Local Government,DCLG,15/08/2013,Current (non AEF) Grants to Local Authorities,Localism,CUMBRIA COUNTY CNCL,,,,5000233125,,Council Tax Freeze,CA3 8NA,"209,923.00",Yes
Communities & Local Government,DCLG,15/08/2013,Current (non AEF) Grants to Local Authorities,Localism,DARTFORD BC,,,,5000233027,,Council Tax Freeze,DA1 1DR,"5,783.00",Yes
Communities & Local Government,DCLG,15/08/2013,Current (non AEF) Grants to Local Authorities,Localism,DERBYSHIRE COUNTYCOUNCIL,,,,5000233126,,Council Tax Freeze,DE4 3AH,"281,204.00",Yes
Communities & Local Government,DCLG,15/08/2013,Current (non AEF) Grants to Local Authorities,Localism,DERBYSHIRE DALES DC,,,,5000233028,,Council Tax Freeze,DE4 3NN,"5,673.00",Yes
Communities & Local Government,DCLG,15/08/2013,Current (non AEF) Grants to Local Authorities,Localism,DERBYSHIRE FIRE AUTHORITY,,,,5000233270,,Council Tax Freeze,DE55 1RH,"22,379.00",Yes
Communities & Local Government,DCLG,15/08/2013,Current (non AEF) Grants to Local Authorities,Localism,DEVON & CORNWALL POLICE AUTHORITY,,,,5000233289,,Council Tax Freeze for Police and Crime Commission,EX2 5YT,"239,225.00",Yes
Communities & Local Government,DCLG,15/08/2013,Current (non AEF) Grants to Local Authorities,Localism,DEVON & CORNWALL POLICE AUTHORITY,,,,5000233290,,Local Council Tax Support for Police Commissioners,EX2 5YT,"1,302,718.00",Yes
Communities & Local Government,DCLG,15/08/2013,Current (non AEF) Grants to Local Authorities,Localism,DEVON COUNTY CNCL,,,,5000233127,,Council Tax Freeze,EX2 4QJ,"330,150.00",Yes
Communities & Local Government,DCLG,15/08/2013,Current (non AEF) Grants to Local Authorities,Localism,DONCASTER MBC,,,,5000233128,,Council Tax Freeze,DN1 3QA,"96,910.00",Yes
Communities & Local Government,DCLG,15/08/2013,Current (non AEF) Grants to Local Authorities,Localism,DORSET COUNTY CNCL,,,,5000233129,,Council Tax Freeze,DT1 1XJ,"203,846.00",Yes
Communities & Local Government,DCLG,15/08/2013,Current (non AEF) Grants to Local Authorities,Localism,DUDLEY MBC,,,,5000233130,,Council Tax Freeze,DY1 1HF,"113,608.00",Yes
Communities & Local Government,DCLG,15/08/2013,Current (non AEF) Grants to Local Authorities,Localism,DURHAM POLICE AUTHORITY,,,,5000233291,,Local Council Tax Support for Police Commissioners,DH1 5TT,"536,488.00",Yes
Communities & Local Government,DCLG,15/08/2013,Current (non AEF) Grants to Local Authorities,Localism,DURHAM POLICE AUTHORITY,,,,5000233292,,Council Tax Freeze for Police and Crime Commission,DH1 5TT,"72,798.00",Yes
Communities & Local Government,DCLG,15/08/2013,Current (non AEF) Grants to Local Authorities,Localism,DURHAM UNITARY AUTHORITY,,,,5000233281,,Council Tax Freeze,DH1 5UE,"202,931.00",Yes
Communities & Local Government,DCLG,15/08/2013,Current (non AEF) Grants to Local Authorities,Localism,EALING LB,,,,5000233131,,Council Tax Freeze,W5 2HL,"126,478.00",Yes
Communities & Local Government,DCLG,15/08/2013,Current (non AEF) Grants to Local Authorities,Localism,EAST DEVON DC,,,,5000233029,,Council Tax Freeze,EX10 8HL,"7,087.00",Yes
Communities & Local Government,DCLG,15/08/2013,Current (non AEF) Grants to Local Authorities,Localism,EAST HERTFORDSHIRE DC,,,,5000233030,,Council Tax Freeze,SG13 8EQ,"9,330.00",Yes
Communities & Local Government,DCLG,15/08/2013,Current (non AEF) Grants to Local Authorities,Localism,EAST NORTHAMPTONSHIRE COUNCIL,,,,5000233031,,Council Tax Freeze,NN14 4LZ,"3,837.00",Yes
Communities & Local Government,DCLG,15/08/2013,Current (non AEF) Grants to Local Authorities,Localism,EAST RIDING OF YORKS (HSG),,,,5000233032,,Council Tax Freeze,HU17 9BA,"144,830.00",Yes
Communities & Local Government,DCLG,15/08/2013,Current (non AEF) Grants to Local Authorities,Localism,EAST STAFFORDSHIRE BC,,,,5000233033,,Council Tax Freeze,DE14 2EB,"6,884.00",Yes
Communities & Local Government,DCLG,15/08/2013,Current (non AEF) Grants to Local Authorities,Localism,EAST SUSSEX COUNTY CNCL,,,,5000233132,,Council Tax Freeze,BN7 1SF,"243,507.00",Yes
Communities & Local Government,DCLG,15/08/2013,Current (non AEF) Grants to Local Authorities,Localism,EAST SUSSEX FIRE AUTHORITY,,Large,,5000233272,,Council Tax Freeze,BN21 1EU,"24,993.00",Yes
Communities & Local Government,DCLG,15/08/2013,Current (non AEF) Grants to Local Authorities,Localism,EASTBOURNE BC,,,,5000233133,,Council Tax Freeze,BN21 4TW,"8,120.00",Yes
Communities & Local Government,DCLG,15/08/2013,Current (non AEF) Grants to Local Authorities,Localism,EASTLEIGH BOROUGH COUNCIL,,,,5000233134,,Council Tax Freeze,SO5 9YN,"6,009.00",Yes
Communities & Local Government,DCLG,15/08/2013,Current (non AEF) Grants to Local Authorities,Localism,ENFIELD LB,,,,5000233135,,Council Tax Freeze,EN1 3XF,"120,361.00",Yes
Communities & Local Government,DCLG,15/08/2013,Current (non AEF) Grants to Local Authorities,Localism,EPPING FOREST DC,,,,5000233136,,Council Tax Freeze,CM16 4BZ,"8,209.00",Yes
Communities & Local Government,DCLG,15/08/2013,Current (non AEF) Grants to Local Authorities,Localism,EREWASH BC,,,,5000233137,,Council Tax Freeze,DE7 5RP,"6,040.00",Yes
Communities & Local Government,DCLG,15/08/2013,Current (non AEF) Grants to Local Authorities,Localism,ESSEX COUNTY CNCL,,,,5000233138,,Council Tax Freeze,CM1 1JZ,"582,275.00",Yes
Communities & Local Government,DCLG,15/08/2013,Current (non AEF) Grants to Local Authorities,Localism,ESSEX FIRE AUTHORITY,,Large,,5000233261,,Council Tax Freeze,CM8 3HB,"43,259.00",Yes
Communities & Local Government,DCLG,15/08/2013,Current (non AEF) Grants to Local Authorities,Localism,ESSEX POLICE AUTHORITY,,,,5000233293,,Council Tax Freeze for Police and Crime Commission,CM2 6DA,"213,298.00",Yes
Communities & Local Government,DCLG,15/08/2013,Current (non AEF) Grants to Local Authorities,Localism,ESSEX POLICE AUTHORITY,,,,5000233294,,Local Council Tax Support for Police Commissioners,CM2 6DA,"1,095,708.00",Yes
Communities & Local Government,DCLG,15/08/2013,Current (non AEF) Grants to Local Authorities,Localism,FAREHAM BC,,,,5000233034,,Council Tax Freeze,PO16 7PU,"6,099.00",Yes
Communities & Local Government,DCLG,15/08/2013,Current (non AEF) Grants to Local Authorities,Localism,FOREST HEATH DISTRICT COUNCIL,,,,5000233035,,Council Tax Freeze,IP28 7EY,"2,488.00",Yes
Communities & Local Government,DCLG,15/08/2013,Current (non AEF) Grants to Local Authorities,Localism,FOREST OF DEAN DC,,,,5000233036,,Council Tax Freeze,GL16 8HG,"4,839.00",Yes
Communities & Local Government,DCLG,15/08/2013,Current (non AEF) Grants to Local Authorities,Localism,FYLDE BC,,,,5000233139,,Council Tax Freeze,FY8 1LW,"5,663.00",Yes
Communities & Local Government,DCLG,15/08/2013,Current (non AEF) Grants to Local Authorities,Localism,GATESHEAD MBC,,,,5000233140,,Council Tax Freeze,NE8 1HH,"85,709.00",Yes
Communities & Local Government,DCLG,15/08/2013,Current (non AEF) Grants to Local Authorities,Localism,GLOUCESTER CITY CNCL,,,,5000233141,,Council Tax Freeze,GL1 2EQ,"7,252.00",Yes
Communities & Local Government,DCLG,15/08/2013,Current (non AEF) Grants to Local Authorities,Localism,GLOUCESTERSHIRE COUNTY CNCL,,,,5000233142,,Council Tax Freeze,GL1 2TG,"246,182.00",Yes
Communities & Local Government,DCLG,15/08/2013,Current (non AEF) Grants to Local Authorities,Localism,GOSPORT BOROUGH COUNCIL,,,,5000233143,,Council Tax Freeze,PO12 1ED,"5,624.00",Yes
Communities & Local Government,DCLG,15/08/2013,Current (non AEF) Grants to Local Authorities,Localism,GREAT YARMOUTH BC,,,,5000233144,,Council Tax Freeze,NR30 2QG,"4,642.00",Yes
Communities & Local Government,DCLG,15/08/2013,Current (non AEF) Grants to Local Authorities,Localism,GREATER LONDON AUTHORITY,,,,5000233338,,Council Tax Freeze,SE10 1AJ,"944,772.00",Yes
Communities & Local Government,DCLG,15/08/2013,Current (non AEF) Grants to Local Authorities,Localism,GREATER LONDON AUTHORITY,,,,5000233339,,Local Council Tax Support for Police Commissioners,SE10 1AJ,"11,929,192.00",Yes
Communities & Local Government,DCLG,15/08/2013,Current (non AEF) Grants to Local Authorities,Localism,GREENWICH LB,,,,5000233145,,Council Tax Freeze,SE18 6BU,"80,764.00",Yes
Communities & Local Government,DCLG,15/08/2013,Current (non AEF) Grants to Local Authorities,Localism,HAMBLETON DC (HSG),,,,5000233037,,Council Tax Freeze,DL6 2UU,"3,266.00",Yes
Communities & Local Government,DCLG,15/08/2013,Current (non AEF) Grants to Local Authorities,Localism,HAMMERSMITH & FULHAM LB,,,,5000233147,,Council Tax Freeze,W6 9JU,"62,575.00",Yes
Communities & Local Government,DCLG,15/08/2013,Current (non AEF) Grants to Local Authorities,Localism,HAMPSHIRE COUNTY COUNCIL,,,,5000233148,,Council Tax Freeze,SO23 8UB,"535,811.00",Yes
Communities & Local Government,DCLG,15/08/2013,Current (non AEF) Grants to Local Authorities,Localism,HAMPSHIRE FIRE & RESCUE AUTHORITY,,Large,,5000233271,,Council Tax Freeze,SO23 8UB,"39,507.00",Yes
Communities & Local Government,DCLG,15/08/2013,Current (non AEF) Grants to Local Authorities,Localism,HAMPSHIRE POLICE AUTHORITY,,,,5000233295,,Council Tax Freeze for Police and Crime Commission,SO23 8UB,"251,994.00",Yes
Communities & Local Government,DCLG,15/08/2013,Current (non AEF) Grants to Local Authorities,Localism,HAMPSHIRE POLICE AUTHORITY,,,,5000233296,,Local Council Tax Support for Police Commissioners,SO23 8UB,"1,039,073.00",Yes
Communities & Local Government,DCLG,15/08/2013,Current (non AEF) Grants to Local Authorities,Localism,HARBOROUGH DC (HSG),,,,5000233038,,Council Tax Freeze,LE16 7AG,"5,607.00",Yes
Communities & Local Government,DCLG,15/08/2013,Current (non AEF) Grants to Local Authorities,Localism,HARINGEY LB,,,,5000233149,,Council Tax Freeze,N22 4TR,"100,997.00",Yes
Communities & Local Government,DCLG,15/08/2013,Current (non AEF) Grants to Local Authorities,Localism,HARROGATE BC,,,,5000233039,,Council Tax Freeze,HG1 2SG,"13,854.00",Yes
Communities & Local Government,DCLG,15/08/2013,Current (non AEF) Grants to Local Authorities,Localism,HART DC,,,,5000233150,,Council Tax Freeze,GU13 8AE,"5,874.00",Yes
Communities & Local Government,DCLG,15/08/2013,Current (non AEF) Grants to Local Authorities,Localism,HARTLEPOOL BOROUGH COUNCIL,,,,5000233151,,Council Tax Freeze,TS24 7BT,"40,812.00",Yes
Communities & Local Government,DCLG,15/08/2013,Current (non AEF) Grants to Local Authorities,Localism,HASTINGS BC,,,,5000233152,,Council Tax Freeze,TN34 3WN,"7,012.00",Yes
Communities & Local Government,DCLG,15/08/2013,Current (non AEF) Grants to Local Authorities,Localism,HAVANT BC,,,,5000233153,,Council Tax Freeze,PO9 2AX,"8,322.00",Yes
Communities & Local Government,DCLG,15/08/2013,Current (non AEF) Grants to Local Authorities,Localism,HAVERING LB,,,,5000233154,,Council Tax Freeze,RM1 3BB,"109,762.00",Yes
Communities & Local Government,DCLG,15/08/2013,Current (non AEF) Grants to Local Authorities,Localism,HEREFORD WORCESTER FIRE BRIGADE,,Large,,5000233266,,Council Tax Freeze,WR1 2HQ,"20,964.00",Yes
Communities & Local Government,DCLG,15/08/2013,Current (non AEF) Grants to Local Authorities,Localism,HERTFORDSHIRE COUNTY CNCL,,,,5000233155,,Council Tax Freeze,SG13 8DQ,"505,857.00",Yes
Communities & Local Government,DCLG,15/08/2013,Current (non AEF) Grants to Local Authorities,Localism,HERTFORDSHIRE POLICE AUTHORITY,,,,5000233297,,Council Tax Freeze,AL8 6XF,"66,834.00",Yes
Communities & Local Government,DCLG,15/08/2013,Current (non AEF) Grants to Local Authorities,Localism,HERTFORDSHIRE POLICE AUTHORITY,,,,5000233298,,Local Council Tax Support for Police Commissioners,AL8 6XF,"652,230.00",Yes
Communities & Local Government,DCLG,15/08/2013,Current (non AEF) Grants to Local Authorities,Localism,HERTFORDSHIRE POLICE AUTHORITY,,,,5000233299,,Council Tax Freeze for Police and Crime Commission,AL8 6XF,"166,029.00",Yes
Communities & Local Government,DCLG,15/08/2013,Current (non AEF) Grants to Local Authorities,Localism,HERTSMERE BC,,,,5000233156,,Council Tax Freeze,WD6 1WA,"6,526.00",Yes
Communities & Local Government,DCLG,15/08/2013,Current (non AEF) Grants to Local Authorities,Localism,HIGH PEAK BC,,,,5000233040,,Council Tax Freeze,SK17 6EL,"5,666.00",Yes
Communities & Local Government,DCLG,15/08/2013,Current (non AEF) Grants to Local Authorities,Localism,HILLINGDON LB,,,,5000233157,,Council Tax Freeze,UB8 1UW,"111,894.00",Yes
Communities & Local Government,DCLG,15/08/2013,Current (non AEF) Grants to Local Authorities,Localism,HINCKLEY & BOSWORTH BC,,,,5000233041,,Council Tax Freeze,LE10 1BZ,"4,228.00",Yes
Communities & Local Government,DCLG,15/08/2013,Current (non AEF) Grants to Local Authorities,Localism,HORSHAM DC,,,,5000233042,,Council Tax Freeze,RH12 1RL,"8,181.00",Yes
Communities & Local Government,DCLG,15/08/2013,Current (non AEF) Grants to Local Authorities,Localism,HOUNSLOW LB,,Public Bodies,,5000233158,,Council Tax Freeze,TW3 4DN,"97,363.00",Yes
Communities & Local Government,DCLG,15/08/2013,Current (non AEF) Grants to Local Authorities,Localism,HUMBERSIDE FIRE & RESCUE SERVICE,,,,5000233262,,Council Tax Freeze,HU4 7BB,"22,522.00",Yes
Communities & Local Government,DCLG,15/08/2013,Current (non AEF) Grants to Local Authorities,Localism,HUMBERSIDE POLICE,,,,5000233300,,Local Council Tax Support for Police Commissioners,HU5 5SF,"831,434.00",Yes
Communities & Local Government,DCLG,15/08/2013,Current (non AEF) Grants to Local Authorities,Localism,HUMBERSIDE POLICE,,,,5000233301,,Council Tax Freeze,HU5 5SF,"50,039.00",Yes
Communities & Local Government,DCLG,15/08/2013,Current (non AEF) Grants to Local Authorities,Localism,HUMBERSIDE POLICE,,,,5000233302,,Council Tax Freeze for Police and Crime Commission,HU5 5SF,"119,945.00",Yes
Communities & Local Government,DCLG,15/08/2013,Current (non AEF) Grants to Local Authorities,Localism,HYNDBURN BC,,,,5000233159,,Council Tax Freeze,BB5 1EZ,"5,343.00",Yes
Communities & Local Government,DCLG,15/08/2013,Current (non AEF) Grants to Local Authorities,Localism,ISLE OF WIGHT CNCL,,,,5000233160,,Council Tax Freeze,PO30 1UD,"72,477.00",Yes
Communities & Local Government,DCLG,15/08/2013,Current (non AEF) Grants to Local Authorities,Localism,ISLES OF SCILLY COUNCIL,,,,5000233161,,Council Tax Freeze,TR21 0LW,"1,391.00",Yes
Communities & Local Government,DCLG,15/08/2013,Current (non AEF) Grants to Local Authorities,Localism,ISLINGTON LB,,,,5000233162,,Council Tax Freeze,N1 1XR,"86,416.00",Yes
Communities & Local Government,DCLG,15/08/2013,Current (non AEF) Grants to Local Authorities,Localism,KENT & MEDWAY TOWNS FIRE AUTHORITY,,Large,,5000233263,,Council Tax Freeze,ME15 6XB,"43,443.00",Yes
Communities & Local Government,DCLG,15/08/2013,Current (non AEF) Grants to Local Authorities,Localism,KENT COUNTY CNCL,,,,5000233164,,Council Tax Freeze,ME14 1XQ,"577,587.00",Yes
Communities & Local Government,DCLG,15/08/2013,Current (non AEF) Grants to Local Authorities,Localism,KETTERING BC,,,,5000233165,,Council Tax Freeze,NN15 7QX,"6,310.00",Yes
Communities & Local Government,DCLG,15/08/2013,Current (non AEF) Grants to Local Authorities,Localism,KINGS LYNN & WEST NORFOLK BC,,,,5000233043,,Council Tax Freeze,PE30 1EX,"6,496.00",Yes
Communities & Local Government,DCLG,15/08/2013,Current (non AEF) Grants to Local Authorities,Localism,KNOWSLEY MBC,,,,5000233166,,Council Tax Freeze,L36 9YZ,"52,214.00",Yes
Communities & Local Government,DCLG,15/08/2013,Current (non AEF) Grants to Local Authorities,Localism,LANCASHIRE COMBINED FIRE AUTHORITY,,Large,,5000233268,,Council Tax Freeze,PR2 3LH,"29,968.00",Yes
Communities & Local Government,DCLG,15/08/2013,Current (non AEF) Grants to Local Authorities,Localism,LANCASHIRE COUNTY CNCL,,,,5000233168,,Council Tax Freeze,PR1 8RD,"428,096.00",Yes
Communities & Local Government,DCLG,15/08/2013,Current (non AEF) Grants to Local Authorities,Localism,LANCASHIRE POLICE AUTHORITY,,,,5000233303,,Local Council Tax Support for Police Commissioners,PR1 0LD,"1,107,699.00",Yes
Communities & Local Government,DCLG,15/08/2013,Current (non AEF) Grants to Local Authorities,Localism,LANCASHIRE POLICE AUTHORITY,,,,5000233304,,Council Tax Freeze for Police and Crime Commission,PR1 0LD,"171,409.00",Yes
Communities & Local Government,DCLG,15/08/2013,Current (non AEF) Grants to Local Authorities,Localism,LEEDS CITY CNCL,,Micro,,5000233169,,Council Tax Freeze,LS1 1JF,"276,573.00",Yes
Communities & Local Government,DCLG,15/08/2013,Current (non AEF) Grants to Local Authorities,Localism,LEICESTERSHIRE COUNTY CNCL,,,,5000233170,,Council Tax Freeze,LE3 8RB,"242,736.00",Yes
Communities & Local Government,DCLG,15/08/2013,Current (non AEF) Grants to Local Authorities,Localism,LEICESTERSHIRE POLICE AUTHORITY,,,,5000233305,,Council Tax Freeze for Police and Crime Commission,LE99 1A2,"134,947.00",Yes
Communities & Local Government,DCLG,15/08/2013,Current (non AEF) Grants to Local Authorities,Localism,LEICESTERSHIRE POLICE AUTHORITY,,,,5000233306,,Local Council Tax Support for Police Commissioners,LE99 1A2,"699,787.00",Yes
Communities & Local Government,DCLG,15/08/2013,Current (non AEF) Grants to Local Authorities,Localism,LEICESTERSHIRE POLICE AUTHORITY,,,,5000233307,,Council Tax Freeze,LE99 1A2,"56,106.00",Yes
Communities & Local Government,DCLG,15/08/2013,Current (non AEF) Grants to Local Authorities,Localism,LEWES DC,,,,5000233044,,Council Tax Freeze,BN7 2DQ,"7,546.00",Yes
Communities & Local Government,DCLG,15/08/2013,Current (non AEF) Grants to Local Authorities,Localism,LINCOLNSHIRE COUNTY COUNCIL,,,,5000233171,,Council Tax Freeze,LN1 1YT,"254,652.00",Yes
Communities & Local Government,DCLG,15/08/2013,Current (non AEF) Grants to Local Authorities,Localism,LINCOLNSHIRE POLICE AUTHORITY,,,,5000233308,,Local Council Tax Support for Police Commissioners,LN5 7PH,"575,636.00",Yes
Communities & Local Government,DCLG,15/08/2013,Current (non AEF) Grants to Local Authorities,Localism,LINCOLNSHIRE POLICE AUTHORITY,,,,5000233309,,Council Tax Freeze for Police and Crime Commission,LN5 7PH,"105,867.00",Yes
Communities & Local Government,DCLG,15/08/2013,Current (non AEF) Grants to Local Authorities,Localism,LONDON BOROUGH OF HACKNEY,,,,5000233146,,Council Tax Freeze,E8 4RU,"82,475.00",Yes
Communities & Local Government,DCLG,15/08/2013,Current (non AEF) Grants to Local Authorities,Localism,LONDON BOROUGH OF LAMBETH,,,,5000233167,,Council Tax Freeze,SW2 1RL,"100,060.00",Yes
Communities & Local Government,DCLG,15/08/2013,Current (non AEF) Grants to Local Authorities,Localism,LONDON BOROUGH OF NEWHAM,,,,5000233176,,Council Tax Freeze,E16 2QU,"74,058.00",Yes
Communities & Local Government,DCLG,15/08/2013,Current (non AEF) Grants to Local Authorities,Localism,LONDON BOROUGH OF REDBRIDGE,,,,5000233186,,Council Tax Freeze,IG1 1NN,"102,217.00",Yes
Communities & Local Government,DCLG,15/08/2013,Current (non AEF) Grants to Local Authorities,Localism,MANSFIELD DC,,,,5000233172,,Council Tax Freeze,NG19 7BH,"5,862.00",Yes
Communities & Local Government,DCLG,15/08/2013,Current (non AEF) Grants to Local Authorities,Localism,MELTON BC,,,,5000233045,,Council Tax Freeze,LE13 0UL,"3,426.00",Yes
Communities & Local Government,DCLG,15/08/2013,Current (non AEF) Grants to Local Authorities,Localism,MENDIP DISTRICT COUNCIL,,,,5000233046,,Council Tax Freeze,BA4 5BA,"5,985.00",Yes
Communities & Local Government,DCLG,15/08/2013,Current (non AEF) Grants to Local Authorities,Localism,MERSEYSIDE POLICE AUTHORITY,,,,5000233310,,Council Tax Freeze for Police and Crime Commission,L69 1JD,"153,759.00",Yes
Communities & Local Government,DCLG,15/08/2013,Current (non AEF) Grants to Local Authorities,Localism,MERSEYSIDE POLICE AUTHORITY,,,,5000233311,,Local Council Tax Support for Police Commissioners,L69 1JD,"1,405,815.00",Yes
Communities & Local Government,DCLG,15/08/2013,Current (non AEF) Grants to Local Authorities,Localism,MERTON LB,,,,5000233173,,Council Tax Freeze,SM4 5DX,"84,784.00",Yes
Communities & Local Government,DCLG,15/08/2013,Current (non AEF) Grants to Local Authorities,Localism,MID DEVON DC,,,,5000233047,,Council Tax Freeze,EX16 6PP,"5,285.00",Yes
Communities & Local Government,DCLG,15/08/2013,Current (non AEF) Grants to Local Authorities,Localism,MID SUFFOLK DC,,,,5000233048,,Council Tax Freeze,IP1 2DH,"5,562.00",Yes
Communities & Local Government,DCLG,15/08/2013,Current (non AEF) Grants to Local Authorities,Localism,MID SUSSEX DC,,,,5000233049,,Council Tax Freeze,RH16 1SS,"8,810.00",Yes
Communities & Local Government,DCLG,15/08/2013,Current (non AEF) Grants to Local Authorities,Localism,NEW FOREST DC,,Public Bodies,,5000233050,,Council Tax Freeze,SO43 9ZG,"11,576.00",Yes
Communities & Local Government,DCLG,15/08/2013,Current (non AEF) Grants to Local Authorities,Localism,NEWARK & SHERWOOD DC (HSG),,,,5000233051,,Council Tax Freeze,NG23 5QX,"6,351.00",Yes
Communities & Local Government,DCLG,15/08/2013,Current (non AEF) Grants to Local Authorities,Localism,NEWCASTLE UNDER LYME BC,,,,5000233174,,Council Tax Freeze,ST5 2AG,"6,961.00",Yes
Communities & Local Government,DCLG,15/08/2013,Current (non AEF) Grants to Local Authorities,Localism,NEWCASTLE UPON TYNE DC,,,,5000233175,,Council Tax Freeze,NE99 1RD,"104,672.00",Yes
Communities & Local Government,DCLG,15/08/2013,Current (non AEF) Grants to Local Authorities,Localism,NORFOLK COUNTY COUNCIL,,,,5000233177,,Council Tax Freeze,NR1 2DW,"349,089.00",Yes
Communities & Local Government,DCLG,15/08/2013,Current (non AEF) Grants to Local Authorities,Localism,NORTH DEVON DC,,,,5000233052,,Council Tax Freeze,EX31 1EA,"5,764.00",Yes
Communities & Local Government,DCLG,15/08/2013,Current (non AEF) Grants to Local Authorities,Localism,NORTH EAST LINCOLN DC (HSG),,,,5000233053,,Council Tax Freeze,DN35 8LN,"61,236.00",Yes
Communities & Local Government,DCLG,15/08/2013,Current (non AEF) Grants to Local Authorities,Localism,NORTH LINCOLNSHIRE DC (HSG),,Public Bodies,,5000233054,,Council Tax Freeze,DN16 1AB,"67,189.00",Yes
Communities & Local Government,DCLG,15/08/2013,Current (non AEF) Grants to Local Authorities,Localism,NORTH NORFOLK DC,,,,5000233055,,Council Tax Freeze,NR27 9EJ,"5,776.00",Yes
Communities & Local Government,DCLG,15/08/2013,Current (non AEF) Grants to Local Authorities,Localism,NORTH TYNESIDE MBC,,,,5000233178,,Council Tax Freeze,NE27 0BY,"85,842.00",Yes
Communities & Local Government,DCLG,15/08/2013,Current (non AEF) Grants to Local Authorities,Localism,NORTH WARWICKSHIRE BC,,Large,,5000233056,,Council Tax Freeze,CV9 1DE,"4,466.00",Yes
Communities & Local Government,DCLG,15/08/2013,Current (non AEF) Grants to Local Authorities,Localism,NORTH WEST LEICESTER DC,,,,5000233057,,Council Tax Freeze,LE67 3FJ,"5,606.00",Yes
Communities & Local Government,DCLG,15/08/2013,Current (non AEF) Grants to Local Authorities,Localism,NORTH YORKSHIRE CC (DL7 8AL),,,,5000233179,,Council Tax Freeze,DL7 8AL,"249,549.00",Yes
Communities & Local Government,DCLG,15/08/2013,Current (non AEF) Grants to Local Authorities,Localism,NORTH YORKSHIRE FIRE & RESCUE AUTH,,Large,,5000233273,,Council Tax Freeze,DL6 2ND,"18,810.00",Yes
Communities & Local Government,DCLG,15/08/2013,Current (non AEF) Grants to Local Authorities,Localism,NORTH YORKSHIRE POLICE AUTHORITY,,,,5000233315,,Council Tax Freeze for Police and Crime Commission,DL7 9HA,"153,221.00",Yes
Communities & Local Government,DCLG,15/08/2013,Current (non AEF) Grants to Local Authorities,Localism,NORTH YORKSHIRE POLICE AUTHORITY,,,,5000233316,,Local Council Tax Support for Police Commissioners,DL7 9HA,"572,768.00",Yes
Communities & Local Government,DCLG,15/08/2013,Current (non AEF) Grants to Local Authorities,Localism,NORTH YORKSHIRE POLICE AUTHORITY,,,,5000233317,,Council Tax Freeze,DL7 9HA,"61,956.00",Yes
Communities & Local Government,DCLG,15/08/2013,Current (non AEF) Grants to Local Authorities,Localism,NORTHAMPTON BOROUGH COUNCIL,,,,5000233180,,Council Tax Freeze,NN4 4FF,"14,624.00",Yes
Communities & Local Government,DCLG,15/08/2013,Current (non AEF) Grants to Local Authorities,Localism,NORTHAMPTONSHIRE COUNTY COUNCIL,,,,5000233181,,Council Tax Freeze,CB3 0AP,"244,535.00",Yes
Communities & Local Government,DCLG,15/08/2013,Current (non AEF) Grants to Local Authorities,Localism,NORTHAMPTONSHIRE POLICE AUTH,,,,5000233312,,Local Council Tax Support for Police Commissioners,NN1 5DQ,"503,720.00",Yes
Communities & Local Government,DCLG,15/08/2013,Current (non AEF) Grants to Local Authorities,Localism,NORTHAMPTONSHIRE POLICE AUTH,,,,5000233313,,Council Tax Freeze for Police and Crime Commission,NN1 5DQ,"113,152.00",Yes
Communities & Local Government,DCLG,15/08/2013,Current (non AEF) Grants to Local Authorities,Localism,NORTHAMPTONSHIRE POLICE AUTH,,,,5000233314,,Council Tax Freeze,NN1 5DQ,"45,952.00",Yes
Communities & Local Government,DCLG,15/08/2013,Current (non AEF) Grants to Local Authorities,Localism,NORTHUMBERLAND COUNTY COUNCIL,,,,5000233275,,Council Tax Freeze,NE61 2EF,"153,766.00",Yes
Communities & Local Government,DCLG,15/08/2013,Current (non AEF) Grants to Local Authorities,Localism,NOTTINGHAMSHIRE COUNTY CNCL,,,,5000233182,,Council Tax Freeze,NG1 4BU,"312,393.00",Yes
Communities & Local Government,DCLG,15/08/2013,Current (non AEF) Grants to Local Authorities,Localism,NOTTS & CITY NOTTINGHAM FIRE AUTH,,Large,,5000233265,,Council Tax Freeze,NG5 8PD,"23,582.00",Yes
Communities & Local Government,DCLG,15/08/2013,Current (non AEF) Grants to Local Authorities,Localism,NUNEATON & BEDWORTH BC,,,,5000233183,,Council Tax Freeze,CV11 5AA,"8,006.00",Yes
Communities & Local Government,DCLG,15/08/2013,Current (non AEF) Grants to Local Authorities,Localism,OADBY & WIGSTON BC (HSG),,,,5000233058,,Council Tax Freeze,LE8 2DR,"3,763.00",Yes
Communities & Local Government,DCLG,15/08/2013,Current (non AEF) Grants to Local Authorities,Localism,PENDLE BC,,,,5000233184,,Council Tax Freeze,BB9 OLX,"6,228.00",Yes
Communities & Local Government,DCLG,15/08/2013,Current (non AEF) Grants to Local Authorities,Localism,PETERBOROUGH CITY CNCL,,,,5000233185,,Council Tax Freeze,PE1 1HG,"64,927.00",Yes
Communities & Local Government,DCLG,15/08/2013,Current (non AEF) Grants to Local Authorities,Localism,POLICE & CRIME COMM GTR MANCHESTER,,,,5000233241,,Local Council Tax Support for Police Commissioners,M16 0RE,"2,148,652.00",Yes
Communities & Local Government,DCLG,15/08/2013,Current (non AEF) Grants to Local Authorities,Localism,POLICE & CRIME COMM GTR MANCHESTER,,,,5000233242,,Council Tax Freeze for Police and Crime Commission,M16 0RE,"289,996.00",Yes
Communities & Local Government,DCLG,15/08/2013,Current (non AEF) Grants to Local Authorities,Localism,POLICE & CRIME COMM'R DERBYSHIRE (R,,,,5000233235,,Local Council Tax Support for Police Commissioners,DE5 3RS,"732,241.00",Yes
Communities & Local Government,DCLG,15/08/2013,Current (non AEF) Grants to Local Authorities,Localism,POLICE & CRIME COMM'R DERBYSHIRE (R,,,,5000233236,,Council Tax Freeze for Police and Crime Commission,DE5 3RS,"135,401.00",Yes
Communities & Local Government,DCLG,15/08/2013,Current (non AEF) Grants to Local Authorities,Localism,POLICE & CRIME COMM'R FOR CHESHIRE,,,,5000233229,,Council Tax Freeze for Police and Crime Commission,CW7 9FX,"136,143.00",Yes
Communities & Local Government,DCLG,15/08/2013,Current (non AEF) Grants to Local Authorities,Localism,POLICE & CRIME COMM'R FOR CHESHIRE,,,,5000233230,,Local Council Tax Support for Police Commissioners,CW7 9FX,"628,911.00",Yes
Communities & Local Government,DCLG,15/08/2013,Current (non AEF) Grants to Local Authorities,Localism,POLICE & CRIME COMM'R FOR CLEVELAND,,,,5000233231,,Local Council Tax Support for Police Commissioners,TS8 2JX,"684,618.00",Yes
Communities & Local Government,DCLG,15/08/2013,Current (non AEF) Grants to Local Authorities,Localism,POLICE & CRIME COMM'R FOR CLEVELAND,,,,5000233232,,Council Tax Freeze for Police and Crime Commission,TS8 2JX,"79,999.00",Yes
Communities & Local Government,DCLG,15/08/2013,Current (non AEF) Grants to Local Authorities,Localism,POLICE & CRIME COMM'R FOR CUMBRIA (,,,,5000233233,,Council Tax Freeze for Police and Crime Commission,CA10 2AU,"85,781.00",Yes
Communities & Local Government,DCLG,15/08/2013,Current (non AEF) Grants to Local Authorities,Localism,POLICE & CRIME COMM'R FOR CUMBRIA (,,,,5000233234,,Local Council Tax Support for Police Commissioners,CA10 2AU,"397,914.00",Yes
Communities & Local Government,DCLG,15/08/2013,Current (non AEF) Grants to Local Authorities,Localism,POLICE & CRIME COMM'R FOR DORSET (R,,,,5000233237,,Council Tax Freeze for Police and Crime Commission,DT2 8DZ,"133,051.00",Yes
Communities & Local Government,DCLG,15/08/2013,Current (non AEF) Grants to Local Authorities,Localism,POLICE & CRIME COMM'R FOR DORSET (R,,,,5000233238,,Local Council Tax Support for Police Commissioners,DT2 8DZ,"599,012.00",Yes
Communities & Local Government,DCLG,15/08/2013,Current (non AEF) Grants to Local Authorities,Localism,POLICE & CRIME COMM'R FOR GLOCS (RS,,,,5000233239,,Local Council Tax Support for Police Commissioners,GL51 6QH,"446,411.00",Yes
Communities & Local Government,DCLG,15/08/2013,Current (non AEF) Grants to Local Authorities,Localism,POLICE & CRIME COMM'R FOR GLOCS (RS,,,,5000233240,,Council Tax Freeze for Police and Crime Commission,GL51 6QH,"111,675.00",Yes
Communities & Local Government,DCLG,15/08/2013,Current (non AEF) Grants to Local Authorities,Localism,POLICE & CRIME COMM'R FOR KENT,,,,5000233243,,Council Tax Freeze for Police and Crime Commission,ME15 9BZ,"220,349.00",Yes
Communities & Local Government,DCLG,15/08/2013,Current (non AEF) Grants to Local Authorities,Localism,POLICE & CRIME COMM'R FOR KENT,,,,5000233244,,Local Council Tax Support for Police Commissioners,ME15 9BZ,"1,105,851.00",Yes
Communities & Local Government,DCLG,15/08/2013,Current (non AEF) Grants to Local Authorities,Localism,POLICE & CRIME COMM'R FOR NORFOLK (,,,,5000233245,,Local Council Tax Support for Police Commissioners,NR18 0WW,"785,135.00",Yes
Communities & Local Government,DCLG,15/08/2013,Current (non AEF) Grants to Local Authorities,Localism,POLICE & CRIME COMM'R FOR NORFOLK (,,,,5000233246,,Council Tax Freeze for Police and Crime Commission,NR18 0WW,"142,790.00",Yes
Communities & Local Government,DCLG,15/08/2013,Current (non AEF) Grants to Local Authorities,Localism,POLICE & CRIME COMM'R FOR NOTTS (RS,,,,5000233249,,Council Tax Freeze for Police and Crime Commission,NG5 8PP,"133,210.00",Yes
Communities & Local Government,DCLG,15/08/2013,Current (non AEF) Grants to Local Authorities,Localism,POLICE & CRIME COMM'R FOR NOTTS (RS,,,,5000233250,,Local Council Tax Support for Police Commissioners,NG5 8PP,"836,716.00",Yes
Communities & Local Government,DCLG,15/08/2013,Current (non AEF) Grants to Local Authorities,Localism,POLICE & CRIME COMM'R FOR SUSSEX,,,,5000233251,,Local Council Tax Support for Police Commissioners,BN7 2DZ,"1,010,710.00",Yes
Communities & Local Government,DCLG,15/08/2013,Current (non AEF) Grants to Local Authorities,Localism,POLICE & CRIME COMM'R FOR SUSSEX,,,,5000233252,,Council Tax Freeze for Police and Crime Commission,BN7 2DZ,"217,552.00",Yes
Communities & Local Government,DCLG,15/08/2013,Current (non AEF) Grants to Local Authorities,Localism,POLICE & CRIME COMM'R FOR SUSSEX,,,,5000233253,,Council Tax Freeze,BN7 2DZ,"88,647.00",Yes
Communities & Local Government,DCLG,15/08/2013,Current (non AEF) Grants to Local Authorities,Localism,POLICE & CRIME COMM'R FOR WILTSHIRE,,,,5000233257,,Council Tax Freeze,BA14 8JJ,"40,229.00",Yes
Communities & Local Government,DCLG,15/08/2013,Current (non AEF) Grants to Local Authorities,Localism,POLICE & CRIME COMM'R FOR WILTSHIRE,,,,5000233258,,Council Tax Freeze for Police and Crime Commission,BA14 8JJ,"99,055.00",Yes
Communities & Local Government,DCLG,15/08/2013,Current (non AEF) Grants to Local Authorities,Localism,POLICE & CRIME COMM'R FOR WILTSHIRE,,,,5000233259,,Local Council Tax Support for Police Commissioners,BA14 8JJ,"382,966.00",Yes
Communities & Local Government,DCLG,15/08/2013,Current (non AEF) Grants to Local Authorities,Localism,POLICE & CRIME COMM'R NORTHUMBRIA (,,,,5000233247,,Local Council Tax Support for Police Commissioners,NE1 8DL,"684,465.00",Yes
Communities & Local Government,DCLG,15/08/2013,Current (non AEF) Grants to Local Authorities,Localism,POLICE & CRIME COMM'R NORTHUMBRIA (,,,,5000233248,,Council Tax Freeze for Police and Crime Commission,NE1 8DL,"91,192.00",Yes
Communities & Local Government,DCLG,15/08/2013,Current (non AEF) Grants to Local Authorities,Localism,POLICE & CRIME COMM'R THAMES VALLEY,,,,5000233254,,Council Tax Freeze for Police and Crime Commission,OX5 2NX,"337,241.00",Yes
Communities & Local Government,DCLG,15/08/2013,Current (non AEF) Grants to Local Authorities,Localism,POLICE & CRIME COMM'R THAMES VALLEY,,,,5000233255,,Local Council Tax Support for Police Commissioners,OX5 2NX,"1,186,772.00",Yes
Communities & Local Government,DCLG,15/08/2013,Current (non AEF) Grants to Local Authorities,Localism,POOLE BC (HSG),,,,5000233059,,Council Tax Freeze,BH15 2RU,"73,068.00",Yes
Communities & Local Government,DCLG,15/08/2013,Current (non AEF) Grants to Local Authorities,Localism,REDDITCH BC,,,,5000233187,,Council Tax Freeze,B98 8AH,"5,820.00",Yes
Communities & Local Government,DCLG,15/08/2013,Current (non AEF) Grants to Local Authorities,Localism,RIBBLE VALLEY BC,,,,5000233060,,Council Tax Freeze,BB7 2RA,"3,147.00",Yes
Communities & Local Government,DCLG,15/08/2013,Current (non AEF) Grants to Local Authorities,Localism,RICHMOND UPON THAMES LB,,,,5000233188,,Council Tax Freeze,TW1 3BZ,"117,647.00",Yes
Communities & Local Government,DCLG,15/08/2013,Current (non AEF) Grants to Local Authorities,Localism,ROSSENDALE BC,,,,5000233189,,Council Tax Freeze,BB4 7LZ,"5,473.00",Yes
Communities & Local Government,DCLG,15/08/2013,Current (non AEF) Grants to Local Authorities,Localism,ROTHER DC (HSG),,,,5000233061,,Council Tax Freeze,TN39 3JX,"7,337.00",Yes
Communities & Local Government,DCLG,15/08/2013,Current (non AEF) Grants to Local Authorities,Localism,ROTHERHAM MBC,,,,5000233190,,Council Tax Freeze,S60 1AE,"96,472.00",Yes
Communities & Local Government,DCLG,15/08/2013,Current (non AEF) Grants to Local Authorities,Localism,ROYAL BOROUGH OF KENSINGTON & CHELS,,,,5000233163,,Council Tax Freeze,W8 7NX,"80,398.00",Yes
Communities & Local Government,DCLG,15/08/2013,Current (non AEF) Grants to Local Authorities,Localism,RUGBY BC,,,,5000233191,,Council Tax Freeze,CV21 2LA,"6,137.00",Yes
Communities & Local Government,DCLG,15/08/2013,Current (non AEF) Grants to Local Authorities,Localism,RUSHMOOR BC,,,,5000233192,,Council Tax Freeze,GU14 7JU,"5,906.00",Yes
Communities & Local Government,DCLG,15/08/2013,Current (non AEF) Grants to Local Authorities,Localism,RUTLAND CC,,,,5000233193,,Council Tax Freeze,LE15 6HP,"21,042.00",Yes
Communities & Local Government,DCLG,15/08/2013,Current (non AEF) Grants to Local Authorities,Localism,RYEDALE DC,,,,5000233062,,Council Tax Freeze,YO17 0HH,"3,804.00",Yes
Communities & Local Government,DCLG,15/08/2013,Current (non AEF) Grants to Local Authorities,Localism,SALFORD CITY CNCL,,,,5000233194,,Council Tax Freeze,M27 5AW,"94,346.00",Yes
Communities & Local Government,DCLG,15/08/2013,Current (non AEF) Grants to Local Authorities,Localism,SANDWELL MBC,,,,5000233195,,Council Tax Freeze,B69 3BS,"103,790.00",Yes
Communities & Local Government,DCLG,15/08/2013,Current (non AEF) Grants to Local Authorities,Localism,SCARBOROUGH BC,,Large,,5000233063,,Council Tax Freeze,YO11 2HG,"8,995.00",Yes
Communities & Local Government,DCLG,15/08/2013,Current (non AEF) Grants to Local Authorities,Localism,SEFTON MBC,,,,5000233196,,Council Tax Freeze,L20 3NQ,"117,278.00",Yes
Communities & Local Government,DCLG,15/08/2013,Current (non AEF) Grants to Local Authorities,Localism,SELBY DC,,,,5000233064,,Council Tax Freeze,YO8 0SA,"4,813.00",Yes
Communities & Local Government,DCLG,15/08/2013,Current (non AEF) Grants to Local Authorities,Localism,SHEFFIELD CITY CNCL,,,,5000233197,,Council Tax Freeze,S1 1UR,"191,363.00",Yes
Communities & Local Government,DCLG,15/08/2013,Current (non AEF) Grants to Local Authorities,Localism,SHEPWAY DISTRICT COUNCIL,,,,5000233065,,Council Tax Freeze,CT20 2QY,"9,859.00",Yes
Communities & Local Government,DCLG,15/08/2013,Current (non AEF) Grants to Local Authorities,Localism,SHROPSHIRE UNITARY AUTHORITY,,,,5000233279,,Council Tax Freeze,SY2 6ND,"131,246.00",Yes
Communities & Local Government,DCLG,15/08/2013,Current (non AEF) Grants to Local Authorities,Localism,SOLIHULL MBC,,,,5000233198,,Council Tax Freeze,B91 3QR,"94,788.00",Yes
Communities & Local Government,DCLG,15/08/2013,Current (non AEF) Grants to Local Authorities,Localism,SOMERSET COUNTY CNCL,,,,5000233199,,Council Tax Freeze,TA1 4DY,"204,155.00",Yes
Communities & Local Government,DCLG,15/08/2013,Current (non AEF) Grants to Local Authorities,Localism,SOUTH BUCKS DC (HSG),,,,5000233066,,Council Tax Freeze,UB9 4LH,"4,726.00",Yes
Communities & Local Government,DCLG,15/08/2013,Current (non AEF) Grants to Local Authorities,Localism,SOUTH DERBYSHIRE D C,,,,5000233067,,Council Tax Freeze,DE11 0AH,"4,894.00",Yes
Communities & Local Government,DCLG,15/08/2013,Current (non AEF) Grants to Local Authorities,Localism,SOUTH GLOUCESTERSHIRE DC (HSG),,,,5000233068,,Council Tax Freeze,BS15 2TR,"116,078.00",Yes
Communities & Local Government,DCLG,15/08/2013,Current (non AEF) Grants to Local Authorities,Localism,SOUTH HOLLAND,,,,5000233069,,Council Tax Freeze,PE11 2XE,"4,649.00",Yes
Communities & Local Government,DCLG,15/08/2013,Current (non AEF) Grants to Local Authorities,Localism,SOUTH LAKELAND DC,,,,5000233070,,Council Tax Freeze,LA49 4DQ,"8,291.00",Yes
Communities & Local Government,DCLG,15/08/2013,Current (non AEF) Grants to Local Authorities,Localism,SOUTH NORFOLK DC,,,,5000233071,,Council Tax Freeze,NR15 2XE,"6,232.00",Yes
Communities & Local Government,DCLG,15/08/2013,Current (non AEF) Grants to Local Authorities,Localism,SOUTH NORTHAMPTONSHIRE DC,,,,5000233072,,Council Tax Freeze,NN12 7AE,"5,824.00",Yes
Communities & Local Government,DCLG,15/08/2013,Current (non AEF) Grants to Local Authorities,Localism,SOUTH OXFORDSHIRE DC,,,,5000233073,,Council Tax Freeze,OX10 8HQ,"6,754.00",Yes
Communities & Local Government,DCLG,15/08/2013,Current (non AEF) Grants to Local Authorities,Localism,SOUTH RIBBLE BC,,Public Bodies,,5000233200,,Council Tax Freeze,PR5 1DH,"7,698.00",Yes
Communities & Local Government,DCLG,15/08/2013,Current (non AEF) Grants to Local Authorities,Localism,SOUTH SOMERSET DC,,,,5000233074,,Council Tax Freeze,BA20 2DS,"9,124.00",Yes
Communities & Local Government,DCLG,15/08/2013,Current (non AEF) Grants to Local Authorities,Localism,SOUTH STAFFORDSHIRE DC,,,,5000233075,,Council Tax Freeze,WV8 1PX,"3,782.00",Yes
Communities & Local Government,DCLG,15/08/2013,Current (non AEF) Grants to Local Authorities,Localism,SOUTH TYNESIDE COUNCIL,,,,5000233201,,Council Tax Freeze,NE33 2RL,"57,928.00",Yes
Communities & Local Government,DCLG,15/08/2013,Current (non AEF) Grants to Local Authorities,Localism,SOUTH YORKSHIRE P A,,,,5000233318,,Council Tax Freeze for Police and Crime Commission,S3 8LY,"126,894.00",Yes
Communities & Local Government,DCLG,15/08/2013,Current (non AEF) Grants to Local Authorities,Localism,SOUTH YORKSHIRE P A,,,,5000233319,,Local Council Tax Support for Police Commissioners,S3 8LY,"956,046.00",Yes
Communities & Local Government,DCLG,15/08/2013,Current (non AEF) Grants to Local Authorities,Localism,SOUTHWARK LB,,,,5000233202,,Council Tax Freeze,SE1 2QH,"92,892.00",Yes
Communities & Local Government,DCLG,15/08/2013,Current (non AEF) Grants to Local Authorities,Localism,ST ALBANS CITY COUNCIL,,,,5000233203,,Council Tax Freeze,AL1 3JE,"10,477.00",Yes
Communities & Local Government,DCLG,15/08/2013,Current (non AEF) Grants to Local Authorities,Localism,ST EDMUNDSBURY (HSG),,,,5000233076,,Council Tax Freeze,IP33 3YS,"6,720.00",Yes
Communities & Local Government,DCLG,15/08/2013,Current (non AEF) Grants to Local Authorities,Localism,ST HELENS MBC,,,,5000233204,,Council Tax Freeze,WA10 1HP,"65,625.00",Yes
Communities & Local Government,DCLG,15/08/2013,Current (non AEF) Grants to Local Authorities,Localism,STAFFORD BC,,,,5000233205,,Council Tax Freeze,ST16 3AQ,"6,946.00",Yes
Communities & Local Government,DCLG,15/08/2013,Current (non AEF) Grants to Local Authorities,Localism,STAFFORDSHIRE  FIRE & RESCUE SERV,,,,5000233264,,Council Tax Freeze,ST15 0BS,"24,472.00",Yes
Communities & Local Government,DCLG,15/08/2013,Current (non AEF) Grants to Local Authorities,Localism,STAFFORDSHIRE COUNTY CNCL,,,,5000233206,,Council Tax Freeze,ST16 2LH,"298,617.00",Yes
Communities & Local Government,DCLG,15/08/2013,Current (non AEF) Grants to Local Authorities,Localism,STAFFORDSHIRE MOORLANDS DC,,,,5000233077,,Council Tax Freeze,ST13 6HQ,"5,262.00",Yes
Communities & Local Government,DCLG,15/08/2013,Current (non AEF) Grants to Local Authorities,Localism,STAFFORDSHIRE POLICE AUTHORITY,,,,5000233320,,Council Tax Freeze,ST16 2NF,"64,257.00",Yes
Communities & Local Government,DCLG,15/08/2013,Current (non AEF) Grants to Local Authorities,Localism,STAFFORDSHIRE POLICE AUTHORITY,,,,5000233321,,Council Tax Freeze for Police and Crime Commission,ST16 2NF,"159,485.00",Yes
Communities & Local Government,DCLG,15/08/2013,Current (non AEF) Grants to Local Authorities,Localism,STAFFORDSHIRE POLICE AUTHORITY,,,,5000233322,,Local Council Tax Support for Police Commissioners,ST16 2NF,"839,644.00",Yes
Communities & Local Government,DCLG,15/08/2013,Current (non AEF) Grants to Local Authorities,Localism,STEVENAGE BC,,,,5000233207,,Council Tax Freeze,SG1 1HN,"5,483.00",Yes
Communities & Local Government,DCLG,15/08/2013,Current (non AEF) Grants to Local Authorities,Localism,STOKE ON TRENT CITY COUNCIL,,,,5000233208,,Council Tax Freeze,ST4 1RJ,"84,653.00",Yes
Communities & Local Government,DCLG,15/08/2013,Current (non AEF) Grants to Local Authorities,Localism,STRATFORD ON AVON DC,,,,5000233209,,Council Tax Freeze,CV37 6HX,"6,732.00",Yes
Communities & Local Government,DCLG,15/08/2013,Current (non AEF) Grants to Local Authorities,Localism,STROUD DC (HSG),,,,5000233078,,Council Tax Freeze,GL5 4UB,"8,142.00",Yes
Communities & Local Government,DCLG,15/08/2013,Current (non AEF) Grants to Local Authorities,Localism,SUFFOLK CC (SOCIAL CARE SERV) (H,,,,5000233079,,Council Tax Freeze,IP4 1LH,"290,950.00",Yes
Communities & Local Government,DCLG,15/08/2013,Current (non AEF) Grants to Local Authorities,Localism,SUFFOLK COASTAL DC (HSG),,,,5000233080,,Council Tax Freeze,IP12 1AU,"7,393.00",Yes
Communities & Local Government,DCLG,15/08/2013,Current (non AEF) Grants to Local Authorities,Localism,SUFFOLK COUNTY CNCL (RSG),,,,5000231835,,Overpayment of Grant recovered by Exchequer,IP4 2JP,"-172,093.00",Yes
Communities & Local Government,DCLG,15/08/2013,Current (non AEF) Grants to Local Authorities,Localism,SUFFOLK POLICE AUTHORITY,,,,5000233323,,Local Council Tax Support for Police Commissioners,IP5 3QS,"487,524.00",Yes
Communities & Local Government,DCLG,15/08/2013,Current (non AEF) Grants to Local Authorities,Localism,SUFFOLK POLICE AUTHORITY,,,,5000233324,,Council Tax Freeze for Police and Crime Commission,IP5 3QS,"103,030.00",Yes
Communities & Local Government,DCLG,15/08/2013,Current (non AEF) Grants to Local Authorities,Localism,SUFFOLK POLICE AUTHORITY,,,,5000233325,,Council Tax Freeze,IP5 3QS,"43,072.00",Yes
Communities & Local Government,DCLG,15/08/2013,Current (non AEF) Grants to Local Authorities,Localism,SURREY POLICE AUTHORITY,,,,5000233326,,Council Tax Freeze for Police and Crime Commission,KT1 2EA,"246,083.00",Yes
Communities & Local Government,DCLG,15/08/2013,Current (non AEF) Grants to Local Authorities,Localism,SURREY POLICE AUTHORITY,,,,5000233327,,Local Council Tax Support for Police Commissioners,KT1 2EA,"673,682.00",Yes
Communities & Local Government,DCLG,15/08/2013,Current (non AEF) Grants to Local Authorities,Localism,SUTTON LB,,,,5000233210,,Council Tax Freeze,SM1 1EA,"82,717.00",Yes
Communities & Local Government,DCLG,15/08/2013,Current (non AEF) Grants to Local Authorities,Localism,SWALE BC,,,,5000233211,,Council Tax Freeze,ME10 3HT,"7,808.00",Yes
Communities & Local Government,DCLG,15/08/2013,Current (non AEF) Grants to Local Authorities,Localism,SWINDON BC,,,,5000233212,,Council Tax Freeze,SN1 2JH,"84,312.00",Yes
Communities & Local Government,DCLG,15/08/2013,Current (non AEF) Grants to Local Authorities,Localism,TANDRIDGE DC,,,,5000233081,,Council Tax Freeze,RH8 0BT,"7,427.00",Yes
Communities & Local Government,DCLG,15/08/2013,Current (non AEF) Grants to Local Authorities,Localism,TAUNTON DEANE BC,,,,5000233082,,Council Tax Freeze,TA1 1HE,"5,675.00",Yes
Communities & Local Government,DCLG,15/08/2013,Current (non AEF) Grants to Local Authorities,Localism,TEIGNBRIDGE DC,,,,5000233083,,Council Tax Freeze,TQ12 4XX,"7,541.00",Yes
Communities & Local Government,DCLG,15/08/2013,Current (non AEF) Grants to Local Authorities,Localism,TENDRING DC,,,,5000233084,,Council Tax Freeze,CO15 1SE,"7,631.00",Yes
Communities & Local Government,DCLG,15/08/2013,Current (non AEF) Grants to Local Authorities,Localism,TEWKESBURY BC,,,,5000233085,,Council Tax Freeze,GL20 5TT,"3,216.00",Yes
Communities & Local Government,DCLG,15/08/2013,Current (non AEF) Grants to Local Authorities,Localism,THANET DC,,,,5000233086,,Council Tax Freeze,CT8 1XZ,"9,578.00",Yes
Communities & Local Government,DCLG,15/08/2013,Current (non AEF) Grants to Local Authorities,Localism,THREE RIVERS DC,,,,5000233213,,Council Tax Freeze,WD3 1RL,"6,075.00",Yes
Communities & Local Government,DCLG,15/08/2013,Current (non AEF) Grants to Local Authorities,Localism,TORBAY BC,,,,5000233214,,Council Tax Freeze,TQ1 3DR,"63,496.00",Yes
Communities & Local Government,DCLG,15/08/2013,Current (non AEF) Grants to Local Authorities,Localism,TORRIDGE DC,,,,5000233087,,Council Tax Freeze,EX39 2HT,"3,518.00",Yes
Communities & Local Government,DCLG,15/08/2013,Current (non AEF) Grants to Local Authorities,Localism,TOWER HAMLETS LB (HSG),,,,5000233088,,Council Tax Freeze,E14 2BG,"84,637.00",Yes
Communities & Local Government,DCLG,15/08/2013,Current (non AEF) Grants to Local Authorities,Localism,TRAFFORD MBC,,,,5000233215,,Council Tax Freeze,M32 0YY,"89,358.00",Yes
